{"text_format":"3","workbook":"xlsx","n_sheets":5,"sheets":["BẮT ĐẦU","CHI PHÍ THEO KẾ HOẠCH","CHI PHÍ THỰC TẾ","CHÊNH LỆCH CHI PHÍ","PHÂN TÍCH CHI PHÍ"],"not_rendered":{"charts":3,"images":3,"defined_names":1},"read":"whole","date_system":"1900"}

{"sheet":"BẮT ĐẦU","index":0,"n_rows":8,"n_cols":2,"rows_kept":8}
[null,"GIỚI THIỆU VỀ MẪU NÀY"]
[null,"Sử dụng sổ làm việc Ngân sách chi phí kinh doanh này để theo dõi Chi phí theo kế hoạch và Chi phí thực tế cũng như Chênh lệch."]
[null,"Điền Tên công ty và thêm Logo."]
[null,"Nhập chi tiết vào các bảng trong trang tính Chi phí theo kế hoạch và trang tính Chi phí thực tế."]
[null,"Các bảng sẽ được cập nhật tự động trong trang tính Chênh lệch chi phí và các biểu đồ trong trang tính Phân tích chi phí"]
[null,"Lưu ý: "]
[null,"Hướng dẫn bổ sung được cung cấp ở cột A trong từng trang tính. Văn bản này đã được ẩn một cách chủ ý. Để loại bỏ văn bản, chọn cột A, sau đó chọn XÓA. Để bỏ ẩn văn bản, chọn cột A, sau đó thay đổi màu phông chữ."]
[null,"Để tìm hiểu thêm về các bảng, hãy nhấn SHIFT, rồi F10 trong một bảng, chọn tùy chọn BẢNG, rồi chọn VĂN BẢN THAY THẾ"]

{"sheet":"CHI PHÍ THEO KẾ HOẠCH","index":1,"n_rows":37,"n_cols":18,"rows_kept":37,"merged":[[1,1,2,3],[1,10,1,12],[1,13,2,14],[2,10,2,12],[3,17,12,19],[8,1,8,2],[19,1,19,2],[28,1,28,2],[33,1,33,2]]}
["Nhập Chi phí nhân viên theo kế hoạch, Chi phí văn phòng, Chi phí tiếp thị và Chi phí đào tạo hoặc đi lại vào các bảng tương ứng trong trang tính này. Tổng được tính toán tự động. Các hướng dẫn hữu ích về cách sử dụng trang tính này nằm ở các ô trong cột này. Mũi tên xuống để bắt đầu.",{"$nulls":14}," "]
["Nhập Tên công ty vào ô bên phải và Logo vào ô N2. Tiêu đề của trang tính này nằm trong ô K2.","Tên công ty",{"$nulls":8},"Ước tính chi phí chi tiết",null,null,"Chỗ dành sẵn cho logo nằm trong ô này."]
["Mẹo nằm ở ô K3.",{"$nulls":9},"Các ô được tô bóng là các phép tính."]
["Nhãn Chi phí theo kế hoạch nằm ở ô bên phải, tháng ở các ô C4 đến N4, nhãn Năm trong O4 và hướng dẫn Cách sử dụng mẫu này nằm trong ô R4.","CHI PHÍ THEO KẾ HOẠCH","THG1","THG2","THG3","THG4","THG5","THG6","THG7","THG8","THG9","THG10","THG11","THG12","NĂM",null,null,"Mẹo: CÁCH SỬ DỤNG MẪU NÀY\nNhập dữ liệu vào các ô màu trắng trên trang tính CHI PHÍ THEO KẾ HOẠCH và CHI PHÍ THỰC TẾ, đồng thời CHÊNH LỆCH CHI PHÍ và PHÂN TÍCH CHI PHÍ sẽ được tính toán cho bạn. Nếu bạn thêm hàng vào một trang tính thì các trang tính khác cần phải khớp."]
["Nhập Chi phí nhân viên vào bảng Kế hoạch nhân viên bắt đầu ở ô bên phải. Hướng dẫn tiếp theo nằm trong ô A10.","Chi phí nhân viên","Thg1","Thg2","Thg3","Thg4","Thg5","Thg6","Thg7","Thg8","Thg9","Thg10","Thg11","Thg12","NĂM"]
[null,"Tiền lương",{"v":85000,"d":"85,000.00 ₫"},{"v":85000,"d":"85,000.00 ₫"},{"v":85000,"d":"85,000.00 ₫"},{"v":87500,"d":"87,500.00 ₫"},{"v":87500,"d":"87,500.00 ₫"},{"v":87500,"d":"87,500.00 ₫"},{"v":87500,"d":"87,500.00 ₫"},{"v":92400,"d":"92,400.00 ₫"},{"v":92400,"d":"92,400.00 ₫"},{"v":92400,"d":"92,400.00 ₫"},{"v":92400,"d":"92,400.00 ₫"},{"v":92400,"d":"92,400.00 ₫"},{"$f":"SUM(C6:N6)","v":{"v":1067000,"d":"1,067,000.00 ₫"}}]
[null,"Phúc lợi",{"$f":"C6*0.27","v":{"v":22950,"d":"22,950.00 ₫"}},{"$f":"D6*0.27","v":{"v":22950,"d":"22,950.00 ₫"}},{"$f":"E6*0.27","v":{"v":22950,"d":"22,950.00 ₫"}},{"$f":"F6*0.27","v":{"v":23625,"d":"23,625.00 ₫"}},{"$f":"G6*0.27","v":{"v":23625,"d":"23,625.00 ₫"}},{"$f":"H6*0.27","v":{"v":23625,"d":"23,625.00 ₫"}},{"$f":"I6*0.27","v":{"v":23625,"d":"23,625.00 ₫"}},{"$f":"J6*0.27","v":{"v":24948,"d":"24,948.00 ₫"}},{"$f":"K6*0.27","v":{"v":24948,"d":"24,948.00 ₫"}},{"$f":"L6*0.27","v":{"v":24948,"d":"24,948.00 ₫"}},{"$f":"M6*0.27","v":{"v":24948,"d":"24,948.00 ₫"}},{"$f":"N6*0.27","v":{"v":24948,"d":"24,948.00 ₫"}},{"$f":"SUM(C7:N7)","v":{"v":288090,"d":"288,090.00 ₫"}}]
[null,"Tổng phụ",{"$f":"SUBTOTAL(109,Kế_hoạch_nhân_viên[Thg1])","v":{"v":107950,"d":"107,950.00 ₫"}},{"$f":"SUBTOTAL(109,Kế_hoạch_nhân_viên[Thg2])","v":{"v":107950,"d":"107,950.00 ₫"}},{"$f":"SUBTOTAL(109,Kế_hoạch_nhân_viên[Thg3])","v":{"v":107950,"d":"107,950.00 ₫"}},{"$f":"SUBTOTAL(109,Kế_hoạch_nhân_viên[Thg4])","v":{"v":111125,"d":"111,125.00 ₫"}},{"$f":"SUBTOTAL(109,Kế_hoạch_nhân_viên[Thg5])","v":{"v":111125,"d":"111,125.00 ₫"}},{"$f":"SUBTOTAL(109,Kế_hoạch_nhân_viên[Thg6])","v":{"v":111125,"d":"111,125.00 ₫"}},{"$f":"SUBTOTAL(109,Kế_hoạch_nhân_viên[Thg7])","v":{"v":111125,"d":"111,125.00 ₫"}},{"$f":"SUBTOTAL(109,Kế_hoạch_nhân_viên[Thg8])","v":{"v":117348,"d":"117,348.00 ₫"}},{"$f":"SUBTOTAL(109,Kế_hoạch_nhân_viên[Thg9])","v":{"v":117348,"d":"117,348.00 ₫"}},{"$f":"SUBTOTAL(109,Kế_hoạch_nhân_viên[Thg10])","v":{"v":117348,"d":"117,348.00 ₫"}},{"$f":"SUBTOTAL(109,Kế_hoạch_nhân_viên[Thg11])","v":{"v":117348,"d":"117,348.00 ₫"}},{"$f":"SUBTOTAL(109,Kế_hoạch_nhân_viên[Thg12])","v":{"v":117348,"d":"117,348.00 ₫"}},{"$f":"SUBTOTAL(109,Kế_hoạch_nhân_viên[NĂM])","v":{"v":1355090,"d":"1,355,090.00 ₫"}}]
[]
["Nhập Chi phí văn phòng vào bảng Kế hoạch văn phòng bắt đầu ở ô bên phải. Hướng dẫn tiếp theo nằm trong ô A21.","Chi phí văn phòng","Thg1","Thg2","Thg3","Thg4","Thg5","Thg6","Thg7","Thg8","Thg9","Thg10","Thg11","Thg12","NĂM"]
[null,"Thuê văn phòng",{"v":9800,"d":"9,800.00 ₫"},{"v":9800,"d":"9,800.00 ₫"},{"v":9800,"d":"9,800.00 ₫"},{"v":9800,"d":"9,800.00 ₫"},{"v":9800,"d":"9,800.00 ₫"},{"v":9800,"d":"9,800.00 ₫"},{"v":9800,"d":"9,800.00 ₫"},{"v":9800,"d":"9,800.00 ₫"},{"v":9800,"d":"9,800.00 ₫"},{"v":9800,"d":"9,800.00 ₫"},{"v":9800,"d":"9,800.00 ₫"},{"v":9800,"d":"9,800.00 ₫"},{"$f":"SUM(C11:N11)","v":{"v":117600,"d":"117,600.00 ₫"}}]
[null,"Khí đốt",null,{"v":400,"d":"400.00 ₫"},{"v":400,"d":"400.00 ₫"},{"v":100,"d":"100.00 ₫"},{"v":100,"d":"100.00 ₫"},{"v":100,"d":"100.00 ₫"},{"v":100,"d":"100.00 ₫"},{"v":100,"d":"100.00 ₫"},{"v":100,"d":"100.00 ₫"},{"v":100,"d":"100.00 ₫"},{"v":400,"d":"400.00 ₫"},{"v":400,"d":"400.00 ₫"},{"v":2300,"d":"2,300.00 ₫"}]
[null,"Điện",{"v":300,"d":"300.00 ₫"},{"v":300,"d":"300.00 ₫"},{"v":300,"d":"300.00 ₫"},{"v":300,"d":"300.00 ₫"},{"v":300,"d":"300.00 ₫"},{"v":300,"d":"300.00 ₫"},{"v":300,"d":"300.00 ₫"},{"v":300,"d":"300.00 ₫"},{"v":300,"d":"300.00 ₫"},{"v":300,"d":"300.00 ₫"},{"v":300,"d":"300.00 ₫"},{"v":300,"d":"300.00 ₫"},{"v":3600,"d":"3,600.00 ₫"}]
[null,"Nước",{"v":40,"d":"40.00 ₫"},{"v":40,"d":"40.00 ₫"},{"v":40,"d":"40.00 ₫"},{"v":40,"d":"40.00 ₫"},{"v":40,"d":"40.00 ₫"},{"v":40,"d":"40.00 ₫"},{"v":40,"d":"40.00 ₫"},{"v":40,"d":"40.00 ₫"},{"v":40,"d":"40.00 ₫"},{"v":40,"d":"40.00 ₫"},{"v":40,"d":"40.00 ₫"},{"v":40,"d":"40.00 ₫"},{"v":480,"d":"480.00 ₫"}]
[null,"Điện thoại",{"v":250,"d":"250.00 ₫"},{"v":250,"d":"250.00 ₫"},{"v":250,"d":"250.00 ₫"},{"v":250,"d":"250.00 ₫"},{"v":250,"d":"250.00 ₫"},{"v":250,"d":"250.00 ₫"},{"v":250,"d":"250.00 ₫"},{"v":250,"d":"250.00 ₫"},{"v":250,"d":"250.00 ₫"},{"v":250,"d":"250.00 ₫"},{"v":250,"d":"250.00 ₫"},{"v":250,"d":"250.00 ₫"},{"v":3000,"d":"3,000.00 ₫"}]
[null,"Truy nhập internet",{"v":180,"d":"180.00 ₫"},{"v":180,"d":"180.00 ₫"},{"v":180,"d":"180.00 ₫"},{"v":180,"d":"180.00 ₫"},{"v":180,"d":"180.00 ₫"},{"v":180,"d":"180.00 ₫"},{"v":180,"d":"180.00 ₫"},{"v":180,"d":"180.00 ₫"},{"v":180,"d":"180.00 ₫"},{"v":180,"d":"180.00 ₫"},{"v":180,"d":"180.00 ₫"},{"v":180,"d":"180.00 ₫"},{"v":2160,"d":"2,160.00 ₫"}]
[null,"Văn phòng phẩm",{"v":200,"d":"200.00 ₫"},{"v":200,"d":"200.00 ₫"},{"v":200,"d":"200.00 ₫"},{"v":200,"d":"200.00 ₫"},{"v":200,"d":"200.00 ₫"},{"v":200,"d":"200.00 ₫"},{"v":200,"d":"200.00 ₫"},{"v":200,"d":"200.00 ₫"},{"v":200,"d":"200.00 ₫"},{"v":200,"d":"200.00 ₫"},{"v":200,"d":"200.00 ₫"},{"v":200,"d":"200.00 ₫"},{"v":2400,"d":"2,400.00 ₫"}]
[null,"Bảo vệ",{"v":600,"d":"600.00 ₫"},{"v":600,"d":"600.00 ₫"},{"v":600,"d":"600.00 ₫"},{"v":600,"d":"600.00 ₫"},{"v":600,"d":"600.00 ₫"},{"v":600,"d":"600.00 ₫"},{"v":600,"d":"600.00 ₫"},{"v":600,"d":"600.00 ₫"},{"v":600,"d":"600.00 ₫"},{"v":600,"d":"600.00 ₫"},{"v":600,"d":"600.00 ₫"},{"v":600,"d":"600.00 ₫"},{"v":7200,"d":"7,200.00 ₫"}]
[null,"Tổng phụ",{"$f":"SUBTOTAL(109,Kế_hoạch_văn_phòng[Thg1])","v":{"v":11370,"d":"11,370.00 ₫"}},{"$f":"SUBTOTAL(109,Kế_hoạch_văn_phòng[Thg2])","v":{"v":11770,"d":"11,770.00 ₫"}},{"$f":"SUBTOTAL(109,Kế_hoạch_văn_phòng[Thg3])","v":{"v":11770,"d":"11,770.00 ₫"}},{"$f":"SUBTOTAL(109,Kế_hoạch_văn_phòng[Thg4])","v":{"v":11470,"d":"11,470.00 ₫"}},{"$f":"SUBTOTAL(109,Kế_hoạch_văn_phòng[Thg5])","v":{"v":11470,"d":"11,470.00 ₫"}},{"$f":"SUBTOTAL(109,Kế_hoạch_văn_phòng[Thg6])","v":{"v":11470,"d":"11,470.00 ₫"}},{"$f":"SUBTOTAL(109,Kế_hoạch_văn_phòng[Thg7])","v":{"v":11470,"d":"11,470.00 ₫"}},{"$f":"SUBTOTAL(109,Kế_hoạch_văn_phòng[Thg8])","v":{"v":11470,"d":"11,470.00 ₫"}},{"$f":"SUBTOTAL(109,Kế_hoạch_văn_phòng[Thg9])","v":{"v":11470,"d":"11,470.00 ₫"}},{"$f":"SUBTOTAL(109,Kế_hoạch_văn_phòng[Thg10])","v":{"v":11470,"d":"11,470.00 ₫"}},{"$f":"SUBTOTAL(109,Kế_hoạch_văn_phòng[Thg11])","v":{"v":11770,"d":"11,770.00 ₫"}},{"$f":"SUBTOTAL(109,Kế_hoạch_văn_phòng[Thg12])","v":{"v":11770,"d":"11,770.00 ₫"}},{"$f":"SUBTOTAL(109,Kế_hoạch_văn_phòng[NĂM])","v":{"v":138740,"d":"138,740.00 ₫"}}]
[]
["Nhập Chi phí tiếp thị vào bảng Kế hoạch tiếp thị bắt đầu ở ô bên phải. Hướng dẫn tiếp theo nằm trong ô A30.","Chi phí tiếp thị","Thg1","Thg2","Thg3","Thg4","Thg5","Thg6","Thg7","Thg8","Thg9","Thg10","Thg11","Thg12","NĂM"]
[null,"Lưu trữ trang web",{"v":500,"d":"500.00 ₫"},{"v":500,"d":"500.00 ₫"},{"v":500,"d":"500.00 ₫"},{"v":500,"d":"500.00 ₫"},{"v":500,"d":"500.00 ₫"},{"v":500,"d":"500.00 ₫"},{"v":500,"d":"500.00 ₫"},{"v":500,"d":"500.00 ₫"},{"v":500,"d":"500.00 ₫"},{"v":500,"d":"500.00 ₫"},{"v":500,"d":"500.00 ₫"},{"v":500,"d":"500.00 ₫"},{"$f":"SUM(C22:N22)","v":{"v":6000,"d":"6,000.00 ₫"}}]
[null,"Cập nhật trang web",{"v":200,"d":"200.00 ₫"},{"v":200,"d":"200.00 ₫"},{"v":200,"d":"200.00 ₫"},{"v":200,"d":"200.00 ₫"},{"v":200,"d":"200.00 ₫"},{"v":1000,"d":"1,000.00 ₫"},{"v":200,"d":"200.00 ₫"},{"v":200,"d":"200.00 ₫"},{"v":200,"d":"200.00 ₫"},{"v":200,"d":"200.00 ₫"},{"v":200,"d":"200.00 ₫"},{"v":1000,"d":"1,000.00 ₫"},{"v":4000,"d":"4,000.00 ₫"}]
[null,"Chuẩn bị tài liệu quảng cáo",{"v":5000,"d":"5,000.00 ₫"},{"v":0,"d":"0.00 ₫"},{"v":0,"d":"0.00 ₫"},{"v":5000,"d":"5,000.00 ₫"},{"v":0,"d":"0.00 ₫"},{"v":0,"d":"0.00 ₫"},{"v":5000,"d":"5,000.00 ₫"},{"v":0,"d":"0.00 ₫"},{"v":0,"d":"0.00 ₫"},{"v":5000,"d":"5,000.00 ₫"},{"v":0,"d":"0.00 ₫"},{"v":0,"d":"0.00 ₫"},{"v":20000,"d":"20,000.00 ₫"}]
[null,"In tài liệu quảng cáo",{"v":200,"d":"200.00 ₫"},{"v":200,"d":"200.00 ₫"},{"v":200,"d":"200.00 ₫"},{"v":200,"d":"200.00 ₫"},{"v":200,"d":"200.00 ₫"},{"v":200,"d":"200.00 ₫"},{"v":200,"d":"200.00 ₫"},{"v":200,"d":"200.00 ₫"},{"v":200,"d":"200.00 ₫"},{"v":200,"d":"200.00 ₫"},{"v":200,"d":"200.00 ₫"},{"v":200,"d":"200.00 ₫"},{"v":2400,"d":"2,400.00 ₫"}]
[null,"Sự kiện tiếp thị",{"v":2000,"d":"2,000.00 ₫"},{"v":2000,"d":"2,000.00 ₫"},{"v":2000,"d":"2,000.00 ₫"},{"v":5000,"d":"5,000.00 ₫"},{"v":2000,"d":"2,000.00 ₫"},{"v":2000,"d":"2,000.00 ₫"},{"v":2000,"d":"2,000.00 ₫"},{"v":5000,"d":"5,000.00 ₫"},{"v":2000,"d":"2,000.00 ₫"},{"v":2000,"d":"2,000.00 ₫"},{"v":2000,"d":"2,000.00 ₫"},{"v":5000,"d":"5,000.00 ₫"},{"v":33000,"d":"33,000.00 ₫"}]
[null,"Chi phí khác",{"v":200,"d":"200.00 ₫"},{"v":200,"d":"200.00 ₫"},{"v":200,"d":"200.00 ₫"},{"v":200,"d":"200.00 ₫"},{"v":200,"d":"200.00 ₫"},{"v":200,"d":"200.00 ₫"},{"v":200,"d":"200.00 ₫"},{"v":200,"d":"200.00 ₫"},{"v":200,"d":"200.00 ₫"},{"v":200,"d":"200.00 ₫"},{"v":200,"d":"200.00 ₫"},{"v":200,"d":"200.00 ₫"},{"v":2400,"d":"2,400.00 ₫"}]
[null,"Tổng phụ",{"$f":"SUBTOTAL(109,Kế_hoạch_tiếp_thị[Thg1])","v":{"v":8100,"d":"8,100.00 ₫"}},{"$f":"SUBTOTAL(109,Kế_hoạch_tiếp_thị[Thg2])","v":{"v":3100,"d":"3,100.00 ₫"}},{"$f":"SUBTOTAL(109,Kế_hoạch_tiếp_thị[Thg3])","v":{"v":3100,"d":"3,100.00 ₫"}},{"$f":"SUBTOTAL(109,Kế_hoạch_tiếp_thị[Thg4])","v":{"v":11100,"d":"11,100.00 ₫"}},{"$f":"SUBTOTAL(109,Kế_hoạch_tiếp_thị[Thg5])","v":{"v":3100,"d":"3,100.00 ₫"}},{"$f":"SUBTOTAL(109,Kế_hoạch_tiếp_thị[Thg6])","v":{"v":3900,"d":"3,900.00 ₫"}},{"$f":"SUBTOTAL(109,Kế_hoạch_tiếp_thị[Thg7])","v":{"v":8100,"d":"8,100.00 ₫"}},{"$f":"SUBTOTAL(109,Kế_hoạch_tiếp_thị[Thg8])","v":{"v":6100,"d":"6,100.00 ₫"}},{"$f":"SUBTOTAL(109,Kế_hoạch_tiếp_thị[Thg9])","v":{"v":3100,"d":"3,100.00 ₫"}},{"$f":"SUBTOTAL(109,Kế_hoạch_tiếp_thị[Thg10])","v":{"v":8100,"d":"8,100.00 ₫"}},{"$f":"SUBTOTAL(109,Kế_hoạch_tiếp_thị[Thg11])","v":{"v":3100,"d":"3,100.00 ₫"}},{"$f":"SUBTOTAL(109,Kế_hoạch_tiếp_thị[Thg12])","v":{"v":6900,"d":"6,900.00 ₫"}},{"$f":"SUBTOTAL(109,Kế_hoạch_tiếp_thị[NĂM])","v":{"v":67800,"d":"67,800.00 ₫"}}]
[]
["Nhập Chi phí đào tạo và đi lại vào bảng Kế hoạch đào tạo và đi lại bắt đầu ở ô bên phải. Hướng dẫn tiếp theo nằm trong ô A35.","Đào tạo/Đi lại","Thg1","Thg2","Thg3","Thg4","Thg5","Thg6","Thg7","Thg8","Thg9","Thg10","Thg11","Thg12","NĂM"]
[null,"Các lớp đào tạo",{"v":2000,"d":"2,000.00 ₫"},{"v":2000,"d":"2,000.00 ₫"},{"v":2000,"d":"2,000.00 ₫"},{"v":2000,"d":"2,000.00 ₫"},{"v":2000,"d":"2,000.00 ₫"},{"v":2000,"d":"2,000.00 ₫"},{"v":2000,"d":"2,000.00 ₫"},{"v":2000,"d":"2,000.00 ₫"},{"v":2000,"d":"2,000.00 ₫"},{"v":2000,"d":"2,000.00 ₫"},{"v":2000,"d":"2,000.00 ₫"},{"v":2000,"d":"2,000.00 ₫"},{"$f":"SUM(C31:N31)","v":{"v":24000,"d":"24,000.00 ₫"}}]
[null,"Chi phí đi lại liên quan đến đào tạo",{"v":2000,"d":"2,000.00 ₫"},{"v":2000,"d":"2,000.00 ₫"},{"v":2000,"d":"2,000.00 ₫"},{"v":2000,"d":"2,000.00 ₫"},{"v":2000,"d":"2,000.00 ₫"},{"v":2000,"d":"2,000.00 ₫"},{"v":2000,"d":"2,000.00 ₫"},{"v":2000,"d":"2,000.00 ₫"},{"v":2000,"d":"2,000.00 ₫"},{"v":2000,"d":"2,000.00 ₫"},{"v":2000,"d":"2,000.00 ₫"},{"v":2000,"d":"2,000.00 ₫"},{"$f":"SUM(C32:N32)","v":{"v":24000,"d":"24,000.00 ₫"}}]
[null,"Tổng phụ",{"$f":"SUBTOTAL(109,Kế_hoạch_đào_tạo_và_đi_lại[Thg1])","v":{"v":4000,"d":"4,000.00 ₫"}},{"$f":"SUBTOTAL(109,Kế_hoạch_đào_tạo_và_đi_lại[Thg2])","v":{"v":4000,"d":"4,000.00 ₫"}},{"$f":"SUBTOTAL(109,Kế_hoạch_đào_tạo_và_đi_lại[Thg3])","v":{"v":4000,"d":"4,000.00 ₫"}},{"$f":"SUBTOTAL(109,Kế_hoạch_đào_tạo_và_đi_lại[Thg4])","v":{"v":4000,"d":"4,000.00 ₫"}},{"$f":"SUBTOTAL(109,Kế_hoạch_đào_tạo_và_đi_lại[Thg5])","v":{"v":4000,"d":"4,000.00 ₫"}},{"$f":"SUBTOTAL(109,Kế_hoạch_đào_tạo_và_đi_lại[Thg6])","v":{"v":4000,"d":"4,000.00 ₫"}},{"$f":"SUBTOTAL(109,Kế_hoạch_đào_tạo_và_đi_lại[Thg7])","v":{"v":4000,"d":"4,000.00 ₫"}},{"$f":"SUBTOTAL(109,Kế_hoạch_đào_tạo_và_đi_lại[Thg8])","v":{"v":4000,"d":"4,000.00 ₫"}},{"$f":"SUBTOTAL(109,Kế_hoạch_đào_tạo_và_đi_lại[Thg9])","v":{"v":4000,"d":"4,000.00 ₫"}},{"$f":"SUBTOTAL(109,Kế_hoạch_đào_tạo_và_đi_lại[Thg10])","v":{"v":4000,"d":"4,000.00 ₫"}},{"$f":"SUBTOTAL(109,Kế_hoạch_đào_tạo_và_đi_lại[Thg11])","v":{"v":4000,"d":"4,000.00 ₫"}},{"$f":"SUBTOTAL(109,Kế_hoạch_đào_tạo_và_đi_lại[Thg12])","v":{"v":4000,"d":"4,000.00 ₫"}},{"$f":"SUBTOTAL(109,Kế_hoạch_đào_tạo_và_đi_lại[NĂM])","v":{"v":48000,"d":"48,000.00 ₫"}}]
[]
["Tổng được tính toán tự động trong bảng Tổng theo kế hoạch bắt đầu ở ô bên phải.","TỔNG","Thg1","Thg2","Thg3","Thg4","Thg5","Thg6","Thg7","Thg8","Thg9","Thg10","Thg11","Thg12","Năm"]
[null,"Chi phí theo kế hoạch hàng tháng",{"$f":"Kế_hoạch_đào_tạo_và_đi_lại[[#Totals],[Thg1]]+Kế_hoạch_tiếp_thị[[#Totals],[Thg1]]+Kế_hoạch_văn_phòng[[#Totals],[Thg1]]+Kế_hoạch_nhân_viên[[#Totals],[Thg1]]","v":{"v":131420,"d":"131,420.00 ₫"}},{"$f":"Kế_hoạch_đào_tạo_và_đi_lại[[#Totals],[Thg2]]+Kế_hoạch_tiếp_thị[[#Totals],[Thg2]]+Kế_hoạch_văn_phòng[[#Totals],[Thg2]]+Kế_hoạch_nhân_viên[[#Totals],[Thg2]]","v":{"v":126820,"d":"126,820.00 ₫"}},{"$f":"Kế_hoạch_đào_tạo_và_đi_lại[[#Totals],[Thg3]]+Kế_hoạch_tiếp_thị[[#Totals],[Thg3]]+Kế_hoạch_văn_phòng[[#Totals],[Thg3]]+Kế_hoạch_nhân_viên[[#Totals],[Thg3]]","v":{"v":126820,"d":"126,820.00 ₫"}},{"$f":"Kế_hoạch_đào_tạo_và_đi_lại[[#Totals],[Thg4]]+Kế_hoạch_tiếp_thị[[#Totals],[Thg4]]+Kế_hoạch_văn_phòng[[#Totals],[Thg4]]+Kế_hoạch_nhân_viên[[#Totals],[Thg4]]","v":{"v":137695,"d":"137,695.00 ₫"}},{"$f":"Kế_hoạch_đào_tạo_và_đi_lại[[#Totals],[Thg5]]+Kế_hoạch_tiếp_thị[[#Totals],[Thg5]]+Kế_hoạch_văn_phòng[[#Totals],[Thg5]]+Kế_hoạch_nhân_viên[[#Totals],[Thg5]]","v":{"v":129695,"d":"129,695.00 ₫"}},{"$f":"Kế_hoạch_đào_tạo_và_đi_lại[[#Totals],[Thg6]]+Kế_hoạch_tiếp_thị[[#Totals],[Thg6]]+Kế_hoạch_văn_phòng[[#Totals],[Thg6]]+Kế_hoạch_nhân_viên[[#Totals],[Thg6]]","v":{"v":130495,"d":"130,495.00 ₫"}},{"$f":"Kế_hoạch_đào_tạo_và_đi_lại[[#Totals],[Thg7]]+Kế_hoạch_tiếp_thị[[#Totals],[Thg7]]+Kế_hoạch_văn_phòng[[#Totals],[Thg7]]+Kế_hoạch_nhân_viên[[#Totals],[Thg7]]","v":{"v":134695,"d":"134,695.00 ₫"}},{"$f":"Kế_hoạch_đào_tạo_và_đi_lại[[#Totals],[Thg8]]+Kế_hoạch_tiếp_thị[[#Totals],[Thg8]]+Kế_hoạch_văn_phòng[[#Totals],[Thg8]]+Kế_hoạch_nhân_viên[[#Totals],[Thg8]]","v":{"v":138918,"d":"138,918.00 ₫"}},{"$f":"Kế_hoạch_đào_tạo_và_đi_lại[[#Totals],[Thg9]]+Kế_hoạch_tiếp_thị[[#Totals],[Thg9]]+Kế_hoạch_văn_phòng[[#Totals],[Thg9]]+Kế_hoạch_nhân_viên[[#Totals],[Thg9]]","v":{"v":135918,"d":"135,918.00 ₫"}},{"$f":"Kế_hoạch_đào_tạo_và_đi_lại[[#Totals],[Thg10]]+Kế_hoạch_tiếp_thị[[#Totals],[Thg10]]+Kế_hoạch_văn_phòng[[#Totals],[Thg10]]+Kế_hoạch_nhân_viên[[#Totals],[Thg10]]","v":{"v":140918,"d":"140,918.00 ₫"}},{"$f":"Kế_hoạch_đào_tạo_và_đi_lại[[#Totals],[Thg11]]+Kế_hoạch_tiếp_thị[[#Totals],[Thg11]]+Kế_hoạch_văn_phòng[[#Totals],[Thg11]]+Kế_hoạch_nhân_viên[[#Totals],[Thg11]]","v":{"v":136218,"d":"136,218.00 ₫"}},{"$f":"Kế_hoạch_đào_tạo_và_đi_lại[[#Totals],[Thg12]]+Kế_hoạch_tiếp_thị[[#Totals],[Thg12]]+Kế_hoạch_văn_phòng[[#Totals],[Thg12]]+Kế_hoạch_nhân_viên[[#Totals],[Thg12]]","v":{"v":140018,"d":"140,018.00 ₫"}},{"$f":"Kế_hoạch_đào_tạo_và_đi_lại[[#Totals],[NĂM]]+Kế_hoạch_tiếp_thị[[#Totals],[NĂM]]+Kế_hoạch_văn_phòng[[#Totals],[NĂM]]+Kế_hoạch_nhân_viên[[#Totals],[NĂM]]","v":{"v":1609630,"d":"1,609,630.00 ₫"}}]
[null,"TỔNG chi phí theo kế hoạch",{"$f":"SUM($C$36:C36)","v":{"v":131420,"d":"131,420.00 ₫"}},{"$f":"SUM($C$36:D36)","v":{"v":258240,"d":"258,240.00 ₫"}},{"$f":"SUM($C$36:E36)","v":{"v":385060,"d":"385,060.00 ₫"}},{"$f":"SUM($C$36:F36)","v":{"v":522755,"d":"522,755.00 ₫"}},{"$f":"SUM($C$36:G36)","v":{"v":652450,"d":"652,450.00 ₫"}},{"$f":"SUM($C$36:H36)","v":{"v":782945,"d":"782,945.00 ₫"}},{"$f":"SUM($C$36:I36)","v":{"v":917640,"d":"917,640.00 ₫"}},{"$f":"SUM($C$36:J36)","v":{"v":1056558,"d":"1,056,558.00 ₫"}},{"$f":"SUM($C$36:K36)","v":{"v":1192476,"d":"1,192,476.00 ₫"}},{"$f":"SUM($C$36:L36)","v":{"v":1333394,"d":"1,333,394.00 ₫"}},{"$f":"SUM($C$36:M36)","v":{"v":1469612,"d":"1,469,612.00 ₫"}},{"$f":"SUM($C$36:N36)","v":{"v":1609630,"d":"1,609,630.00 ₫"}}]

{"sheet":"CHI PHÍ THỰC TẾ","index":2,"n_rows":37,"n_cols":16,"rows_kept":37,"merged":[[1,1,2,3],[1,10,1,12],[1,13,2,14],[2,10,2,12],[8,1,8,2],[19,1,19,2],[28,1,28,2],[33,1,33,2]]}
["Nhập Chi phí nhân viên thực tế, Chi phí văn phòng, Chi phí tiếp thị và Chi phí đào tạo hoặc đi lại vào các bảng tương ứng trong trang tính này. Tổng được tính toán tự động. Các hướng dẫn hữu ích về cách sử dụng trang tính này nằm ở các ô trong cột này. Mũi tên xuống để bắt đầu.",{"$nulls":14}," "]
["Tên công ty được cập nhật tự động trong ô bên phải. Tiêu đề của trang tính này nằm trong ô K2. Nhập Logo vào ô N2.",{"$f":"'CHI PHÍ THEO KẾ HOẠCH'!B2:D3","v":"Tên công ty"},{"$nulls":8},{"$f":"tiêu_đề_trang_tính","v":"Ước tính chi phí chi tiết"},null,null,"Chỗ dành sẵn cho logo nằm trong ô này."]
["Mẹo nằm ở ô K3.",{"$nulls":9},"Các ô được tô bóng là các phép tính."]
["Nhãn Chi phí thực tế nằm ở ô bên phải, tháng ở ô C4 đến N4 và nhãn Năm trong O4.","CHI PHÍ THỰC TẾ","THG1","THG2","THG3","THG4","THG5","THG6","THG7","THG8","THG9","THG10","THG11","THG12","NĂM"]
["Nhập Chi phí nhân viên vào bảng Thực tế nhân viên bắt đầu ở ô bên phải. Hướng dẫn tiếp theo nằm trong ô A10.","Chi phí nhân viên","Thg1","Thg2","Thg3","Thg4","Thg5","Thg6","Thg7","Thg8","Thg9","Thg10","Thg11","Thg12","NĂM"]
[null,"Tiền lương",{"v":85000,"d":"85,000.00 ₫"},{"v":85000,"d":"85,000.00 ₫"},{"v":85000,"d":"85,000.00 ₫"},{"v":88000,"d":"88,000.00 ₫"},{"v":88000,"d":"88,000.00 ₫"},{"v":88000,"d":"88,000.00 ₫"},{"$nulls":6},{"$f":"SUM(C6:N6)","v":{"v":519000,"d":"519,000.00 ₫"}}]
[null,"Phúc lợi",{"$f":"C6*0.27","v":{"v":22950,"d":"22,950.00 ₫"}},{"v":22950,"d":"22,950.00 ₫"},{"v":22950,"d":"22,950.00 ₫"},{"v":23760,"d":"23,760.00 ₫"},{"v":23760,"d":"23,760.00 ₫"},{"v":23760,"d":"23,760.00 ₫"},{"v":0,"d":"0.00 ₫"},{"v":0,"d":"0.00 ₫"},{"v":0,"d":"0.00 ₫"},{"v":0,"d":"0.00 ₫"},{"v":0,"d":"0.00 ₫"},{"v":0,"d":"0.00 ₫"},{"$f":"SUM(C7:N7)","v":{"v":140130,"d":"140,130.00 ₫"}}]
[null,"Tổng phụ",{"$f":"SUBTOTAL(109,Thực_tế_nhân_viên[Thg1])","v":{"v":107950,"d":"107,950.00 ₫"}},{"$f":"SUBTOTAL(109,Thực_tế_nhân_viên[Thg2])","v":{"v":107950,"d":"107,950.00 ₫"}},{"$f":"SUBTOTAL(109,Thực_tế_nhân_viên[Thg3])","v":{"v":107950,"d":"107,950.00 ₫"}},{"$f":"SUBTOTAL(109,Thực_tế_nhân_viên[Thg4])","v":{"v":111760,"d":"111,760.00 ₫"}},{"$f":"SUBTOTAL(109,Thực_tế_nhân_viên[Thg5])","v":{"v":111760,"d":"111,760.00 ₫"}},{"$f":"SUBTOTAL(109,Thực_tế_nhân_viên[Thg6])","v":{"v":111760,"d":"111,760.00 ₫"}},{"$f":"SUBTOTAL(109,Thực_tế_nhân_viên[Thg7])","v":{"v":0,"d":"0.00 ₫"}},{"$f":"SUBTOTAL(109,Thực_tế_nhân_viên[Thg8])","v":{"v":0,"d":"0.00 ₫"}},{"$f":"SUBTOTAL(109,Thực_tế_nhân_viên[Thg9])","v":{"v":0,"d":"0.00 ₫"}},{"$f":"SUBTOTAL(109,Thực_tế_nhân_viên[Thg10])","v":{"v":0,"d":"0.00 ₫"}},{"$f":"SUBTOTAL(109,Thực_tế_nhân_viên[Thg11])","v":{"v":0,"d":"0.00 ₫"}},{"$f":"SUBTOTAL(109,Thực_tế_nhân_viên[Thg12])","v":{"v":0,"d":"0.00 ₫"}},{"$f":"SUBTOTAL(109,Thực_tế_nhân_viên[NĂM])","v":{"v":659130,"d":"659,130.00 ₫"}}]
[]
["Nhập Chi phí văn phòng vào bảng Thực tế văn phòng bắt đầu ở ô bên phải. Hướng dẫn tiếp theo nằm trong ô A21.","Chi phí văn phòng","Thg1","Thg2","Thg3","Thg4","Thg5","Thg6","Thg7","Thg8","Thg9","Thg10","Thg11","Thg12","NĂM"]
[null,"Thuê văn phòng",{"v":9800,"d":"9,800.00 ₫"},{"v":9800,"d":"9,800.00 ₫"},{"v":9800,"d":"9,800.00 ₫"},{"v":9800,"d":"9,800.00 ₫"},{"v":9800,"d":"9,800.00 ₫"},{"v":9800,"d":"9,800.00 ₫"},{"$nulls":6},{"$f":"SUM(C11:N11)","v":{"v":58800,"d":"58,800.00 ₫"}}]
[null,"Khí đốt",{"v":4,"d":"4.00 ₫"},{"v":430,"d":"430.00 ₫"},{"v":385,"d":"385.00 ₫"},{"v":230,"d":"230.00 ₫"},{"v":87,"d":"87.00 ₫"},{"v":88,"d":"88.00 ₫"},{"$nulls":6},{"v":1224,"d":"1,224.00 ₫"}]
[null,"Điện",{"v":288,"d":"288.00 ₫"},{"v":278,"d":"278.00 ₫"},{"v":268,"d":"268.00 ₫"},{"v":299,"d":"299.00 ₫"},{"v":306,"d":"306.00 ₫"},{"v":290,"d":"290.00 ₫"},{"$nulls":6},{"v":1729,"d":"1,729.00 ₫"}]
[null,"Nước",{"v":35,"d":"35.00 ₫"},{"v":33,"d":"33.00 ₫"},{"v":34,"d":"34.00 ₫"},{"v":36,"d":"36.00 ₫"},{"v":34,"d":"34.00 ₫"},{"v":36,"d":"36.00 ₫"},{"$nulls":6},{"v":208,"d":"208.00 ₫"}]
[null,"Điện thoại",{"v":224,"d":"224.00 ₫"},{"v":235,"d":"235.00 ₫"},{"v":265,"d":"265.00 ₫"},{"v":245,"d":"245.00 ₫"},{"v":245,"d":"245.00 ₫"},{"v":220,"d":"220.00 ₫"},{"$nulls":6},{"v":1434,"d":"1,434.00 ₫"}]
[null,"Truy nhập internet",{"v":180,"d":"180.00 ₫"},{"v":180,"d":"180.00 ₫"},{"v":180,"d":"180.00 ₫"},{"v":180,"d":"180.00 ₫"},{"v":180,"d":"180.00 ₫"},{"v":180,"d":"180.00 ₫"},{"$nulls":6},{"v":1080,"d":"1,080.00 ₫"}]
[null,"Văn phòng phẩm",{"v":256,"d":"256.00 ₫"},{"v":142,"d":"142.00 ₫"},{"v":160,"d":"160.00 ₫"},{"v":221,"d":"221.00 ₫"},{"v":256,"d":"256.00 ₫"},{"v":240,"d":"240.00 ₫"},{"$nulls":6},{"v":1275,"d":"1,275.00 ₫"}]
[null,"Bảo vệ",{"v":600,"d":"600.00 ₫"},{"v":600,"d":"600.00 ₫"},{"v":600,"d":"600.00 ₫"},{"v":600,"d":"600.00 ₫"},{"v":600,"d":"600.00 ₫"},{"v":600,"d":"600.00 ₫"},{"$nulls":6},{"v":3600,"d":"3,600.00 ₫"}]
[null,"Tổng phụ",{"$f":"SUBTOTAL(109,Thực_tế_văn_phòng[Thg1])","v":{"v":11387,"d":"11,387.00 ₫"}},{"$f":"SUBTOTAL(109,Thực_tế_văn_phòng[Thg2])","v":{"v":11698,"d":"11,698.00 ₫"}},{"$f":"SUBTOTAL(109,Thực_tế_văn_phòng[Thg3])","v":{"v":11692,"d":"11,692.00 ₫"}},{"$f":"SUBTOTAL(109,Thực_tế_văn_phòng[Thg4])","v":{"v":11611,"d":"11,611.00 ₫"}},{"$f":"SUBTOTAL(109,Thực_tế_văn_phòng[Thg5])","v":{"v":11508,"d":"11,508.00 ₫"}},{"$f":"SUBTOTAL(109,Thực_tế_văn_phòng[Thg6])","v":{"v":11454,"d":"11,454.00 ₫"}},{"$f":"SUBTOTAL(109,Thực_tế_văn_phòng[Thg7])","v":{"v":0,"d":"0.00 ₫"}},{"$f":"SUBTOTAL(109,Thực_tế_văn_phòng[Thg8])","v":{"v":0,"d":"0.00 ₫"}},{"$f":"SUBTOTAL(109,Thực_tế_văn_phòng[Thg9])","v":{"v":0,"d":"0.00 ₫"}},{"$f":"SUBTOTAL(109,Thực_tế_văn_phòng[Thg10])","v":{"v":0,"d":"0.00 ₫"}},{"$f":"SUBTOTAL(109,Thực_tế_văn_phòng[Thg11])","v":{"v":0,"d":"0.00 ₫"}},{"$f":"SUBTOTAL(109,Thực_tế_văn_phòng[Thg12])","v":{"v":0,"d":"0.00 ₫"}},{"$f":"SUBTOTAL(109,Thực_tế_văn_phòng[NĂM])","v":{"v":69350,"d":"69,350.00 ₫"}}]
[]
["Nhập Chi phí tiếp thị vào bảng Thực tế tiếp thị bắt đầu ở ô bên phải. Hướng dẫn tiếp theo nằm trong ô A30.","Chi phí tiếp thị","Thg1","Thg2","Thg3","Thg4","Thg5","Thg6","Thg7","Thg8","Thg9","Thg10","Thg11","Thg12","NĂM"]
[null,"Lưu trữ trang web",{"v":500,"d":"500.00 ₫"},{"v":500,"d":"500.00 ₫"},{"v":500,"d":"500.00 ₫"},{"v":500,"d":"500.00 ₫"},{"v":500,"d":"500.00 ₫"},{"v":500,"d":"500.00 ₫"},{"$nulls":6},{"$f":"SUM(C22:N22)","v":{"v":3000,"d":"3,000.00 ₫"}}]
[null,"Cập nhật trang web",{"v":200,"d":"200.00 ₫"},{"v":200,"d":"200.00 ₫"},{"v":200,"d":"200.00 ₫"},{"v":200,"d":"200.00 ₫"},{"v":200,"d":"200.00 ₫"},{"v":1500,"d":"1,500.00 ₫"},{"$nulls":6},{"v":2500,"d":"2,500.00 ₫"}]
[null,"Chuẩn bị tài liệu quảng cáo",{"v":4800,"d":"4,800.00 ₫"},{"v":0,"d":"0.00 ₫"},{"v":0,"d":"0.00 ₫"},{"v":5500,"d":"5,500.00 ₫"},{"v":0,"d":"0.00 ₫"},{"v":0,"d":"0.00 ₫"},{"$nulls":6},{"v":10300,"d":"10,300.00 ₫"}]
[null,"In tài liệu quảng cáo",{"v":100,"d":"100.00 ₫"},{"v":500,"d":"500.00 ₫"},{"v":100,"d":"100.00 ₫"},{"v":100,"d":"100.00 ₫"},{"v":600,"d":"600.00 ₫"},{"v":180,"d":"180.00 ₫"},{"$nulls":6},{"v":1580,"d":"1,580.00 ₫"}]
[null,"Sự kiện tiếp thị",{"v":1800,"d":"1,800.00 ₫"},{"v":2200,"d":"2,200.00 ₫"},{"v":2200,"d":"2,200.00 ₫"},{"v":4700,"d":"4,700.00 ₫"},{"v":1500,"d":"1,500.00 ₫"},{"v":2300,"d":"2,300.00 ₫"},{"$nulls":6},{"v":14700,"d":"14,700.00 ₫"}]
[null,"Chi phí khác",{"v":145,"d":"145.00 ₫"},{"v":156,"d":"156.00 ₫"},{"v":123,"d":"123.00 ₫"},{"v":223,"d":"223.00 ₫"},{"v":187,"d":"187.00 ₫"},{"v":245,"d":"245.00 ₫"},{"$nulls":6},{"v":1079,"d":"1,079.00 ₫"}]
[null,"Tổng phụ",{"$f":"SUBTOTAL(109,Thực_tế_tiếp_thị[Thg1])","v":{"v":7545,"d":"7,545.00 ₫"}},{"$f":"SUBTOTAL(109,Thực_tế_tiếp_thị[Thg2])","v":{"v":3556,"d":"3,556.00 ₫"}},{"$f":"SUBTOTAL(109,Thực_tế_tiếp_thị[Thg3])","v":{"v":3123,"d":"3,123.00 ₫"}},{"$f":"SUBTOTAL(109,Thực_tế_tiếp_thị[Thg4])","v":{"v":11223,"d":"11,223.00 ₫"}},{"$f":"SUBTOTAL(109,Thực_tế_tiếp_thị[Thg5])","v":{"v":2987,"d":"2,987.00 ₫"}},{"$f":"SUBTOTAL(109,Thực_tế_tiếp_thị[Thg6])","v":{"v":4725,"d":"4,725.00 ₫"}},{"$f":"SUBTOTAL(109,Thực_tế_tiếp_thị[Thg7])","v":{"v":0,"d":"0.00 ₫"}},{"$f":"SUBTOTAL(109,Thực_tế_tiếp_thị[Thg8])","v":{"v":0,"d":"0.00 ₫"}},{"$f":"SUBTOTAL(109,Thực_tế_tiếp_thị[Thg9])","v":{"v":0,"d":"0.00 ₫"}},{"$f":"SUBTOTAL(109,Thực_tế_tiếp_thị[Thg10])","v":{"v":0,"d":"0.00 ₫"}},{"$f":"SUBTOTAL(109,Thực_tế_tiếp_thị[Thg11])","v":{"v":0,"d":"0.00 ₫"}},{"$f":"SUBTOTAL(109,Thực_tế_tiếp_thị[Thg12])","v":{"v":0,"d":"0.00 ₫"}},{"$f":"SUBTOTAL(109,Thực_tế_tiếp_thị[NĂM])","v":{"v":33159,"d":"33,159.00 ₫"}}]
[]
["Nhập Chi phí đào tạo hoặc đi lại vào bảng Thực tế đào tạo và đi lại bắt đầu ở ô bên phải. Hướng dẫn tiếp theo nằm trong ô A35.","Đào tạo/Đi lại","Thg1","Thg2","Thg3","Thg4","Thg5","Thg6","Thg7","Thg8","Thg9","Thg10","Thg11","Thg12","NĂM"]
[null,"Các lớp đào tạo",{"v":1600,"d":"1,600.00 ₫"},{"v":2400,"d":"2,400.00 ₫"},{"v":1400,"d":"1,400.00 ₫"},{"v":1600,"d":"1,600.00 ₫"},{"v":1200,"d":"1,200.00 ₫"},{"v":2800,"d":"2,800.00 ₫"},{"$nulls":6},{"$f":"SUM(C31:N31)","v":{"v":11000,"d":"11,000.00 ₫"}}]
[null,"Chi phí đi lại liên quan đến đào tạo",{"v":1200,"d":"1,200.00 ₫"},{"v":2200,"d":"2,200.00 ₫"},{"v":1400,"d":"1,400.00 ₫"},{"v":1200,"d":"1,200.00 ₫"},{"v":800,"d":"800.00 ₫"},{"v":3500,"d":"3,500.00 ₫"},{"$nulls":6},{"$f":"SUM(C32:N32)","v":{"v":10300,"d":"10,300.00 ₫"}}]
[null,"Tổng phụ",{"$f":"SUBTOTAL(109,Thực_tế_đào_tạo[Thg1])","v":{"v":2800,"d":"2,800.00 ₫"}},{"$f":"SUBTOTAL(109,Thực_tế_đào_tạo[Thg2])","v":{"v":4600,"d":"4,600.00 ₫"}},{"$f":"SUBTOTAL(109,Thực_tế_đào_tạo[Thg3])","v":{"v":2800,"d":"2,800.00 ₫"}},{"$f":"SUBTOTAL(109,Thực_tế_đào_tạo[Thg4])","v":{"v":2800,"d":"2,800.00 ₫"}},{"$f":"SUBTOTAL(109,Thực_tế_đào_tạo[Thg5])","v":{"v":2000,"d":"2,000.00 ₫"}},{"$f":"SUBTOTAL(109,Thực_tế_đào_tạo[Thg6])","v":{"v":6300,"d":"6,300.00 ₫"}},{"$f":"SUBTOTAL(109,Thực_tế_đào_tạo[Thg7])","v":{"v":0,"d":"0.00 ₫"}},{"$f":"SUBTOTAL(109,Thực_tế_đào_tạo[Thg8])","v":{"v":0,"d":"0.00 ₫"}},{"$f":"SUBTOTAL(109,Thực_tế_đào_tạo[Thg9])","v":{"v":0,"d":"0.00 ₫"}},{"$f":"SUBTOTAL(109,Thực_tế_đào_tạo[Thg10])","v":{"v":0,"d":"0.00 ₫"}},{"$f":"SUBTOTAL(109,Thực_tế_đào_tạo[Thg11])","v":{"v":0,"d":"0.00 ₫"}},{"$f":"SUBTOTAL(109,Thực_tế_đào_tạo[Thg12])","v":{"v":0,"d":"0.00 ₫"}},{"$f":"SUBTOTAL(109,Thực_tế_đào_tạo[NĂM])","v":{"v":21300,"d":"21,300.00 ₫"}}]
[]
["Tổng Chi phí thực tế được tính toán tự động trong bảng Tổng thực tế bắt đầu ở ô bên phải.","TỔNG chi phí theo kế hoạch","Thg1","Thg2","Thg3","Thg4","Thg5","Thg6","Thg7","Thg8","Thg9","Thg10","Thg11","Thg12","Năm"]
[null,"Chi phí thực tế hàng tháng",{"$f":"Thực_tế_đào_tạo[[#Totals],[Thg1]]+Thực_tế_tiếp_thị[[#Totals],[Thg1]]+Thực_tế_văn_phòng[[#Totals],[Thg1]]+Thực_tế_nhân_viên[[#Totals],[Thg1]]","v":{"v":129682,"d":"129,682.00 ₫"}},{"$f":"Thực_tế_đào_tạo[[#Totals],[Thg2]]+Thực_tế_tiếp_thị[[#Totals],[Thg2]]+Thực_tế_văn_phòng[[#Totals],[Thg2]]+Thực_tế_nhân_viên[[#Totals],[Thg2]]","v":{"v":127804,"d":"127,804.00 ₫"}},{"$f":"Thực_tế_đào_tạo[[#Totals],[Thg3]]+Thực_tế_tiếp_thị[[#Totals],[Thg3]]+Thực_tế_văn_phòng[[#Totals],[Thg3]]+Thực_tế_nhân_viên[[#Totals],[Thg3]]","v":{"v":125565,"d":"125,565.00 ₫"}},{"$f":"Thực_tế_đào_tạo[[#Totals],[Thg4]]+Thực_tế_tiếp_thị[[#Totals],[Thg4]]+Thực_tế_văn_phòng[[#Totals],[Thg4]]+Thực_tế_nhân_viên[[#Totals],[Thg4]]","v":{"v":137394,"d":"137,394.00 ₫"}},{"$f":"Thực_tế_đào_tạo[[#Totals],[Thg5]]+Thực_tế_tiếp_thị[[#Totals],[Thg5]]+Thực_tế_văn_phòng[[#Totals],[Thg5]]+Thực_tế_nhân_viên[[#Totals],[Thg5]]","v":{"v":128255,"d":"128,255.00 ₫"}},{"$f":"Thực_tế_đào_tạo[[#Totals],[Thg6]]+Thực_tế_tiếp_thị[[#Totals],[Thg6]]+Thực_tế_văn_phòng[[#Totals],[Thg6]]+Thực_tế_nhân_viên[[#Totals],[Thg6]]","v":{"v":134239,"d":"134,239.00 ₫"}},{"$f":"Thực_tế_đào_tạo[[#Totals],[Thg7]]+Thực_tế_tiếp_thị[[#Totals],[Thg7]]+Thực_tế_văn_phòng[[#Totals],[Thg7]]+Thực_tế_nhân_viên[[#Totals],[Thg7]]","v":{"v":0,"d":"0.00 ₫"}},{"$f":"Thực_tế_đào_tạo[[#Totals],[Thg8]]+Thực_tế_tiếp_thị[[#Totals],[Thg8]]+Thực_tế_văn_phòng[[#Totals],[Thg8]]+Thực_tế_nhân_viên[[#Totals],[Thg8]]","v":{"v":0,"d":"0.00 ₫"}},{"$f":"Thực_tế_đào_tạo[[#Totals],[Thg9]]+Thực_tế_tiếp_thị[[#Totals],[Thg9]]+Thực_tế_văn_phòng[[#Totals],[Thg9]]+Thực_tế_nhân_viên[[#Totals],[Thg9]]","v":{"v":0,"d":"0.00 ₫"}},{"$f":"Thực_tế_đào_tạo[[#Totals],[Thg10]]+Thực_tế_tiếp_thị[[#Totals],[Thg10]]+Thực_tế_văn_phòng[[#Totals],[Thg10]]+Thực_tế_nhân_viên[[#Totals],[Thg10]]","v":{"v":0,"d":"0.00 ₫"}},{"$f":"Thực_tế_đào_tạo[[#Totals],[Thg11]]+Thực_tế_tiếp_thị[[#Totals],[Thg11]]+Thực_tế_văn_phòng[[#Totals],[Thg11]]+Thực_tế_nhân_viên[[#Totals],[Thg11]]","v":{"v":0,"d":"0.00 ₫"}},{"$f":"Thực_tế_đào_tạo[[#Totals],[Thg12]]+Thực_tế_tiếp_thị[[#Totals],[Thg12]]+Thực_tế_văn_phòng[[#Totals],[Thg12]]+Thực_tế_nhân_viên[[#Totals],[Thg12]]","v":{"v":0,"d":"0.00 ₫"}},{"$f":"Thực_tế_đào_tạo[[#Totals],[NĂM]]+Thực_tế_tiếp_thị[[#Totals],[NĂM]]+Thực_tế_văn_phòng[[#Totals],[NĂM]]+Thực_tế_nhân_viên[[#Totals],[NĂM]]","v":{"v":782939,"d":"782,939.00 ₫"}}]
[null,"TỔNG chi phí thực tế",{"$f":"SUM($C$36:C36)","v":{"v":129682,"d":"129,682.00 ₫"}},{"$f":"SUM($C$36:D36)","v":{"v":257486,"d":"257,486.00 ₫"}},{"$f":"SUM($C$36:E36)","v":{"v":383051,"d":"383,051.00 ₫"}},{"$f":"SUM($C$36:F36)","v":{"v":520445,"d":"520,445.00 ₫"}},{"$f":"SUM($C$36:G36)","v":{"v":648700,"d":"648,700.00 ₫"}},{"$f":"SUM($C$36:H36)","v":{"v":782939,"d":"782,939.00 ₫"}},{"$f":"SUM($C$36:I36)","v":{"v":782939,"d":"782,939.00 ₫"}},{"$f":"SUM($C$36:J36)","v":{"v":782939,"d":"782,939.00 ₫"}},{"$f":"SUM($C$36:K36)","v":{"v":782939,"d":"782,939.00 ₫"}},{"$f":"SUM($C$36:L36)","v":{"v":782939,"d":"782,939.00 ₫"}},{"$f":"SUM($C$36:M36)","v":{"v":782939,"d":"782,939.00 ₫"}},{"$f":"SUM($C$36:N36)","v":{"v":782939,"d":"782,939.00 ₫"}}]

{"sheet":"CHÊNH LỆCH CHI PHÍ","index":3,"n_rows":37,"n_cols":16,"rows_kept":37,"merged":[[1,1,2,3],[1,10,1,12],[1,13,2,14],[2,10,2,12],[8,1,8,2],[19,1,19,2],[28,1,28,2],[33,1,33,2]]}
["Chênh lệch chi phí được tính toán tự động trong trang tính của Chi phí nhân viên, Chi phí văn phòng, Chi phí tiếp thị và Chi phí đào tạo hoặc đi lại trong các bảng tương ứng ở trang tính này. Các hướng dẫn hữu ích về cách sử dụng trang tính này nằm ở các ô trong cột này. Mũi tên xuống để bắt đầu.",{"$nulls":14}," "]
["Tên công ty được cập nhật tự động trong ô bên phải. Tiêu đề của trang tính này nằm trong ô K2. Nhập Logo vào ô N2.",{"$f":"'CHI PHÍ THEO KẾ HOẠCH'!B2:D3","v":"Tên công ty"},{"$nulls":8},{"$f":"tiêu_đề_trang_tính","v":"Ước tính chi phí chi tiết"},null,null,"Chỗ dành sẵn cho logo nằm trong ô này."]
["Mẹo nằm ở ô K3.",{"$nulls":9},"Các ô được tô bóng là các phép tính."]
["Nhãn Chênh lệch chi phí nằm ở ô bên phải, tháng ở các ô C4 đến N4 và nhãn Năm trong O4.","CHÊNH LỆCH CHI PHÍ","THG1","THG2","THG3","THG4","THG5","THG6","THG7","THG8","THG9","THG10","THG11","THG12","NĂM"]
["Chênh lệch Chi phí nhân viên được tính toán tự động trong bảng Chênh lệch nhân viên bắt đầu ở ô bên phải. Hướng dẫn tiếp theo nằm trong ô A10.","Chi phí nhân viên","Thg1","Thg2","Thg3","Thg4","Thg5","Thg6","Thg7","Thg8","Thg9","Thg10","Thg11","Thg12","NĂM"]
[null,"Tiền lương",{"$f":"INDEX(Kế_hoạch_nhân_viên[],MATCH(INDEX(Chênh_lệch_nhân_viên[],ROW()-ROW(Chênh_lệch_nhân_viên[[#Headers],[Thg1]]),1),INDEX(Kế_hoạch_nhân_viên[],,1),0),MATCH(Chênh_lệch_nhân_viên[[#Headers],[Thg1]],Kế_hoạch_nhân_viên[#Headers],0))-INDEX(Thực_tế_nhân_viên[],MATCH(INDEX(Chênh_lệch_nhân_viên[],ROW()-ROW(Chênh_lệch_nhân_viên[[#Headers],[Thg1]]),1),INDEX(Kế_hoạch_nhân_viên[],,1),0),MATCH(Chênh_lệch_nhân_viên[[#Headers],[Thg1]],Thực_tế_nhân_viên[#Headers],0))","v":{"v":0,"d":"0.00 ₫"}},{"$f":"INDEX(Kế_hoạch_nhân_viên[],MATCH(INDEX(Chênh_lệch_nhân_viên[],ROW()-ROW(Chênh_lệch_nhân_viên[[#Headers],[Thg2]]),1),INDEX(Kế_hoạch_nhân_viên[],,1),0),MATCH(Chênh_lệch_nhân_viên[[#Headers],[Thg2]],Kế_hoạch_nhân_viên[#Headers],0))-INDEX(Thực_tế_nhân_viên[],MATCH(INDEX(Chênh_lệch_nhân_viên[],ROW()-ROW(Chênh_lệch_nhân_viên[[#Headers],[Thg2]]),1),INDEX(Kế_hoạch_nhân_viên[],,1),0),MATCH(Chênh_lệch_nhân_viên[[#Headers],[Thg2]],Thực_tế_nhân_viên[#Headers],0))","v":{"v":0,"d":"0.00 ₫"}},{"$f":"INDEX(Kế_hoạch_nhân_viên[],MATCH(INDEX(Chênh_lệch_nhân_viên[],ROW()-ROW(Chênh_lệch_nhân_viên[[#Headers],[Thg3]]),1),INDEX(Kế_hoạch_nhân_viên[],,1),0),MATCH(Chênh_lệch_nhân_viên[[#Headers],[Thg3]],Kế_hoạch_nhân_viên[#Headers],0))-INDEX(Thực_tế_nhân_viên[],MATCH(INDEX(Chênh_lệch_nhân_viên[],ROW()-ROW(Chênh_lệch_nhân_viên[[#Headers],[Thg3]]),1),INDEX(Kế_hoạch_nhân_viên[],,1),0),MATCH(Chênh_lệch_nhân_viên[[#Headers],[Thg3]],Thực_tế_nhân_viên[#Headers],0))","v":{"v":0,"d":"0.00 ₫"}},{"$f":"INDEX(Kế_hoạch_nhân_viên[],MATCH(INDEX(Chênh_lệch_nhân_viên[],ROW()-ROW(Chênh_lệch_nhân_viên[[#Headers],[Thg4]]),1),INDEX(Kế_hoạch_nhân_viên[],,1),0),MATCH(Chênh_lệch_nhân_viên[[#Headers],[Thg4]],Kế_hoạch_nhân_viên[#Headers],0))-INDEX(Thực_tế_nhân_viên[],MATCH(INDEX(Chênh_lệch_nhân_viên[],ROW()-ROW(Chênh_lệch_nhân_viên[[#Headers],[Thg4]]),1),INDEX(Kế_hoạch_nhân_viên[],,1),0),MATCH(Chênh_lệch_nhân_viên[[#Headers],[Thg4]],Thực_tế_nhân_viên[#Headers],0))","v":{"v":-500,"d":"-500.00 ₫"}},{"$f":"INDEX(Kế_hoạch_nhân_viên[],MATCH(INDEX(Chênh_lệch_nhân_viên[],ROW()-ROW(Chênh_lệch_nhân_viên[[#Headers],[Thg5]]),1),INDEX(Kế_hoạch_nhân_viên[],,1),0),MATCH(Chênh_lệch_nhân_viên[[#Headers],[Thg5]],Kế_hoạch_nhân_viên[#Headers],0))-INDEX(Thực_tế_nhân_viên[],MATCH(INDEX(Chênh_lệch_nhân_viên[],ROW()-ROW(Chênh_lệch_nhân_viên[[#Headers],[Thg5]]),1),INDEX(Kế_hoạch_nhân_viên[],,1),0),MATCH(Chênh_lệch_nhân_viên[[#Headers],[Thg5]],Thực_tế_nhân_viên[#Headers],0))","v":{"v":-500,"d":"-500.00 ₫"}},{"$f":"INDEX(Kế_hoạch_nhân_viên[],MATCH(INDEX(Chênh_lệch_nhân_viên[],ROW()-ROW(Chênh_lệch_nhân_viên[[#Headers],[Thg6]]),1),INDEX(Kế_hoạch_nhân_viên[],,1),0),MATCH(Chênh_lệch_nhân_viên[[#Headers],[Thg6]],Kế_hoạch_nhân_viên[#Headers],0))-INDEX(Thực_tế_nhân_viên[],MATCH(INDEX(Chênh_lệch_nhân_viên[],ROW()-ROW(Chênh_lệch_nhân_viên[[#Headers],[Thg6]]),1),INDEX(Kế_hoạch_nhân_viên[],,1),0),MATCH(Chênh_lệch_nhân_viên[[#Headers],[Thg6]],Thực_tế_nhân_viên[#Headers],0))","v":{"v":-500,"d":"-500.00 ₫"}},{"$f":"INDEX(Kế_hoạch_nhân_viên[],MATCH(INDEX(Chênh_lệch_nhân_viên[],ROW()-ROW(Chênh_lệch_nhân_viên[[#Headers],[Thg7]]),1),INDEX(Kế_hoạch_nhân_viên[],,1),0),MATCH(Chênh_lệch_nhân_viên[[#Headers],[Thg7]],Kế_hoạch_nhân_viên[#Headers],0))-INDEX(Thực_tế_nhân_viên[],MATCH(INDEX(Chênh_lệch_nhân_viên[],ROW()-ROW(Chênh_lệch_nhân_viên[[#Headers],[Thg7]]),1),INDEX(Kế_hoạch_nhân_viên[],,1),0),MATCH(Chênh_lệch_nhân_viên[[#Headers],[Thg7]],Thực_tế_nhân_viên[#Headers],0))","v":{"v":87500,"d":"87,500.00 ₫"}},{"$f":"INDEX(Kế_hoạch_nhân_viên[],MATCH(INDEX(Chênh_lệch_nhân_viên[],ROW()-ROW(Chênh_lệch_nhân_viên[[#Headers],[Thg8]]),1),INDEX(Kế_hoạch_nhân_viên[],,1),0),MATCH(Chênh_lệch_nhân_viên[[#Headers],[Thg8]],Kế_hoạch_nhân_viên[#Headers],0))-INDEX(Thực_tế_nhân_viên[],MATCH(INDEX(Chênh_lệch_nhân_viên[],ROW()-ROW(Chênh_lệch_nhân_viên[[#Headers],[Thg8]]),1),INDEX(Kế_hoạch_nhân_viên[],,1),0),MATCH(Chênh_lệch_nhân_viên[[#Headers],[Thg8]],Thực_tế_nhân_viên[#Headers],0))","v":{"v":92400,"d":"92,400.00 ₫"}},{"$f":"INDEX(Kế_hoạch_nhân_viên[],MATCH(INDEX(Chênh_lệch_nhân_viên[],ROW()-ROW(Chênh_lệch_nhân_viên[[#Headers],[Thg9]]),1),INDEX(Kế_hoạch_nhân_viên[],,1),0),MATCH(Chênh_lệch_nhân_viên[[#Headers],[Thg9]],Kế_hoạch_nhân_viên[#Headers],0))-INDEX(Thực_tế_nhân_viên[],MATCH(INDEX(Chênh_lệch_nhân_viên[],ROW()-ROW(Chênh_lệch_nhân_viên[[#Headers],[Thg9]]),1),INDEX(Kế_hoạch_nhân_viên[],,1),0),MATCH(Chênh_lệch_nhân_viên[[#Headers],[Thg9]],Thực_tế_nhân_viên[#Headers],0))","v":{"v":92400,"d":"92,400.00 ₫"}},{"$f":"INDEX(Kế_hoạch_nhân_viên[],MATCH(INDEX(Chênh_lệch_nhân_viên[],ROW()-ROW(Chênh_lệch_nhân_viên[[#Headers],[Thg10]]),1),INDEX(Kế_hoạch_nhân_viên[],,1),0),MATCH(Chênh_lệch_nhân_viên[[#Headers],[Thg10]],Kế_hoạch_nhân_viên[#Headers],0))-INDEX(Thực_tế_nhân_viên[],MATCH(INDEX(Chênh_lệch_nhân_viên[],ROW()-ROW(Chênh_lệch_nhân_viên[[#Headers],[Thg10]]),1),INDEX(Kế_hoạch_nhân_viên[],,1),0),MATCH(Chênh_lệch_nhân_viên[[#Headers],[Thg10]],Thực_tế_nhân_viên[#Headers],0))","v":{"v":92400,"d":"92,400.00 ₫"}},{"$f":"INDEX(Kế_hoạch_nhân_viên[],MATCH(INDEX(Chênh_lệch_nhân_viên[],ROW()-ROW(Chênh_lệch_nhân_viên[[#Headers],[Thg11]]),1),INDEX(Kế_hoạch_nhân_viên[],,1),0),MATCH(Chênh_lệch_nhân_viên[[#Headers],[Thg11]],Kế_hoạch_nhân_viên[#Headers],0))-INDEX(Thực_tế_nhân_viên[],MATCH(INDEX(Chênh_lệch_nhân_viên[],ROW()-ROW(Chênh_lệch_nhân_viên[[#Headers],[Thg11]]),1),INDEX(Kế_hoạch_nhân_viên[],,1),0),MATCH(Chênh_lệch_nhân_viên[[#Headers],[Thg11]],Thực_tế_nhân_viên[#Headers],0))","v":{"v":92400,"d":"92,400.00 ₫"}},{"$f":"INDEX(Kế_hoạch_nhân_viên[],MATCH(INDEX(Chênh_lệch_nhân_viên[],ROW()-ROW(Chênh_lệch_nhân_viên[[#Headers],[Thg12]]),1),INDEX(Kế_hoạch_nhân_viên[],,1),0),MATCH(Chênh_lệch_nhân_viên[[#Headers],[Thg12]],Kế_hoạch_nhân_viên[#Headers],0))-INDEX(Thực_tế_nhân_viên[],MATCH(INDEX(Chênh_lệch_nhân_viên[],ROW()-ROW(Chênh_lệch_nhân_viên[[#Headers],[Thg12]]),1),INDEX(Kế_hoạch_nhân_viên[],,1),0),MATCH(Chênh_lệch_nhân_viên[[#Headers],[Thg12]],Thực_tế_nhân_viên[#Headers],0))","v":{"v":92400,"d":"92,400.00 ₫"}},{"$f":"SUM(Chênh_lệch_nhân_viên[[#This Row],[Thg1]:[Thg12]])","v":{"v":548000,"d":"548,000.00 ₫"}}]
[null,"Phúc lợi",{"$f":"INDEX(Kế_hoạch_nhân_viên[],MATCH(INDEX(Chênh_lệch_nhân_viên[],ROW()-ROW(Chênh_lệch_nhân_viên[[#Headers],[Thg1]]),1),INDEX(Kế_hoạch_nhân_viên[],,1),0),MATCH(Chênh_lệch_nhân_viên[[#Headers],[Thg1]],Kế_hoạch_nhân_viên[#Headers],0))-INDEX(Thực_tế_nhân_viên[],MATCH(INDEX(Chênh_lệch_nhân_viên[],ROW()-ROW(Chênh_lệch_nhân_viên[[#Headers],[Thg1]]),1),INDEX(Kế_hoạch_nhân_viên[],,1),0),MATCH(Chênh_lệch_nhân_viên[[#Headers],[Thg1]],Thực_tế_nhân_viên[#Headers],0))","v":{"v":0,"d":"0.00 ₫"}},{"$f":"INDEX(Kế_hoạch_nhân_viên[],MATCH(INDEX(Chênh_lệch_nhân_viên[],ROW()-ROW(Chênh_lệch_nhân_viên[[#Headers],[Thg2]]),1),INDEX(Kế_hoạch_nhân_viên[],,1),0),MATCH(Chênh_lệch_nhân_viên[[#Headers],[Thg2]],Kế_hoạch_nhân_viên[#Headers],0))-INDEX(Thực_tế_nhân_viên[],MATCH(INDEX(Chênh_lệch_nhân_viên[],ROW()-ROW(Chênh_lệch_nhân_viên[[#Headers],[Thg2]]),1),INDEX(Kế_hoạch_nhân_viên[],,1),0),MATCH(Chênh_lệch_nhân_viên[[#Headers],[Thg2]],Thực_tế_nhân_viên[#Headers],0))","v":{"v":0,"d":"0.00 ₫"}},{"$f":"INDEX(Kế_hoạch_nhân_viên[],MATCH(INDEX(Chênh_lệch_nhân_viên[],ROW()-ROW(Chênh_lệch_nhân_viên[[#Headers],[Thg3]]),1),INDEX(Kế_hoạch_nhân_viên[],,1),0),MATCH(Chênh_lệch_nhân_viên[[#Headers],[Thg3]],Kế_hoạch_nhân_viên[#Headers],0))-INDEX(Thực_tế_nhân_viên[],MATCH(INDEX(Chênh_lệch_nhân_viên[],ROW()-ROW(Chênh_lệch_nhân_viên[[#Headers],[Thg3]]),1),INDEX(Kế_hoạch_nhân_viên[],,1),0),MATCH(Chênh_lệch_nhân_viên[[#Headers],[Thg3]],Thực_tế_nhân_viên[#Headers],0))","v":{"v":0,"d":"0.00 ₫"}},{"$f":"INDEX(Kế_hoạch_nhân_viên[],MATCH(INDEX(Chênh_lệch_nhân_viên[],ROW()-ROW(Chênh_lệch_nhân_viên[[#Headers],[Thg4]]),1),INDEX(Kế_hoạch_nhân_viên[],,1),0),MATCH(Chênh_lệch_nhân_viên[[#Headers],[Thg4]],Kế_hoạch_nhân_viên[#Headers],0))-INDEX(Thực_tế_nhân_viên[],MATCH(INDEX(Chênh_lệch_nhân_viên[],ROW()-ROW(Chênh_lệch_nhân_viên[[#Headers],[Thg4]]),1),INDEX(Kế_hoạch_nhân_viên[],,1),0),MATCH(Chênh_lệch_nhân_viên[[#Headers],[Thg4]],Thực_tế_nhân_viên[#Headers],0))","v":{"v":-135,"d":"-135.00 ₫"}},{"$f":"INDEX(Kế_hoạch_nhân_viên[],MATCH(INDEX(Chênh_lệch_nhân_viên[],ROW()-ROW(Chênh_lệch_nhân_viên[[#Headers],[Thg5]]),1),INDEX(Kế_hoạch_nhân_viên[],,1),0),MATCH(Chênh_lệch_nhân_viên[[#Headers],[Thg5]],Kế_hoạch_nhân_viên[#Headers],0))-INDEX(Thực_tế_nhân_viên[],MATCH(INDEX(Chênh_lệch_nhân_viên[],ROW()-ROW(Chênh_lệch_nhân_viên[[#Headers],[Thg5]]),1),INDEX(Kế_hoạch_nhân_viên[],,1),0),MATCH(Chênh_lệch_nhân_viên[[#Headers],[Thg5]],Thực_tế_nhân_viên[#Headers],0))","v":{"v":-135,"d":"-135.00 ₫"}},{"$f":"INDEX(Kế_hoạch_nhân_viên[],MATCH(INDEX(Chênh_lệch_nhân_viên[],ROW()-ROW(Chênh_lệch_nhân_viên[[#Headers],[Thg6]]),1),INDEX(Kế_hoạch_nhân_viên[],,1),0),MATCH(Chênh_lệch_nhân_viên[[#Headers],[Thg6]],Kế_hoạch_nhân_viên[#Headers],0))-INDEX(Thực_tế_nhân_viên[],MATCH(INDEX(Chênh_lệch_nhân_viên[],ROW()-ROW(Chênh_lệch_nhân_viên[[#Headers],[Thg6]]),1),INDEX(Kế_hoạch_nhân_viên[],,1),0),MATCH(Chênh_lệch_nhân_viên[[#Headers],[Thg6]],Thực_tế_nhân_viên[#Headers],0))","v":{"v":-135,"d":"-135.00 ₫"}},{"$f":"INDEX(Kế_hoạch_nhân_viên[],MATCH(INDEX(Chênh_lệch_nhân_viên[],ROW()-ROW(Chênh_lệch_nhân_viên[[#Headers],[Thg7]]),1),INDEX(Kế_hoạch_nhân_viên[],,1),0),MATCH(Chênh_lệch_nhân_viên[[#Headers],[Thg7]],Kế_hoạch_nhân_viên[#Headers],0))-INDEX(Thực_tế_nhân_viên[],MATCH(INDEX(Chênh_lệch_nhân_viên[],ROW()-ROW(Chênh_lệch_nhân_viên[[#Headers],[Thg7]]),1),INDEX(Kế_hoạch_nhân_viên[],,1),0),MATCH(Chênh_lệch_nhân_viên[[#Headers],[Thg7]],Thực_tế_nhân_viên[#Headers],0))","v":{"v":23625,"d":"23,625.00 ₫"}},{"$f":"INDEX(Kế_hoạch_nhân_viên[],MATCH(INDEX(Chênh_lệch_nhân_viên[],ROW()-ROW(Chênh_lệch_nhân_viên[[#Headers],[Thg8]]),1),INDEX(Kế_hoạch_nhân_viên[],,1),0),MATCH(Chênh_lệch_nhân_viên[[#Headers],[Thg8]],Kế_hoạch_nhân_viên[#Headers],0))-INDEX(Thực_tế_nhân_viên[],MATCH(INDEX(Chênh_lệch_nhân_viên[],ROW()-ROW(Chênh_lệch_nhân_viên[[#Headers],[Thg8]]),1),INDEX(Kế_hoạch_nhân_viên[],,1),0),MATCH(Chênh_lệch_nhân_viên[[#Headers],[Thg8]],Thực_tế_nhân_viên[#Headers],0))","v":{"v":24948,"d":"24,948.00 ₫"}},{"$f":"INDEX(Kế_hoạch_nhân_viên[],MATCH(INDEX(Chênh_lệch_nhân_viên[],ROW()-ROW(Chênh_lệch_nhân_viên[[#Headers],[Thg9]]),1),INDEX(Kế_hoạch_nhân_viên[],,1),0),MATCH(Chênh_lệch_nhân_viên[[#Headers],[Thg9]],Kế_hoạch_nhân_viên[#Headers],0))-INDEX(Thực_tế_nhân_viên[],MATCH(INDEX(Chênh_lệch_nhân_viên[],ROW()-ROW(Chênh_lệch_nhân_viên[[#Headers],[Thg9]]),1),INDEX(Kế_hoạch_nhân_viên[],,1),0),MATCH(Chênh_lệch_nhân_viên[[#Headers],[Thg9]],Thực_tế_nhân_viên[#Headers],0))","v":{"v":24948,"d":"24,948.00 ₫"}},{"$f":"INDEX(Kế_hoạch_nhân_viên[],MATCH(INDEX(Chênh_lệch_nhân_viên[],ROW()-ROW(Chênh_lệch_nhân_viên[[#Headers],[Thg10]]),1),INDEX(Kế_hoạch_nhân_viên[],,1),0),MATCH(Chênh_lệch_nhân_viên[[#Headers],[Thg10]],Kế_hoạch_nhân_viên[#Headers],0))-INDEX(Thực_tế_nhân_viên[],MATCH(INDEX(Chênh_lệch_nhân_viên[],ROW()-ROW(Chênh_lệch_nhân_viên[[#Headers],[Thg10]]),1),INDEX(Kế_hoạch_nhân_viên[],,1),0),MATCH(Chênh_lệch_nhân_viên[[#Headers],[Thg10]],Thực_tế_nhân_viên[#Headers],0))","v":{"v":24948,"d":"24,948.00 ₫"}},{"$f":"INDEX(Kế_hoạch_nhân_viên[],MATCH(INDEX(Chênh_lệch_nhân_viên[],ROW()-ROW(Chênh_lệch_nhân_viên[[#Headers],[Thg11]]),1),INDEX(Kế_hoạch_nhân_viên[],,1),0),MATCH(Chênh_lệch_nhân_viên[[#Headers],[Thg11]],Kế_hoạch_nhân_viên[#Headers],0))-INDEX(Thực_tế_nhân_viên[],MATCH(INDEX(Chênh_lệch_nhân_viên[],ROW()-ROW(Chênh_lệch_nhân_viên[[#Headers],[Thg11]]),1),INDEX(Kế_hoạch_nhân_viên[],,1),0),MATCH(Chênh_lệch_nhân_viên[[#Headers],[Thg11]],Thực_tế_nhân_viên[#Headers],0))","v":{"v":24948,"d":"24,948.00 ₫"}},{"$f":"INDEX(Kế_hoạch_nhân_viên[],MATCH(INDEX(Chênh_lệch_nhân_viên[],ROW()-ROW(Chênh_lệch_nhân_viên[[#Headers],[Thg12]]),1),INDEX(Kế_hoạch_nhân_viên[],,1),0),MATCH(Chênh_lệch_nhân_viên[[#Headers],[Thg12]],Kế_hoạch_nhân_viên[#Headers],0))-INDEX(Thực_tế_nhân_viên[],MATCH(INDEX(Chênh_lệch_nhân_viên[],ROW()-ROW(Chênh_lệch_nhân_viên[[#Headers],[Thg12]]),1),INDEX(Kế_hoạch_nhân_viên[],,1),0),MATCH(Chênh_lệch_nhân_viên[[#Headers],[Thg12]],Thực_tế_nhân_viên[#Headers],0))","v":{"v":24948,"d":"24,948.00 ₫"}},{"$f":"SUM(Chênh_lệch_nhân_viên[[#This Row],[Thg1]:[Thg12]])","v":{"v":147960,"d":"147,960.00 ₫"}}]
[null,"Tổng phụ",{"$f":"SUBTOTAL(109,Chênh_lệch_nhân_viên[Thg1])","v":{"v":0,"d":"0.00 ₫"}},{"$f":"SUBTOTAL(109,Chênh_lệch_nhân_viên[Thg2])","v":{"v":0,"d":"0.00 ₫"}},{"$f":"SUBTOTAL(109,Chênh_lệch_nhân_viên[Thg3])","v":{"v":0,"d":"0.00 ₫"}},{"$f":"SUBTOTAL(109,Chênh_lệch_nhân_viên[Thg4])","v":{"v":-635,"d":"-635.00 ₫"}},{"$f":"SUBTOTAL(109,Chênh_lệch_nhân_viên[Thg5])","v":{"v":-635,"d":"-635.00 ₫"}},{"$f":"SUBTOTAL(109,Chênh_lệch_nhân_viên[Thg6])","v":{"v":-635,"d":"-635.00 ₫"}},{"$f":"SUBTOTAL(109,Chênh_lệch_nhân_viên[Thg7])","v":{"v":111125,"d":"111,125.00 ₫"}},{"$f":"SUBTOTAL(109,Chênh_lệch_nhân_viên[Thg8])","v":{"v":117348,"d":"117,348.00 ₫"}},{"$f":"SUBTOTAL(109,Chênh_lệch_nhân_viên[Thg9])","v":{"v":117348,"d":"117,348.00 ₫"}},{"$f":"SUBTOTAL(109,Chênh_lệch_nhân_viên[Thg10])","v":{"v":117348,"d":"117,348.00 ₫"}},{"$f":"SUBTOTAL(109,Chênh_lệch_nhân_viên[Thg11])","v":{"v":117348,"d":"117,348.00 ₫"}},{"$f":"SUBTOTAL(109,Chênh_lệch_nhân_viên[Thg12])","v":{"v":117348,"d":"117,348.00 ₫"}},{"$f":"SUBTOTAL(109,Chênh_lệch_nhân_viên[NĂM])","v":{"v":695960,"d":"695,960.00 ₫"}}]
[]
["Chênh lệch Chi phí văn phòng được tính toán tự động trong bảng Chênh lệch văn phòng bắt đầu ở ô bên phải. Hướng dẫn tiếp theo nằm trong ô A21.","Chi phí văn phòng","Thg1","Thg2","Thg3","Thg4","Thg5","Thg6","Thg7","Thg8","Thg9","Thg10","Thg11","Thg12","NĂM"]
[null,"Thuê văn phòng",{"$f":"INDEX(Kế_hoạch_văn_phòng[],MATCH(INDEX(Chênh_lệch_văn_phòng[],ROW()-ROW(Chênh_lệch_văn_phòng[[#Headers],[Thg1]]),1),INDEX(Kế_hoạch_văn_phòng[],,1),0),MATCH(Chênh_lệch_văn_phòng[[#Headers],[Thg1]],Kế_hoạch_văn_phòng[#Headers],0))-INDEX(Thực_tế_văn_phòng[],MATCH(INDEX(Chênh_lệch_văn_phòng[],ROW()-ROW(Chênh_lệch_văn_phòng[[#Headers],[Thg1]]),1),INDEX(Kế_hoạch_văn_phòng[],,1),0),MATCH(Chênh_lệch_văn_phòng[[#Headers],[Thg1]],Thực_tế_văn_phòng[#Headers],0))","v":{"v":0,"d":"0.00 ₫"}},{"$f":"INDEX(Kế_hoạch_văn_phòng[],MATCH(INDEX(Chênh_lệch_văn_phòng[],ROW()-ROW(Chênh_lệch_văn_phòng[[#Headers],[Thg2]]),1),INDEX(Kế_hoạch_văn_phòng[],,1),0),MATCH(Chênh_lệch_văn_phòng[[#Headers],[Thg2]],Kế_hoạch_văn_phòng[#Headers],0))-INDEX(Thực_tế_văn_phòng[],MATCH(INDEX(Chênh_lệch_văn_phòng[],ROW()-ROW(Chênh_lệch_văn_phòng[[#Headers],[Thg2]]),1),INDEX(Kế_hoạch_văn_phòng[],,1),0),MATCH(Chênh_lệch_văn_phòng[[#Headers],[Thg2]],Thực_tế_văn_phòng[#Headers],0))","v":{"v":0,"d":"0.00 ₫"}},{"$f":"INDEX(Kế_hoạch_văn_phòng[],MATCH(INDEX(Chênh_lệch_văn_phòng[],ROW()-ROW(Chênh_lệch_văn_phòng[[#Headers],[Thg3]]),1),INDEX(Kế_hoạch_văn_phòng[],,1),0),MATCH(Chênh_lệch_văn_phòng[[#Headers],[Thg3]],Kế_hoạch_văn_phòng[#Headers],0))-INDEX(Thực_tế_văn_phòng[],MATCH(INDEX(Chênh_lệch_văn_phòng[],ROW()-ROW(Chênh_lệch_văn_phòng[[#Headers],[Thg3]]),1),INDEX(Kế_hoạch_văn_phòng[],,1),0),MATCH(Chênh_lệch_văn_phòng[[#Headers],[Thg3]],Thực_tế_văn_phòng[#Headers],0))","v":{"v":0,"d":"0.00 ₫"}},{"$f":"INDEX(Kế_hoạch_văn_phòng[],MATCH(INDEX(Chênh_lệch_văn_phòng[],ROW()-ROW(Chênh_lệch_văn_phòng[[#Headers],[Thg4]]),1),INDEX(Kế_hoạch_văn_phòng[],,1),0),MATCH(Chênh_lệch_văn_phòng[[#Headers],[Thg4]],Kế_hoạch_văn_phòng[#Headers],0))-INDEX(Thực_tế_văn_phòng[],MATCH(INDEX(Chênh_lệch_văn_phòng[],ROW()-ROW(Chênh_lệch_văn_phòng[[#Headers],[Thg4]]),1),INDEX(Kế_hoạch_văn_phòng[],,1),0),MATCH(Chênh_lệch_văn_phòng[[#Headers],[Thg4]],Thực_tế_văn_phòng[#Headers],0))","v":{"v":0,"d":"0.00 ₫"}},{"$f":"INDEX(Kế_hoạch_văn_phòng[],MATCH(INDEX(Chênh_lệch_văn_phòng[],ROW()-ROW(Chênh_lệch_văn_phòng[[#Headers],[Thg5]]),1),INDEX(Kế_hoạch_văn_phòng[],,1),0),MATCH(Chênh_lệch_văn_phòng[[#Headers],[Thg5]],Kế_hoạch_văn_phòng[#Headers],0))-INDEX(Thực_tế_văn_phòng[],MATCH(INDEX(Chênh_lệch_văn_phòng[],ROW()-ROW(Chênh_lệch_văn_phòng[[#Headers],[Thg5]]),1),INDEX(Kế_hoạch_văn_phòng[],,1),0),MATCH(Chênh_lệch_văn_phòng[[#Headers],[Thg5]],Thực_tế_văn_phòng[#Headers],0))","v":{"v":0,"d":"0.00 ₫"}},{"$f":"INDEX(Kế_hoạch_văn_phòng[],MATCH(INDEX(Chênh_lệch_văn_phòng[],ROW()-ROW(Chênh_lệch_văn_phòng[[#Headers],[Thg6]]),1),INDEX(Kế_hoạch_văn_phòng[],,1),0),MATCH(Chênh_lệch_văn_phòng[[#Headers],[Thg6]],Kế_hoạch_văn_phòng[#Headers],0))-INDEX(Thực_tế_văn_phòng[],MATCH(INDEX(Chênh_lệch_văn_phòng[],ROW()-ROW(Chênh_lệch_văn_phòng[[#Headers],[Thg6]]),1),INDEX(Kế_hoạch_văn_phòng[],,1),0),MATCH(Chênh_lệch_văn_phòng[[#Headers],[Thg6]],Thực_tế_văn_phòng[#Headers],0))","v":{"v":0,"d":"0.00 ₫"}},{"$f":"INDEX(Kế_hoạch_văn_phòng[],MATCH(INDEX(Chênh_lệch_văn_phòng[],ROW()-ROW(Chênh_lệch_văn_phòng[[#Headers],[Thg7]]),1),INDEX(Kế_hoạch_văn_phòng[],,1),0),MATCH(Chênh_lệch_văn_phòng[[#Headers],[Thg7]],Kế_hoạch_văn_phòng[#Headers],0))-INDEX(Thực_tế_văn_phòng[],MATCH(INDEX(Chênh_lệch_văn_phòng[],ROW()-ROW(Chênh_lệch_văn_phòng[[#Headers],[Thg7]]),1),INDEX(Kế_hoạch_văn_phòng[],,1),0),MATCH(Chênh_lệch_văn_phòng[[#Headers],[Thg7]],Thực_tế_văn_phòng[#Headers],0))","v":{"v":9800,"d":"9,800.00 ₫"}},{"$f":"INDEX(Kế_hoạch_văn_phòng[],MATCH(INDEX(Chênh_lệch_văn_phòng[],ROW()-ROW(Chênh_lệch_văn_phòng[[#Headers],[Thg8]]),1),INDEX(Kế_hoạch_văn_phòng[],,1),0),MATCH(Chênh_lệch_văn_phòng[[#Headers],[Thg8]],Kế_hoạch_văn_phòng[#Headers],0))-INDEX(Thực_tế_văn_phòng[],MATCH(INDEX(Chênh_lệch_văn_phòng[],ROW()-ROW(Chênh_lệch_văn_phòng[[#Headers],[Thg8]]),1),INDEX(Kế_hoạch_văn_phòng[],,1),0),MATCH(Chênh_lệch_văn_phòng[[#Headers],[Thg8]],Thực_tế_văn_phòng[#Headers],0))","v":{"v":9800,"d":"9,800.00 ₫"}},{"$f":"INDEX(Kế_hoạch_văn_phòng[],MATCH(INDEX(Chênh_lệch_văn_phòng[],ROW()-ROW(Chênh_lệch_văn_phòng[[#Headers],[Thg9]]),1),INDEX(Kế_hoạch_văn_phòng[],,1),0),MATCH(Chênh_lệch_văn_phòng[[#Headers],[Thg9]],Kế_hoạch_văn_phòng[#Headers],0))-INDEX(Thực_tế_văn_phòng[],MATCH(INDEX(Chênh_lệch_văn_phòng[],ROW()-ROW(Chênh_lệch_văn_phòng[[#Headers],[Thg9]]),1),INDEX(Kế_hoạch_văn_phòng[],,1),0),MATCH(Chênh_lệch_văn_phòng[[#Headers],[Thg9]],Thực_tế_văn_phòng[#Headers],0))","v":{"v":9800,"d":"9,800.00 ₫"}},{"$f":"INDEX(Kế_hoạch_văn_phòng[],MATCH(INDEX(Chênh_lệch_văn_phòng[],ROW()-ROW(Chênh_lệch_văn_phòng[[#Headers],[Thg10]]),1),INDEX(Kế_hoạch_văn_phòng[],,1),0),MATCH(Chênh_lệch_văn_phòng[[#Headers],[Thg10]],Kế_hoạch_văn_phòng[#Headers],0))-INDEX(Thực_tế_văn_phòng[],MATCH(INDEX(Chênh_lệch_văn_phòng[],ROW()-ROW(Chênh_lệch_văn_phòng[[#Headers],[Thg10]]),1),INDEX(Kế_hoạch_văn_phòng[],,1),0),MATCH(Chênh_lệch_văn_phòng[[#Headers],[Thg10]],Thực_tế_văn_phòng[#Headers],0))","v":{"v":9800,"d":"9,800.00 ₫"}},{"$f":"INDEX(Kế_hoạch_văn_phòng[],MATCH(INDEX(Chênh_lệch_văn_phòng[],ROW()-ROW(Chênh_lệch_văn_phòng[[#Headers],[Thg11]]),1),INDEX(Kế_hoạch_văn_phòng[],,1),0),MATCH(Chênh_lệch_văn_phòng[[#Headers],[Thg11]],Kế_hoạch_văn_phòng[#Headers],0))-INDEX(Thực_tế_văn_phòng[],MATCH(INDEX(Chênh_lệch_văn_phòng[],ROW()-ROW(Chênh_lệch_văn_phòng[[#Headers],[Thg11]]),1),INDEX(Kế_hoạch_văn_phòng[],,1),0),MATCH(Chênh_lệch_văn_phòng[[#Headers],[Thg11]],Thực_tế_văn_phòng[#Headers],0))","v":{"v":9800,"d":"9,800.00 ₫"}},{"$f":"INDEX(Kế_hoạch_văn_phòng[],MATCH(INDEX(Chênh_lệch_văn_phòng[],ROW()-ROW(Chênh_lệch_văn_phòng[[#Headers],[Thg12]]),1),INDEX(Kế_hoạch_văn_phòng[],,1),0),MATCH(Chênh_lệch_văn_phòng[[#Headers],[Thg12]],Kế_hoạch_văn_phòng[#Headers],0))-INDEX(Thực_tế_văn_phòng[],MATCH(INDEX(Chênh_lệch_văn_phòng[],ROW()-ROW(Chênh_lệch_văn_phòng[[#Headers],[Thg12]]),1),INDEX(Kế_hoạch_văn_phòng[],,1),0),MATCH(Chênh_lệch_văn_phòng[[#Headers],[Thg12]],Thực_tế_văn_phòng[#Headers],0))","v":{"v":9800,"d":"9,800.00 ₫"}},{"$f":"SUM(Chênh_lệch_văn_phòng[[#This Row],[Thg1]:[Thg12]])","v":{"v":58800,"d":"58,800.00 ₫"}}]
[null,"Khí đốt",{"$f":"INDEX(Kế_hoạch_văn_phòng[],MATCH(INDEX(Chênh_lệch_văn_phòng[],ROW()-ROW(Chênh_lệch_văn_phòng[[#Headers],[Thg1]]),1),INDEX(Kế_hoạch_văn_phòng[],,1),0),MATCH(Chênh_lệch_văn_phòng[[#Headers],[Thg1]],Kế_hoạch_văn_phòng[#Headers],0))-INDEX(Thực_tế_văn_phòng[],MATCH(INDEX(Chênh_lệch_văn_phòng[],ROW()-ROW(Chênh_lệch_văn_phòng[[#Headers],[Thg1]]),1),INDEX(Kế_hoạch_văn_phòng[],,1),0),MATCH(Chênh_lệch_văn_phòng[[#Headers],[Thg1]],Thực_tế_văn_phòng[#Headers],0))","v":{"v":-4,"d":"-4.00 ₫"}},{"$f":"INDEX(Kế_hoạch_văn_phòng[],MATCH(INDEX(Chênh_lệch_văn_phòng[],ROW()-ROW(Chênh_lệch_văn_phòng[[#Headers],[Thg2]]),1),INDEX(Kế_hoạch_văn_phòng[],,1),0),MATCH(Chênh_lệch_văn_phòng[[#Headers],[Thg2]],Kế_hoạch_văn_phòng[#Headers],0))-INDEX(Thực_tế_văn_phòng[],MATCH(INDEX(Chênh_lệch_văn_phòng[],ROW()-ROW(Chênh_lệch_văn_phòng[[#Headers],[Thg2]]),1),INDEX(Kế_hoạch_văn_phòng[],,1),0),MATCH(Chênh_lệch_văn_phòng[[#Headers],[Thg2]],Thực_tế_văn_phòng[#Headers],0))","v":{"v":-30,"d":"-30.00 ₫"}},{"$f":"INDEX(Kế_hoạch_văn_phòng[],MATCH(INDEX(Chênh_lệch_văn_phòng[],ROW()-ROW(Chênh_lệch_văn_phòng[[#Headers],[Thg3]]),1),INDEX(Kế_hoạch_văn_phòng[],,1),0),MATCH(Chênh_lệch_văn_phòng[[#Headers],[Thg3]],Kế_hoạch_văn_phòng[#Headers],0))-INDEX(Thực_tế_văn_phòng[],MATCH(INDEX(Chênh_lệch_văn_phòng[],ROW()-ROW(Chênh_lệch_văn_phòng[[#Headers],[Thg3]]),1),INDEX(Kế_hoạch_văn_phòng[],,1),0),MATCH(Chênh_lệch_văn_phòng[[#Headers],[Thg3]],Thực_tế_văn_phòng[#Headers],0))","v":{"v":15,"d":"15.00 ₫"}},{"$f":"INDEX(Kế_hoạch_văn_phòng[],MATCH(INDEX(Chênh_lệch_văn_phòng[],ROW()-ROW(Chênh_lệch_văn_phòng[[#Headers],[Thg4]]),1),INDEX(Kế_hoạch_văn_phòng[],,1),0),MATCH(Chênh_lệch_văn_phòng[[#Headers],[Thg4]],Kế_hoạch_văn_phòng[#Headers],0))-INDEX(Thực_tế_văn_phòng[],MATCH(INDEX(Chênh_lệch_văn_phòng[],ROW()-ROW(Chênh_lệch_văn_phòng[[#Headers],[Thg4]]),1),INDEX(Kế_hoạch_văn_phòng[],,1),0),MATCH(Chênh_lệch_văn_phòng[[#Headers],[Thg4]],Thực_tế_văn_phòng[#Headers],0))","v":{"v":-130,"d":"-130.00 ₫"}},{"$f":"INDEX(Kế_hoạch_văn_phòng[],MATCH(INDEX(Chênh_lệch_văn_phòng[],ROW()-ROW(Chênh_lệch_văn_phòng[[#Headers],[Thg5]]),1),INDEX(Kế_hoạch_văn_phòng[],,1),0),MATCH(Chênh_lệch_văn_phòng[[#Headers],[Thg5]],Kế_hoạch_văn_phòng[#Headers],0))-INDEX(Thực_tế_văn_phòng[],MATCH(INDEX(Chênh_lệch_văn_phòng[],ROW()-ROW(Chênh_lệch_văn_phòng[[#Headers],[Thg5]]),1),INDEX(Kế_hoạch_văn_phòng[],,1),0),MATCH(Chênh_lệch_văn_phòng[[#Headers],[Thg5]],Thực_tế_văn_phòng[#Headers],0))","v":{"v":13,"d":"13.00 ₫"}},{"$f":"INDEX(Kế_hoạch_văn_phòng[],MATCH(INDEX(Chênh_lệch_văn_phòng[],ROW()-ROW(Chênh_lệch_văn_phòng[[#Headers],[Thg6]]),1),INDEX(Kế_hoạch_văn_phòng[],,1),0),MATCH(Chênh_lệch_văn_phòng[[#Headers],[Thg6]],Kế_hoạch_văn_phòng[#Headers],0))-INDEX(Thực_tế_văn_phòng[],MATCH(INDEX(Chênh_lệch_văn_phòng[],ROW()-ROW(Chênh_lệch_văn_phòng[[#Headers],[Thg6]]),1),INDEX(Kế_hoạch_văn_phòng[],,1),0),MATCH(Chênh_lệch_văn_phòng[[#Headers],[Thg6]],Thực_tế_văn_phòng[#Headers],0))","v":{"v":12,"d":"12.00 ₫"}},{"$f":"INDEX(Kế_hoạch_văn_phòng[],MATCH(INDEX(Chênh_lệch_văn_phòng[],ROW()-ROW(Chênh_lệch_văn_phòng[[#Headers],[Thg7]]),1),INDEX(Kế_hoạch_văn_phòng[],,1),0),MATCH(Chênh_lệch_văn_phòng[[#Headers],[Thg7]],Kế_hoạch_văn_phòng[#Headers],0))-INDEX(Thực_tế_văn_phòng[],MATCH(INDEX(Chênh_lệch_văn_phòng[],ROW()-ROW(Chênh_lệch_văn_phòng[[#Headers],[Thg7]]),1),INDEX(Kế_hoạch_văn_phòng[],,1),0),MATCH(Chênh_lệch_văn_phòng[[#Headers],[Thg7]],Thực_tế_văn_phòng[#Headers],0))","v":{"v":100,"d":"100.00 ₫"}},{"$f":"INDEX(Kế_hoạch_văn_phòng[],MATCH(INDEX(Chênh_lệch_văn_phòng[],ROW()-ROW(Chênh_lệch_văn_phòng[[#Headers],[Thg8]]),1),INDEX(Kế_hoạch_văn_phòng[],,1),0),MATCH(Chênh_lệch_văn_phòng[[#Headers],[Thg8]],Kế_hoạch_văn_phòng[#Headers],0))-INDEX(Thực_tế_văn_phòng[],MATCH(INDEX(Chênh_lệch_văn_phòng[],ROW()-ROW(Chênh_lệch_văn_phòng[[#Headers],[Thg8]]),1),INDEX(Kế_hoạch_văn_phòng[],,1),0),MATCH(Chênh_lệch_văn_phòng[[#Headers],[Thg8]],Thực_tế_văn_phòng[#Headers],0))","v":{"v":100,"d":"100.00 ₫"}},{"$f":"INDEX(Kế_hoạch_văn_phòng[],MATCH(INDEX(Chênh_lệch_văn_phòng[],ROW()-ROW(Chênh_lệch_văn_phòng[[#Headers],[Thg9]]),1),INDEX(Kế_hoạch_văn_phòng[],,1),0),MATCH(Chênh_lệch_văn_phòng[[#Headers],[Thg9]],Kế_hoạch_văn_phòng[#Headers],0))-INDEX(Thực_tế_văn_phòng[],MATCH(INDEX(Chênh_lệch_văn_phòng[],ROW()-ROW(Chênh_lệch_văn_phòng[[#Headers],[Thg9]]),1),INDEX(Kế_hoạch_văn_phòng[],,1),0),MATCH(Chênh_lệch_văn_phòng[[#Headers],[Thg9]],Thực_tế_văn_phòng[#Headers],0))","v":{"v":100,"d":"100.00 ₫"}},{"$f":"INDEX(Kế_hoạch_văn_phòng[],MATCH(INDEX(Chênh_lệch_văn_phòng[],ROW()-ROW(Chênh_lệch_văn_phòng[[#Headers],[Thg10]]),1),INDEX(Kế_hoạch_văn_phòng[],,1),0),MATCH(Chênh_lệch_văn_phòng[[#Headers],[Thg10]],Kế_hoạch_văn_phòng[#Headers],0))-INDEX(Thực_tế_văn_phòng[],MATCH(INDEX(Chênh_lệch_văn_phòng[],ROW()-ROW(Chênh_lệch_văn_phòng[[#Headers],[Thg10]]),1),INDEX(Kế_hoạch_văn_phòng[],,1),0),MATCH(Chênh_lệch_văn_phòng[[#Headers],[Thg10]],Thực_tế_văn_phòng[#Headers],0))","v":{"v":100,"d":"100.00 ₫"}},{"$f":"INDEX(Kế_hoạch_văn_phòng[],MATCH(INDEX(Chênh_lệch_văn_phòng[],ROW()-ROW(Chênh_lệch_văn_phòng[[#Headers],[Thg11]]),1),INDEX(Kế_hoạch_văn_phòng[],,1),0),MATCH(Chênh_lệch_văn_phòng[[#Headers],[Thg11]],Kế_hoạch_văn_phòng[#Headers],0))-INDEX(Thực_tế_văn_phòng[],MATCH(INDEX(Chênh_lệch_văn_phòng[],ROW()-ROW(Chênh_lệch_văn_phòng[[#Headers],[Thg11]]),1),INDEX(Kế_hoạch_văn_phòng[],,1),0),MATCH(Chênh_lệch_văn_phòng[[#Headers],[Thg11]],Thực_tế_văn_phòng[#Headers],0))","v":{"v":400,"d":"400.00 ₫"}},{"$f":"INDEX(Kế_hoạch_văn_phòng[],MATCH(INDEX(Chênh_lệch_văn_phòng[],ROW()-ROW(Chênh_lệch_văn_phòng[[#Headers],[Thg12]]),1),INDEX(Kế_hoạch_văn_phòng[],,1),0),MATCH(Chênh_lệch_văn_phòng[[#Headers],[Thg12]],Kế_hoạch_văn_phòng[#Headers],0))-INDEX(Thực_tế_văn_phòng[],MATCH(INDEX(Chênh_lệch_văn_phòng[],ROW()-ROW(Chênh_lệch_văn_phòng[[#Headers],[Thg12]]),1),INDEX(Kế_hoạch_văn_phòng[],,1),0),MATCH(Chênh_lệch_văn_phòng[[#Headers],[Thg12]],Thực_tế_văn_phòng[#Headers],0))","v":{"v":400,"d":"400.00 ₫"}},{"$f":"SUM(Chênh_lệch_văn_phòng[[#This Row],[Thg1]:[Thg12]])","v":{"v":1076,"d":"1,076.00 ₫"}}]
[null,"Điện",{"$f":"INDEX(Kế_hoạch_văn_phòng[],MATCH(INDEX(Chênh_lệch_văn_phòng[],ROW()-ROW(Chênh_lệch_văn_phòng[[#Headers],[Thg1]]),1),INDEX(Kế_hoạch_văn_phòng[],,1),0),MATCH(Chênh_lệch_văn_phòng[[#Headers],[Thg1]],Kế_hoạch_văn_phòng[#Headers],0))-INDEX(Thực_tế_văn_phòng[],MATCH(INDEX(Chênh_lệch_văn_phòng[],ROW()-ROW(Chênh_lệch_văn_phòng[[#Headers],[Thg1]]),1),INDEX(Kế_hoạch_văn_phòng[],,1),0),MATCH(Chênh_lệch_văn_phòng[[#Headers],[Thg1]],Thực_tế_văn_phòng[#Headers],0))","v":{"v":12,"d":"12.00 ₫"}},{"$f":"INDEX(Kế_hoạch_văn_phòng[],MATCH(INDEX(Chênh_lệch_văn_phòng[],ROW()-ROW(Chênh_lệch_văn_phòng[[#Headers],[Thg2]]),1),INDEX(Kế_hoạch_văn_phòng[],,1),0),MATCH(Chênh_lệch_văn_phòng[[#Headers],[Thg2]],Kế_hoạch_văn_phòng[#Headers],0))-INDEX(Thực_tế_văn_phòng[],MATCH(INDEX(Chênh_lệch_văn_phòng[],ROW()-ROW(Chênh_lệch_văn_phòng[[#Headers],[Thg2]]),1),INDEX(Kế_hoạch_văn_phòng[],,1),0),MATCH(Chênh_lệch_văn_phòng[[#Headers],[Thg2]],Thực_tế_văn_phòng[#Headers],0))","v":{"v":22,"d":"22.00 ₫"}},{"$f":"INDEX(Kế_hoạch_văn_phòng[],MATCH(INDEX(Chênh_lệch_văn_phòng[],ROW()-ROW(Chênh_lệch_văn_phòng[[#Headers],[Thg3]]),1),INDEX(Kế_hoạch_văn_phòng[],,1),0),MATCH(Chênh_lệch_văn_phòng[[#Headers],[Thg3]],Kế_hoạch_văn_phòng[#Headers],0))-INDEX(Thực_tế_văn_phòng[],MATCH(INDEX(Chênh_lệch_văn_phòng[],ROW()-ROW(Chênh_lệch_văn_phòng[[#Headers],[Thg3]]),1),INDEX(Kế_hoạch_văn_phòng[],,1),0),MATCH(Chênh_lệch_văn_phòng[[#Headers],[Thg3]],Thực_tế_văn_phòng[#Headers],0))","v":{"v":32,"d":"32.00 ₫"}},{"$f":"INDEX(Kế_hoạch_văn_phòng[],MATCH(INDEX(Chênh_lệch_văn_phòng[],ROW()-ROW(Chênh_lệch_văn_phòng[[#Headers],[Thg4]]),1),INDEX(Kế_hoạch_văn_phòng[],,1),0),MATCH(Chênh_lệch_văn_phòng[[#Headers],[Thg4]],Kế_hoạch_văn_phòng[#Headers],0))-INDEX(Thực_tế_văn_phòng[],MATCH(INDEX(Chênh_lệch_văn_phòng[],ROW()-ROW(Chênh_lệch_văn_phòng[[#Headers],[Thg4]]),1),INDEX(Kế_hoạch_văn_phòng[],,1),0),MATCH(Chênh_lệch_văn_phòng[[#Headers],[Thg4]],Thực_tế_văn_phòng[#Headers],0))","v":{"v":1,"d":"1.00 ₫"}},{"$f":"INDEX(Kế_hoạch_văn_phòng[],MATCH(INDEX(Chênh_lệch_văn_phòng[],ROW()-ROW(Chênh_lệch_văn_phòng[[#Headers],[Thg5]]),1),INDEX(Kế_hoạch_văn_phòng[],,1),0),MATCH(Chênh_lệch_văn_phòng[[#Headers],[Thg5]],Kế_hoạch_văn_phòng[#Headers],0))-INDEX(Thực_tế_văn_phòng[],MATCH(INDEX(Chênh_lệch_văn_phòng[],ROW()-ROW(Chênh_lệch_văn_phòng[[#Headers],[Thg5]]),1),INDEX(Kế_hoạch_văn_phòng[],,1),0),MATCH(Chênh_lệch_văn_phòng[[#Headers],[Thg5]],Thực_tế_văn_phòng[#Headers],0))","v":{"v":-6,"d":"-6.00 ₫"}},{"$f":"INDEX(Kế_hoạch_văn_phòng[],MATCH(INDEX(Chênh_lệch_văn_phòng[],ROW()-ROW(Chênh_lệch_văn_phòng[[#Headers],[Thg6]]),1),INDEX(Kế_hoạch_văn_phòng[],,1),0),MATCH(Chênh_lệch_văn_phòng[[#Headers],[Thg6]],Kế_hoạch_văn_phòng[#Headers],0))-INDEX(Thực_tế_văn_phòng[],MATCH(INDEX(Chênh_lệch_văn_phòng[],ROW()-ROW(Chênh_lệch_văn_phòng[[#Headers],[Thg6]]),1),INDEX(Kế_hoạch_văn_phòng[],,1),0),MATCH(Chênh_lệch_văn_phòng[[#Headers],[Thg6]],Thực_tế_văn_phòng[#Headers],0))","v":{"v":10,"d":"10.00 ₫"}},{"$f":"INDEX(Kế_hoạch_văn_phòng[],MATCH(INDEX(Chênh_lệch_văn_phòng[],ROW()-ROW(Chênh_lệch_văn_phòng[[#Headers],[Thg7]]),1),INDEX(Kế_hoạch_văn_phòng[],,1),0),MATCH(Chênh_lệch_văn_phòng[[#Headers],[Thg7]],Kế_hoạch_văn_phòng[#Headers],0))-INDEX(Thực_tế_văn_phòng[],MATCH(INDEX(Chênh_lệch_văn_phòng[],ROW()-ROW(Chênh_lệch_văn_phòng[[#Headers],[Thg7]]),1),INDEX(Kế_hoạch_văn_phòng[],,1),0),MATCH(Chênh_lệch_văn_phòng[[#Headers],[Thg7]],Thực_tế_văn_phòng[#Headers],0))","v":{"v":300,"d":"300.00 ₫"}},{"$f":"INDEX(Kế_hoạch_văn_phòng[],MATCH(INDEX(Chênh_lệch_văn_phòng[],ROW()-ROW(Chênh_lệch_văn_phòng[[#Headers],[Thg8]]),1),INDEX(Kế_hoạch_văn_phòng[],,1),0),MATCH(Chênh_lệch_văn_phòng[[#Headers],[Thg8]],Kế_hoạch_văn_phòng[#Headers],0))-INDEX(Thực_tế_văn_phòng[],MATCH(INDEX(Chênh_lệch_văn_phòng[],ROW()-ROW(Chênh_lệch_văn_phòng[[#Headers],[Thg8]]),1),INDEX(Kế_hoạch_văn_phòng[],,1),0),MATCH(Chênh_lệch_văn_phòng[[#Headers],[Thg8]],Thực_tế_văn_phòng[#Headers],0))","v":{"v":300,"d":"300.00 ₫"}},{"$f":"INDEX(Kế_hoạch_văn_phòng[],MATCH(INDEX(Chênh_lệch_văn_phòng[],ROW()-ROW(Chênh_lệch_văn_phòng[[#Headers],[Thg9]]),1),INDEX(Kế_hoạch_văn_phòng[],,1),0),MATCH(Chênh_lệch_văn_phòng[[#Headers],[Thg9]],Kế_hoạch_văn_phòng[#Headers],0))-INDEX(Thực_tế_văn_phòng[],MATCH(INDEX(Chênh_lệch_văn_phòng[],ROW()-ROW(Chênh_lệch_văn_phòng[[#Headers],[Thg9]]),1),INDEX(Kế_hoạch_văn_phòng[],,1),0),MATCH(Chênh_lệch_văn_phòng[[#Headers],[Thg9]],Thực_tế_văn_phòng[#Headers],0))","v":{"v":300,"d":"300.00 ₫"}},{"$f":"INDEX(Kế_hoạch_văn_phòng[],MATCH(INDEX(Chênh_lệch_văn_phòng[],ROW()-ROW(Chênh_lệch_văn_phòng[[#Headers],[Thg10]]),1),INDEX(Kế_hoạch_văn_phòng[],,1),0),MATCH(Chênh_lệch_văn_phòng[[#Headers],[Thg10]],Kế_hoạch_văn_phòng[#Headers],0))-INDEX(Thực_tế_văn_phòng[],MATCH(INDEX(Chênh_lệch_văn_phòng[],ROW()-ROW(Chênh_lệch_văn_phòng[[#Headers],[Thg10]]),1),INDEX(Kế_hoạch_văn_phòng[],,1),0),MATCH(Chênh_lệch_văn_phòng[[#Headers],[Thg10]],Thực_tế_văn_phòng[#Headers],0))","v":{"v":300,"d":"300.00 ₫"}},{"$f":"INDEX(Kế_hoạch_văn_phòng[],MATCH(INDEX(Chênh_lệch_văn_phòng[],ROW()-ROW(Chênh_lệch_văn_phòng[[#Headers],[Thg11]]),1),INDEX(Kế_hoạch_văn_phòng[],,1),0),MATCH(Chênh_lệch_văn_phòng[[#Headers],[Thg11]],Kế_hoạch_văn_phòng[#Headers],0))-INDEX(Thực_tế_văn_phòng[],MATCH(INDEX(Chênh_lệch_văn_phòng[],ROW()-ROW(Chênh_lệch_văn_phòng[[#Headers],[Thg11]]),1),INDEX(Kế_hoạch_văn_phòng[],,1),0),MATCH(Chênh_lệch_văn_phòng[[#Headers],[Thg11]],Thực_tế_văn_phòng[#Headers],0))","v":{"v":300,"d":"300.00 ₫"}},{"$f":"INDEX(Kế_hoạch_văn_phòng[],MATCH(INDEX(Chênh_lệch_văn_phòng[],ROW()-ROW(Chênh_lệch_văn_phòng[[#Headers],[Thg12]]),1),INDEX(Kế_hoạch_văn_phòng[],,1),0),MATCH(Chênh_lệch_văn_phòng[[#Headers],[Thg12]],Kế_hoạch_văn_phòng[#Headers],0))-INDEX(Thực_tế_văn_phòng[],MATCH(INDEX(Chênh_lệch_văn_phòng[],ROW()-ROW(Chênh_lệch_văn_phòng[[#Headers],[Thg12]]),1),INDEX(Kế_hoạch_văn_phòng[],,1),0),MATCH(Chênh_lệch_văn_phòng[[#Headers],[Thg12]],Thực_tế_văn_phòng[#Headers],0))","v":{"v":300,"d":"300.00 ₫"}},{"$f":"SUM(Chênh_lệch_văn_phòng[[#This Row],[Thg1]:[Thg12]])","v":{"v":1871,"d":"1,871.00 ₫"}}]
[null,"Nước",{"$f":"INDEX(Kế_hoạch_văn_phòng[],MATCH(INDEX(Chênh_lệch_văn_phòng[],ROW()-ROW(Chênh_lệch_văn_phòng[[#Headers],[Thg1]]),1),INDEX(Kế_hoạch_văn_phòng[],,1),0),MATCH(Chênh_lệch_văn_phòng[[#Headers],[Thg1]],Kế_hoạch_văn_phòng[#Headers],0))-INDEX(Thực_tế_văn_phòng[],MATCH(INDEX(Chênh_lệch_văn_phòng[],ROW()-ROW(Chênh_lệch_văn_phòng[[#Headers],[Thg1]]),1),INDEX(Kế_hoạch_văn_phòng[],,1),0),MATCH(Chênh_lệch_văn_phòng[[#Headers],[Thg1]],Thực_tế_văn_phòng[#Headers],0))","v":{"v":5,"d":"5.00 ₫"}},{"$f":"INDEX(Kế_hoạch_văn_phòng[],MATCH(INDEX(Chênh_lệch_văn_phòng[],ROW()-ROW(Chênh_lệch_văn_phòng[[#Headers],[Thg2]]),1),INDEX(Kế_hoạch_văn_phòng[],,1),0),MATCH(Chênh_lệch_văn_phòng[[#Headers],[Thg2]],Kế_hoạch_văn_phòng[#Headers],0))-INDEX(Thực_tế_văn_phòng[],MATCH(INDEX(Chênh_lệch_văn_phòng[],ROW()-ROW(Chênh_lệch_văn_phòng[[#Headers],[Thg2]]),1),INDEX(Kế_hoạch_văn_phòng[],,1),0),MATCH(Chênh_lệch_văn_phòng[[#Headers],[Thg2]],Thực_tế_văn_phòng[#Headers],0))","v":{"v":7,"d":"7.00 ₫"}},{"$f":"INDEX(Kế_hoạch_văn_phòng[],MATCH(INDEX(Chênh_lệch_văn_phòng[],ROW()-ROW(Chênh_lệch_văn_phòng[[#Headers],[Thg3]]),1),INDEX(Kế_hoạch_văn_phòng[],,1),0),MATCH(Chênh_lệch_văn_phòng[[#Headers],[Thg3]],Kế_hoạch_văn_phòng[#Headers],0))-INDEX(Thực_tế_văn_phòng[],MATCH(INDEX(Chênh_lệch_văn_phòng[],ROW()-ROW(Chênh_lệch_văn_phòng[[#Headers],[Thg3]]),1),INDEX(Kế_hoạch_văn_phòng[],,1),0),MATCH(Chênh_lệch_văn_phòng[[#Headers],[Thg3]],Thực_tế_văn_phòng[#Headers],0))","v":{"v":6,"d":"6.00 ₫"}},{"$f":"INDEX(Kế_hoạch_văn_phòng[],MATCH(INDEX(Chênh_lệch_văn_phòng[],ROW()-ROW(Chênh_lệch_văn_phòng[[#Headers],[Thg4]]),1),INDEX(Kế_hoạch_văn_phòng[],,1),0),MATCH(Chênh_lệch_văn_phòng[[#Headers],[Thg4]],Kế_hoạch_văn_phòng[#Headers],0))-INDEX(Thực_tế_văn_phòng[],MATCH(INDEX(Chênh_lệch_văn_phòng[],ROW()-ROW(Chênh_lệch_văn_phòng[[#Headers],[Thg4]]),1),INDEX(Kế_hoạch_văn_phòng[],,1),0),MATCH(Chênh_lệch_văn_phòng[[#Headers],[Thg4]],Thực_tế_văn_phòng[#Headers],0))","v":{"v":4,"d":"4.00 ₫"}},{"$f":"INDEX(Kế_hoạch_văn_phòng[],MATCH(INDEX(Chênh_lệch_văn_phòng[],ROW()-ROW(Chênh_lệch_văn_phòng[[#Headers],[Thg5]]),1),INDEX(Kế_hoạch_văn_phòng[],,1),0),MATCH(Chênh_lệch_văn_phòng[[#Headers],[Thg5]],Kế_hoạch_văn_phòng[#Headers],0))-INDEX(Thực_tế_văn_phòng[],MATCH(INDEX(Chênh_lệch_văn_phòng[],ROW()-ROW(Chênh_lệch_văn_phòng[[#Headers],[Thg5]]),1),INDEX(Kế_hoạch_văn_phòng[],,1),0),MATCH(Chênh_lệch_văn_phòng[[#Headers],[Thg5]],Thực_tế_văn_phòng[#Headers],0))","v":{"v":6,"d":"6.00 ₫"}},{"$f":"INDEX(Kế_hoạch_văn_phòng[],MATCH(INDEX(Chênh_lệch_văn_phòng[],ROW()-ROW(Chênh_lệch_văn_phòng[[#Headers],[Thg6]]),1),INDEX(Kế_hoạch_văn_phòng[],,1),0),MATCH(Chênh_lệch_văn_phòng[[#Headers],[Thg6]],Kế_hoạch_văn_phòng[#Headers],0))-INDEX(Thực_tế_văn_phòng[],MATCH(INDEX(Chênh_lệch_văn_phòng[],ROW()-ROW(Chênh_lệch_văn_phòng[[#Headers],[Thg6]]),1),INDEX(Kế_hoạch_văn_phòng[],,1),0),MATCH(Chênh_lệch_văn_phòng[[#Headers],[Thg6]],Thực_tế_văn_phòng[#Headers],0))","v":{"v":4,"d":"4.00 ₫"}},{"$f":"INDEX(Kế_hoạch_văn_phòng[],MATCH(INDEX(Chênh_lệch_văn_phòng[],ROW()-ROW(Chênh_lệch_văn_phòng[[#Headers],[Thg7]]),1),INDEX(Kế_hoạch_văn_phòng[],,1),0),MATCH(Chênh_lệch_văn_phòng[[#Headers],[Thg7]],Kế_hoạch_văn_phòng[#Headers],0))-INDEX(Thực_tế_văn_phòng[],MATCH(INDEX(Chênh_lệch_văn_phòng[],ROW()-ROW(Chênh_lệch_văn_phòng[[#Headers],[Thg7]]),1),INDEX(Kế_hoạch_văn_phòng[],,1),0),MATCH(Chênh_lệch_văn_phòng[[#Headers],[Thg7]],Thực_tế_văn_phòng[#Headers],0))","v":{"v":40,"d":"40.00 ₫"}},{"$f":"INDEX(Kế_hoạch_văn_phòng[],MATCH(INDEX(Chênh_lệch_văn_phòng[],ROW()-ROW(Chênh_lệch_văn_phòng[[#Headers],[Thg8]]),1),INDEX(Kế_hoạch_văn_phòng[],,1),0),MATCH(Chênh_lệch_văn_phòng[[#Headers],[Thg8]],Kế_hoạch_văn_phòng[#Headers],0))-INDEX(Thực_tế_văn_phòng[],MATCH(INDEX(Chênh_lệch_văn_phòng[],ROW()-ROW(Chênh_lệch_văn_phòng[[#Headers],[Thg8]]),1),INDEX(Kế_hoạch_văn_phòng[],,1),0),MATCH(Chênh_lệch_văn_phòng[[#Headers],[Thg8]],Thực_tế_văn_phòng[#Headers],0))","v":{"v":40,"d":"40.00 ₫"}},{"$f":"INDEX(Kế_hoạch_văn_phòng[],MATCH(INDEX(Chênh_lệch_văn_phòng[],ROW()-ROW(Chênh_lệch_văn_phòng[[#Headers],[Thg9]]),1),INDEX(Kế_hoạch_văn_phòng[],,1),0),MATCH(Chênh_lệch_văn_phòng[[#Headers],[Thg9]],Kế_hoạch_văn_phòng[#Headers],0))-INDEX(Thực_tế_văn_phòng[],MATCH(INDEX(Chênh_lệch_văn_phòng[],ROW()-ROW(Chênh_lệch_văn_phòng[[#Headers],[Thg9]]),1),INDEX(Kế_hoạch_văn_phòng[],,1),0),MATCH(Chênh_lệch_văn_phòng[[#Headers],[Thg9]],Thực_tế_văn_phòng[#Headers],0))","v":{"v":40,"d":"40.00 ₫"}},{"$f":"INDEX(Kế_hoạch_văn_phòng[],MATCH(INDEX(Chênh_lệch_văn_phòng[],ROW()-ROW(Chênh_lệch_văn_phòng[[#Headers],[Thg10]]),1),INDEX(Kế_hoạch_văn_phòng[],,1),0),MATCH(Chênh_lệch_văn_phòng[[#Headers],[Thg10]],Kế_hoạch_văn_phòng[#Headers],0))-INDEX(Thực_tế_văn_phòng[],MATCH(INDEX(Chênh_lệch_văn_phòng[],ROW()-ROW(Chênh_lệch_văn_phòng[[#Headers],[Thg10]]),1),INDEX(Kế_hoạch_văn_phòng[],,1),0),MATCH(Chênh_lệch_văn_phòng[[#Headers],[Thg10]],Thực_tế_văn_phòng[#Headers],0))","v":{"v":40,"d":"40.00 ₫"}},{"$f":"INDEX(Kế_hoạch_văn_phòng[],MATCH(INDEX(Chênh_lệch_văn_phòng[],ROW()-ROW(Chênh_lệch_văn_phòng[[#Headers],[Thg11]]),1),INDEX(Kế_hoạch_văn_phòng[],,1),0),MATCH(Chênh_lệch_văn_phòng[[#Headers],[Thg11]],Kế_hoạch_văn_phòng[#Headers],0))-INDEX(Thực_tế_văn_phòng[],MATCH(INDEX(Chênh_lệch_văn_phòng[],ROW()-ROW(Chênh_lệch_văn_phòng[[#Headers],[Thg11]]),1),INDEX(Kế_hoạch_văn_phòng[],,1),0),MATCH(Chênh_lệch_văn_phòng[[#Headers],[Thg11]],Thực_tế_văn_phòng[#Headers],0))","v":{"v":40,"d":"40.00 ₫"}},{"$f":"INDEX(Kế_hoạch_văn_phòng[],MATCH(INDEX(Chênh_lệch_văn_phòng[],ROW()-ROW(Chênh_lệch_văn_phòng[[#Headers],[Thg12]]),1),INDEX(Kế_hoạch_văn_phòng[],,1),0),MATCH(Chênh_lệch_văn_phòng[[#Headers],[Thg12]],Kế_hoạch_văn_phòng[#Headers],0))-INDEX(Thực_tế_văn_phòng[],MATCH(INDEX(Chênh_lệch_văn_phòng[],ROW()-ROW(Chênh_lệch_văn_phòng[[#Headers],[Thg12]]),1),INDEX(Kế_hoạch_văn_phòng[],,1),0),MATCH(Chênh_lệch_văn_phòng[[#Headers],[Thg12]],Thực_tế_văn_phòng[#Headers],0))","v":{"v":40,"d":"40.00 ₫"}},{"$f":"SUM(Chênh_lệch_văn_phòng[[#This Row],[Thg1]:[Thg12]])","v":{"v":272,"d":"272.00 ₫"}}]
[null,"Điện thoại",{"$f":"INDEX(Kế_hoạch_văn_phòng[],MATCH(INDEX(Chênh_lệch_văn_phòng[],ROW()-ROW(Chênh_lệch_văn_phòng[[#Headers],[Thg1]]),1),INDEX(Kế_hoạch_văn_phòng[],,1),0),MATCH(Chênh_lệch_văn_phòng[[#Headers],[Thg1]],Kế_hoạch_văn_phòng[#Headers],0))-INDEX(Thực_tế_văn_phòng[],MATCH(INDEX(Chênh_lệch_văn_phòng[],ROW()-ROW(Chênh_lệch_văn_phòng[[#Headers],[Thg1]]),1),INDEX(Kế_hoạch_văn_phòng[],,1),0),MATCH(Chênh_lệch_văn_phòng[[#Headers],[Thg1]],Thực_tế_văn_phòng[#Headers],0))","v":{"v":26,"d":"26.00 ₫"}},{"$f":"INDEX(Kế_hoạch_văn_phòng[],MATCH(INDEX(Chênh_lệch_văn_phòng[],ROW()-ROW(Chênh_lệch_văn_phòng[[#Headers],[Thg2]]),1),INDEX(Kế_hoạch_văn_phòng[],,1),0),MATCH(Chênh_lệch_văn_phòng[[#Headers],[Thg2]],Kế_hoạch_văn_phòng[#Headers],0))-INDEX(Thực_tế_văn_phòng[],MATCH(INDEX(Chênh_lệch_văn_phòng[],ROW()-ROW(Chênh_lệch_văn_phòng[[#Headers],[Thg2]]),1),INDEX(Kế_hoạch_văn_phòng[],,1),0),MATCH(Chênh_lệch_văn_phòng[[#Headers],[Thg2]],Thực_tế_văn_phòng[#Headers],0))","v":{"v":15,"d":"15.00 ₫"}},{"$f":"INDEX(Kế_hoạch_văn_phòng[],MATCH(INDEX(Chênh_lệch_văn_phòng[],ROW()-ROW(Chênh_lệch_văn_phòng[[#Headers],[Thg3]]),1),INDEX(Kế_hoạch_văn_phòng[],,1),0),MATCH(Chênh_lệch_văn_phòng[[#Headers],[Thg3]],Kế_hoạch_văn_phòng[#Headers],0))-INDEX(Thực_tế_văn_phòng[],MATCH(INDEX(Chênh_lệch_văn_phòng[],ROW()-ROW(Chênh_lệch_văn_phòng[[#Headers],[Thg3]]),1),INDEX(Kế_hoạch_văn_phòng[],,1),0),MATCH(Chênh_lệch_văn_phòng[[#Headers],[Thg3]],Thực_tế_văn_phòng[#Headers],0))","v":{"v":-15,"d":"-15.00 ₫"}},{"$f":"INDEX(Kế_hoạch_văn_phòng[],MATCH(INDEX(Chênh_lệch_văn_phòng[],ROW()-ROW(Chênh_lệch_văn_phòng[[#Headers],[Thg4]]),1),INDEX(Kế_hoạch_văn_phòng[],,1),0),MATCH(Chênh_lệch_văn_phòng[[#Headers],[Thg4]],Kế_hoạch_văn_phòng[#Headers],0))-INDEX(Thực_tế_văn_phòng[],MATCH(INDEX(Chênh_lệch_văn_phòng[],ROW()-ROW(Chênh_lệch_văn_phòng[[#Headers],[Thg4]]),1),INDEX(Kế_hoạch_văn_phòng[],,1),0),MATCH(Chênh_lệch_văn_phòng[[#Headers],[Thg4]],Thực_tế_văn_phòng[#Headers],0))","v":{"v":5,"d":"5.00 ₫"}},{"$f":"INDEX(Kế_hoạch_văn_phòng[],MATCH(INDEX(Chênh_lệch_văn_phòng[],ROW()-ROW(Chênh_lệch_văn_phòng[[#Headers],[Thg5]]),1),INDEX(Kế_hoạch_văn_phòng[],,1),0),MATCH(Chênh_lệch_văn_phòng[[#Headers],[Thg5]],Kế_hoạch_văn_phòng[#Headers],0))-INDEX(Thực_tế_văn_phòng[],MATCH(INDEX(Chênh_lệch_văn_phòng[],ROW()-ROW(Chênh_lệch_văn_phòng[[#Headers],[Thg5]]),1),INDEX(Kế_hoạch_văn_phòng[],,1),0),MATCH(Chênh_lệch_văn_phòng[[#Headers],[Thg5]],Thực_tế_văn_phòng[#Headers],0))","v":{"v":5,"d":"5.00 ₫"}},{"$f":"INDEX(Kế_hoạch_văn_phòng[],MATCH(INDEX(Chênh_lệch_văn_phòng[],ROW()-ROW(Chênh_lệch_văn_phòng[[#Headers],[Thg6]]),1),INDEX(Kế_hoạch_văn_phòng[],,1),0),MATCH(Chênh_lệch_văn_phòng[[#Headers],[Thg6]],Kế_hoạch_văn_phòng[#Headers],0))-INDEX(Thực_tế_văn_phòng[],MATCH(INDEX(Chênh_lệch_văn_phòng[],ROW()-ROW(Chênh_lệch_văn_phòng[[#Headers],[Thg6]]),1),INDEX(Kế_hoạch_văn_phòng[],,1),0),MATCH(Chênh_lệch_văn_phòng[[#Headers],[Thg6]],Thực_tế_văn_phòng[#Headers],0))","v":{"v":30,"d":"30.00 ₫"}},{"$f":"INDEX(Kế_hoạch_văn_phòng[],MATCH(INDEX(Chênh_lệch_văn_phòng[],ROW()-ROW(Chênh_lệch_văn_phòng[[#Headers],[Thg7]]),1),INDEX(Kế_hoạch_văn_phòng[],,1),0),MATCH(Chênh_lệch_văn_phòng[[#Headers],[Thg7]],Kế_hoạch_văn_phòng[#Headers],0))-INDEX(Thực_tế_văn_phòng[],MATCH(INDEX(Chênh_lệch_văn_phòng[],ROW()-ROW(Chênh_lệch_văn_phòng[[#Headers],[Thg7]]),1),INDEX(Kế_hoạch_văn_phòng[],,1),0),MATCH(Chênh_lệch_văn_phòng[[#Headers],[Thg7]],Thực_tế_văn_phòng[#Headers],0))","v":{"v":250,"d":"250.00 ₫"}},{"$f":"INDEX(Kế_hoạch_văn_phòng[],MATCH(INDEX(Chênh_lệch_văn_phòng[],ROW()-ROW(Chênh_lệch_văn_phòng[[#Headers],[Thg8]]),1),INDEX(Kế_hoạch_văn_phòng[],,1),0),MATCH(Chênh_lệch_văn_phòng[[#Headers],[Thg8]],Kế_hoạch_văn_phòng[#Headers],0))-INDEX(Thực_tế_văn_phòng[],MATCH(INDEX(Chênh_lệch_văn_phòng[],ROW()-ROW(Chênh_lệch_văn_phòng[[#Headers],[Thg8]]),1),INDEX(Kế_hoạch_văn_phòng[],,1),0),MATCH(Chênh_lệch_văn_phòng[[#Headers],[Thg8]],Thực_tế_văn_phòng[#Headers],0))","v":{"v":250,"d":"250.00 ₫"}},{"$f":"INDEX(Kế_hoạch_văn_phòng[],MATCH(INDEX(Chênh_lệch_văn_phòng[],ROW()-ROW(Chênh_lệch_văn_phòng[[#Headers],[Thg9]]),1),INDEX(Kế_hoạch_văn_phòng[],,1),0),MATCH(Chênh_lệch_văn_phòng[[#Headers],[Thg9]],Kế_hoạch_văn_phòng[#Headers],0))-INDEX(Thực_tế_văn_phòng[],MATCH(INDEX(Chênh_lệch_văn_phòng[],ROW()-ROW(Chênh_lệch_văn_phòng[[#Headers],[Thg9]]),1),INDEX(Kế_hoạch_văn_phòng[],,1),0),MATCH(Chênh_lệch_văn_phòng[[#Headers],[Thg9]],Thực_tế_văn_phòng[#Headers],0))","v":{"v":250,"d":"250.00 ₫"}},{"$f":"INDEX(Kế_hoạch_văn_phòng[],MATCH(INDEX(Chênh_lệch_văn_phòng[],ROW()-ROW(Chênh_lệch_văn_phòng[[#Headers],[Thg10]]),1),INDEX(Kế_hoạch_văn_phòng[],,1),0),MATCH(Chênh_lệch_văn_phòng[[#Headers],[Thg10]],Kế_hoạch_văn_phòng[#Headers],0))-INDEX(Thực_tế_văn_phòng[],MATCH(INDEX(Chênh_lệch_văn_phòng[],ROW()-ROW(Chênh_lệch_văn_phòng[[#Headers],[Thg10]]),1),INDEX(Kế_hoạch_văn_phòng[],,1),0),MATCH(Chênh_lệch_văn_phòng[[#Headers],[Thg10]],Thực_tế_văn_phòng[#Headers],0))","v":{"v":250,"d":"250.00 ₫"}},{"$f":"INDEX(Kế_hoạch_văn_phòng[],MATCH(INDEX(Chênh_lệch_văn_phòng[],ROW()-ROW(Chênh_lệch_văn_phòng[[#Headers],[Thg11]]),1),INDEX(Kế_hoạch_văn_phòng[],,1),0),MATCH(Chênh_lệch_văn_phòng[[#Headers],[Thg11]],Kế_hoạch_văn_phòng[#Headers],0))-INDEX(Thực_tế_văn_phòng[],MATCH(INDEX(Chênh_lệch_văn_phòng[],ROW()-ROW(Chênh_lệch_văn_phòng[[#Headers],[Thg11]]),1),INDEX(Kế_hoạch_văn_phòng[],,1),0),MATCH(Chênh_lệch_văn_phòng[[#Headers],[Thg11]],Thực_tế_văn_phòng[#Headers],0))","v":{"v":250,"d":"250.00 ₫"}},{"$f":"INDEX(Kế_hoạch_văn_phòng[],MATCH(INDEX(Chênh_lệch_văn_phòng[],ROW()-ROW(Chênh_lệch_văn_phòng[[#Headers],[Thg12]]),1),INDEX(Kế_hoạch_văn_phòng[],,1),0),MATCH(Chênh_lệch_văn_phòng[[#Headers],[Thg12]],Kế_hoạch_văn_phòng[#Headers],0))-INDEX(Thực_tế_văn_phòng[],MATCH(INDEX(Chênh_lệch_văn_phòng[],ROW()-ROW(Chênh_lệch_văn_phòng[[#Headers],[Thg12]]),1),INDEX(Kế_hoạch_văn_phòng[],,1),0),MATCH(Chênh_lệch_văn_phòng[[#Headers],[Thg12]],Thực_tế_văn_phòng[#Headers],0))","v":{"v":250,"d":"250.00 ₫"}},{"$f":"SUM(Chênh_lệch_văn_phòng[[#This Row],[Thg1]:[Thg12]])","v":{"v":1566,"d":"1,566.00 ₫"}}]
[null,"Truy nhập internet",{"$f":"INDEX(Kế_hoạch_văn_phòng[],MATCH(INDEX(Chênh_lệch_văn_phòng[],ROW()-ROW(Chênh_lệch_văn_phòng[[#Headers],[Thg1]]),1),INDEX(Kế_hoạch_văn_phòng[],,1),0),MATCH(Chênh_lệch_văn_phòng[[#Headers],[Thg1]],Kế_hoạch_văn_phòng[#Headers],0))-INDEX(Thực_tế_văn_phòng[],MATCH(INDEX(Chênh_lệch_văn_phòng[],ROW()-ROW(Chênh_lệch_văn_phòng[[#Headers],[Thg1]]),1),INDEX(Kế_hoạch_văn_phòng[],,1),0),MATCH(Chênh_lệch_văn_phòng[[#Headers],[Thg1]],Thực_tế_văn_phòng[#Headers],0))","v":{"v":0,"d":"0.00 ₫"}},{"$f":"INDEX(Kế_hoạch_văn_phòng[],MATCH(INDEX(Chênh_lệch_văn_phòng[],ROW()-ROW(Chênh_lệch_văn_phòng[[#Headers],[Thg2]]),1),INDEX(Kế_hoạch_văn_phòng[],,1),0),MATCH(Chênh_lệch_văn_phòng[[#Headers],[Thg2]],Kế_hoạch_văn_phòng[#Headers],0))-INDEX(Thực_tế_văn_phòng[],MATCH(INDEX(Chênh_lệch_văn_phòng[],ROW()-ROW(Chênh_lệch_văn_phòng[[#Headers],[Thg2]]),1),INDEX(Kế_hoạch_văn_phòng[],,1),0),MATCH(Chênh_lệch_văn_phòng[[#Headers],[Thg2]],Thực_tế_văn_phòng[#Headers],0))","v":{"v":0,"d":"0.00 ₫"}},{"$f":"INDEX(Kế_hoạch_văn_phòng[],MATCH(INDEX(Chênh_lệch_văn_phòng[],ROW()-ROW(Chênh_lệch_văn_phòng[[#Headers],[Thg3]]),1),INDEX(Kế_hoạch_văn_phòng[],,1),0),MATCH(Chênh_lệch_văn_phòng[[#Headers],[Thg3]],Kế_hoạch_văn_phòng[#Headers],0))-INDEX(Thực_tế_văn_phòng[],MATCH(INDEX(Chênh_lệch_văn_phòng[],ROW()-ROW(Chênh_lệch_văn_phòng[[#Headers],[Thg3]]),1),INDEX(Kế_hoạch_văn_phòng[],,1),0),MATCH(Chênh_lệch_văn_phòng[[#Headers],[Thg3]],Thực_tế_văn_phòng[#Headers],0))","v":{"v":0,"d":"0.00 ₫"}},{"$f":"INDEX(Kế_hoạch_văn_phòng[],MATCH(INDEX(Chênh_lệch_văn_phòng[],ROW()-ROW(Chênh_lệch_văn_phòng[[#Headers],[Thg4]]),1),INDEX(Kế_hoạch_văn_phòng[],,1),0),MATCH(Chênh_lệch_văn_phòng[[#Headers],[Thg4]],Kế_hoạch_văn_phòng[#Headers],0))-INDEX(Thực_tế_văn_phòng[],MATCH(INDEX(Chênh_lệch_văn_phòng[],ROW()-ROW(Chênh_lệch_văn_phòng[[#Headers],[Thg4]]),1),INDEX(Kế_hoạch_văn_phòng[],,1),0),MATCH(Chênh_lệch_văn_phòng[[#Headers],[Thg4]],Thực_tế_văn_phòng[#Headers],0))","v":{"v":0,"d":"0.00 ₫"}},{"$f":"INDEX(Kế_hoạch_văn_phòng[],MATCH(INDEX(Chênh_lệch_văn_phòng[],ROW()-ROW(Chênh_lệch_văn_phòng[[#Headers],[Thg5]]),1),INDEX(Kế_hoạch_văn_phòng[],,1),0),MATCH(Chênh_lệch_văn_phòng[[#Headers],[Thg5]],Kế_hoạch_văn_phòng[#Headers],0))-INDEX(Thực_tế_văn_phòng[],MATCH(INDEX(Chênh_lệch_văn_phòng[],ROW()-ROW(Chênh_lệch_văn_phòng[[#Headers],[Thg5]]),1),INDEX(Kế_hoạch_văn_phòng[],,1),0),MATCH(Chênh_lệch_văn_phòng[[#Headers],[Thg5]],Thực_tế_văn_phòng[#Headers],0))","v":{"v":0,"d":"0.00 ₫"}},{"$f":"INDEX(Kế_hoạch_văn_phòng[],MATCH(INDEX(Chênh_lệch_văn_phòng[],ROW()-ROW(Chênh_lệch_văn_phòng[[#Headers],[Thg6]]),1),INDEX(Kế_hoạch_văn_phòng[],,1),0),MATCH(Chênh_lệch_văn_phòng[[#Headers],[Thg6]],Kế_hoạch_văn_phòng[#Headers],0))-INDEX(Thực_tế_văn_phòng[],MATCH(INDEX(Chênh_lệch_văn_phòng[],ROW()-ROW(Chênh_lệch_văn_phòng[[#Headers],[Thg6]]),1),INDEX(Kế_hoạch_văn_phòng[],,1),0),MATCH(Chênh_lệch_văn_phòng[[#Headers],[Thg6]],Thực_tế_văn_phòng[#Headers],0))","v":{"v":0,"d":"0.00 ₫"}},{"$f":"INDEX(Kế_hoạch_văn_phòng[],MATCH(INDEX(Chênh_lệch_văn_phòng[],ROW()-ROW(Chênh_lệch_văn_phòng[[#Headers],[Thg7]]),1),INDEX(Kế_hoạch_văn_phòng[],,1),0),MATCH(Chênh_lệch_văn_phòng[[#Headers],[Thg7]],Kế_hoạch_văn_phòng[#Headers],0))-INDEX(Thực_tế_văn_phòng[],MATCH(INDEX(Chênh_lệch_văn_phòng[],ROW()-ROW(Chênh_lệch_văn_phòng[[#Headers],[Thg7]]),1),INDEX(Kế_hoạch_văn_phòng[],,1),0),MATCH(Chênh_lệch_văn_phòng[[#Headers],[Thg7]],Thực_tế_văn_phòng[#Headers],0))","v":{"v":180,"d":"180.00 ₫"}},{"$f":"INDEX(Kế_hoạch_văn_phòng[],MATCH(INDEX(Chênh_lệch_văn_phòng[],ROW()-ROW(Chênh_lệch_văn_phòng[[#Headers],[Thg8]]),1),INDEX(Kế_hoạch_văn_phòng[],,1),0),MATCH(Chênh_lệch_văn_phòng[[#Headers],[Thg8]],Kế_hoạch_văn_phòng[#Headers],0))-INDEX(Thực_tế_văn_phòng[],MATCH(INDEX(Chênh_lệch_văn_phòng[],ROW()-ROW(Chênh_lệch_văn_phòng[[#Headers],[Thg8]]),1),INDEX(Kế_hoạch_văn_phòng[],,1),0),MATCH(Chênh_lệch_văn_phòng[[#Headers],[Thg8]],Thực_tế_văn_phòng[#Headers],0))","v":{"v":180,"d":"180.00 ₫"}},{"$f":"INDEX(Kế_hoạch_văn_phòng[],MATCH(INDEX(Chênh_lệch_văn_phòng[],ROW()-ROW(Chênh_lệch_văn_phòng[[#Headers],[Thg9]]),1),INDEX(Kế_hoạch_văn_phòng[],,1),0),MATCH(Chênh_lệch_văn_phòng[[#Headers],[Thg9]],Kế_hoạch_văn_phòng[#Headers],0))-INDEX(Thực_tế_văn_phòng[],MATCH(INDEX(Chênh_lệch_văn_phòng[],ROW()-ROW(Chênh_lệch_văn_phòng[[#Headers],[Thg9]]),1),INDEX(Kế_hoạch_văn_phòng[],,1),0),MATCH(Chênh_lệch_văn_phòng[[#Headers],[Thg9]],Thực_tế_văn_phòng[#Headers],0))","v":{"v":180,"d":"180.00 ₫"}},{"$f":"INDEX(Kế_hoạch_văn_phòng[],MATCH(INDEX(Chênh_lệch_văn_phòng[],ROW()-ROW(Chênh_lệch_văn_phòng[[#Headers],[Thg10]]),1),INDEX(Kế_hoạch_văn_phòng[],,1),0),MATCH(Chênh_lệch_văn_phòng[[#Headers],[Thg10]],Kế_hoạch_văn_phòng[#Headers],0))-INDEX(Thực_tế_văn_phòng[],MATCH(INDEX(Chênh_lệch_văn_phòng[],ROW()-ROW(Chênh_lệch_văn_phòng[[#Headers],[Thg10]]),1),INDEX(Kế_hoạch_văn_phòng[],,1),0),MATCH(Chênh_lệch_văn_phòng[[#Headers],[Thg10]],Thực_tế_văn_phòng[#Headers],0))","v":{"v":180,"d":"180.00 ₫"}},{"$f":"INDEX(Kế_hoạch_văn_phòng[],MATCH(INDEX(Chênh_lệch_văn_phòng[],ROW()-ROW(Chênh_lệch_văn_phòng[[#Headers],[Thg11]]),1),INDEX(Kế_hoạch_văn_phòng[],,1),0),MATCH(Chênh_lệch_văn_phòng[[#Headers],[Thg11]],Kế_hoạch_văn_phòng[#Headers],0))-INDEX(Thực_tế_văn_phòng[],MATCH(INDEX(Chênh_lệch_văn_phòng[],ROW()-ROW(Chênh_lệch_văn_phòng[[#Headers],[Thg11]]),1),INDEX(Kế_hoạch_văn_phòng[],,1),0),MATCH(Chênh_lệch_văn_phòng[[#Headers],[Thg11]],Thực_tế_văn_phòng[#Headers],0))","v":{"v":180,"d":"180.00 ₫"}},{"$f":"INDEX(Kế_hoạch_văn_phòng[],MATCH(INDEX(Chênh_lệch_văn_phòng[],ROW()-ROW(Chênh_lệch_văn_phòng[[#Headers],[Thg12]]),1),INDEX(Kế_hoạch_văn_phòng[],,1),0),MATCH(Chênh_lệch_văn_phòng[[#Headers],[Thg12]],Kế_hoạch_văn_phòng[#Headers],0))-INDEX(Thực_tế_văn_phòng[],MATCH(INDEX(Chênh_lệch_văn_phòng[],ROW()-ROW(Chênh_lệch_văn_phòng[[#Headers],[Thg12]]),1),INDEX(Kế_hoạch_văn_phòng[],,1),0),MATCH(Chênh_lệch_văn_phòng[[#Headers],[Thg12]],Thực_tế_văn_phòng[#Headers],0))","v":{"v":180,"d":"180.00 ₫"}},{"$f":"SUM(Chênh_lệch_văn_phòng[[#This Row],[Thg1]:[Thg12]])","v":{"v":1080,"d":"1,080.00 ₫"}}]
[null,"Văn phòng phẩm",{"$f":"INDEX(Kế_hoạch_văn_phòng[],MATCH(INDEX(Chênh_lệch_văn_phòng[],ROW()-ROW(Chênh_lệch_văn_phòng[[#Headers],[Thg1]]),1),INDEX(Kế_hoạch_văn_phòng[],,1),0),MATCH(Chênh_lệch_văn_phòng[[#Headers],[Thg1]],Kế_hoạch_văn_phòng[#Headers],0))-INDEX(Thực_tế_văn_phòng[],MATCH(INDEX(Chênh_lệch_văn_phòng[],ROW()-ROW(Chênh_lệch_văn_phòng[[#Headers],[Thg1]]),1),INDEX(Kế_hoạch_văn_phòng[],,1),0),MATCH(Chênh_lệch_văn_phòng[[#Headers],[Thg1]],Thực_tế_văn_phòng[#Headers],0))","v":{"v":-56,"d":"-56.00 ₫"}},{"$f":"INDEX(Kế_hoạch_văn_phòng[],MATCH(INDEX(Chênh_lệch_văn_phòng[],ROW()-ROW(Chênh_lệch_văn_phòng[[#Headers],[Thg2]]),1),INDEX(Kế_hoạch_văn_phòng[],,1),0),MATCH(Chênh_lệch_văn_phòng[[#Headers],[Thg2]],Kế_hoạch_văn_phòng[#Headers],0))-INDEX(Thực_tế_văn_phòng[],MATCH(INDEX(Chênh_lệch_văn_phòng[],ROW()-ROW(Chênh_lệch_văn_phòng[[#Headers],[Thg2]]),1),INDEX(Kế_hoạch_văn_phòng[],,1),0),MATCH(Chênh_lệch_văn_phòng[[#Headers],[Thg2]],Thực_tế_văn_phòng[#Headers],0))","v":{"v":58,"d":"58.00 ₫"}},{"$f":"INDEX(Kế_hoạch_văn_phòng[],MATCH(INDEX(Chênh_lệch_văn_phòng[],ROW()-ROW(Chênh_lệch_văn_phòng[[#Headers],[Thg3]]),1),INDEX(Kế_hoạch_văn_phòng[],,1),0),MATCH(Chênh_lệch_văn_phòng[[#Headers],[Thg3]],Kế_hoạch_văn_phòng[#Headers],0))-INDEX(Thực_tế_văn_phòng[],MATCH(INDEX(Chênh_lệch_văn_phòng[],ROW()-ROW(Chênh_lệch_văn_phòng[[#Headers],[Thg3]]),1),INDEX(Kế_hoạch_văn_phòng[],,1),0),MATCH(Chênh_lệch_văn_phòng[[#Headers],[Thg3]],Thực_tế_văn_phòng[#Headers],0))","v":{"v":40,"d":"40.00 ₫"}},{"$f":"INDEX(Kế_hoạch_văn_phòng[],MATCH(INDEX(Chênh_lệch_văn_phòng[],ROW()-ROW(Chênh_lệch_văn_phòng[[#Headers],[Thg4]]),1),INDEX(Kế_hoạch_văn_phòng[],,1),0),MATCH(Chênh_lệch_văn_phòng[[#Headers],[Thg4]],Kế_hoạch_văn_phòng[#Headers],0))-INDEX(Thực_tế_văn_phòng[],MATCH(INDEX(Chênh_lệch_văn_phòng[],ROW()-ROW(Chênh_lệch_văn_phòng[[#Headers],[Thg4]]),1),INDEX(Kế_hoạch_văn_phòng[],,1),0),MATCH(Chênh_lệch_văn_phòng[[#Headers],[Thg4]],Thực_tế_văn_phòng[#Headers],0))","v":{"v":-21,"d":"-21.00 ₫"}},{"$f":"INDEX(Kế_hoạch_văn_phòng[],MATCH(INDEX(Chênh_lệch_văn_phòng[],ROW()-ROW(Chênh_lệch_văn_phòng[[#Headers],[Thg5]]),1),INDEX(Kế_hoạch_văn_phòng[],,1),0),MATCH(Chênh_lệch_văn_phòng[[#Headers],[Thg5]],Kế_hoạch_văn_phòng[#Headers],0))-INDEX(Thực_tế_văn_phòng[],MATCH(INDEX(Chênh_lệch_văn_phòng[],ROW()-ROW(Chênh_lệch_văn_phòng[[#Headers],[Thg5]]),1),INDEX(Kế_hoạch_văn_phòng[],,1),0),MATCH(Chênh_lệch_văn_phòng[[#Headers],[Thg5]],Thực_tế_văn_phòng[#Headers],0))","v":{"v":-56,"d":"-56.00 ₫"}},{"$f":"INDEX(Kế_hoạch_văn_phòng[],MATCH(INDEX(Chênh_lệch_văn_phòng[],ROW()-ROW(Chênh_lệch_văn_phòng[[#Headers],[Thg6]]),1),INDEX(Kế_hoạch_văn_phòng[],,1),0),MATCH(Chênh_lệch_văn_phòng[[#Headers],[Thg6]],Kế_hoạch_văn_phòng[#Headers],0))-INDEX(Thực_tế_văn_phòng[],MATCH(INDEX(Chênh_lệch_văn_phòng[],ROW()-ROW(Chênh_lệch_văn_phòng[[#Headers],[Thg6]]),1),INDEX(Kế_hoạch_văn_phòng[],,1),0),MATCH(Chênh_lệch_văn_phòng[[#Headers],[Thg6]],Thực_tế_văn_phòng[#Headers],0))","v":{"v":-40,"d":"-40.00 ₫"}},{"$f":"INDEX(Kế_hoạch_văn_phòng[],MATCH(INDEX(Chênh_lệch_văn_phòng[],ROW()-ROW(Chênh_lệch_văn_phòng[[#Headers],[Thg7]]),1),INDEX(Kế_hoạch_văn_phòng[],,1),0),MATCH(Chênh_lệch_văn_phòng[[#Headers],[Thg7]],Kế_hoạch_văn_phòng[#Headers],0))-INDEX(Thực_tế_văn_phòng[],MATCH(INDEX(Chênh_lệch_văn_phòng[],ROW()-ROW(Chênh_lệch_văn_phòng[[#Headers],[Thg7]]),1),INDEX(Kế_hoạch_văn_phòng[],,1),0),MATCH(Chênh_lệch_văn_phòng[[#Headers],[Thg7]],Thực_tế_văn_phòng[#Headers],0))","v":{"v":200,"d":"200.00 ₫"}},{"$f":"INDEX(Kế_hoạch_văn_phòng[],MATCH(INDEX(Chênh_lệch_văn_phòng[],ROW()-ROW(Chênh_lệch_văn_phòng[[#Headers],[Thg8]]),1),INDEX(Kế_hoạch_văn_phòng[],,1),0),MATCH(Chênh_lệch_văn_phòng[[#Headers],[Thg8]],Kế_hoạch_văn_phòng[#Headers],0))-INDEX(Thực_tế_văn_phòng[],MATCH(INDEX(Chênh_lệch_văn_phòng[],ROW()-ROW(Chênh_lệch_văn_phòng[[#Headers],[Thg8]]),1),INDEX(Kế_hoạch_văn_phòng[],,1),0),MATCH(Chênh_lệch_văn_phòng[[#Headers],[Thg8]],Thực_tế_văn_phòng[#Headers],0))","v":{"v":200,"d":"200.00 ₫"}},{"$f":"INDEX(Kế_hoạch_văn_phòng[],MATCH(INDEX(Chênh_lệch_văn_phòng[],ROW()-ROW(Chênh_lệch_văn_phòng[[#Headers],[Thg9]]),1),INDEX(Kế_hoạch_văn_phòng[],,1),0),MATCH(Chênh_lệch_văn_phòng[[#Headers],[Thg9]],Kế_hoạch_văn_phòng[#Headers],0))-INDEX(Thực_tế_văn_phòng[],MATCH(INDEX(Chênh_lệch_văn_phòng[],ROW()-ROW(Chênh_lệch_văn_phòng[[#Headers],[Thg9]]),1),INDEX(Kế_hoạch_văn_phòng[],,1),0),MATCH(Chênh_lệch_văn_phòng[[#Headers],[Thg9]],Thực_tế_văn_phòng[#Headers],0))","v":{"v":200,"d":"200.00 ₫"}},{"$f":"INDEX(Kế_hoạch_văn_phòng[],MATCH(INDEX(Chênh_lệch_văn_phòng[],ROW()-ROW(Chênh_lệch_văn_phòng[[#Headers],[Thg10]]),1),INDEX(Kế_hoạch_văn_phòng[],,1),0),MATCH(Chênh_lệch_văn_phòng[[#Headers],[Thg10]],Kế_hoạch_văn_phòng[#Headers],0))-INDEX(Thực_tế_văn_phòng[],MATCH(INDEX(Chênh_lệch_văn_phòng[],ROW()-ROW(Chênh_lệch_văn_phòng[[#Headers],[Thg10]]),1),INDEX(Kế_hoạch_văn_phòng[],,1),0),MATCH(Chênh_lệch_văn_phòng[[#Headers],[Thg10]],Thực_tế_văn_phòng[#Headers],0))","v":{"v":200,"d":"200.00 ₫"}},{"$f":"INDEX(Kế_hoạch_văn_phòng[],MATCH(INDEX(Chênh_lệch_văn_phòng[],ROW()-ROW(Chênh_lệch_văn_phòng[[#Headers],[Thg11]]),1),INDEX(Kế_hoạch_văn_phòng[],,1),0),MATCH(Chênh_lệch_văn_phòng[[#Headers],[Thg11]],Kế_hoạch_văn_phòng[#Headers],0))-INDEX(Thực_tế_văn_phòng[],MATCH(INDEX(Chênh_lệch_văn_phòng[],ROW()-ROW(Chênh_lệch_văn_phòng[[#Headers],[Thg11]]),1),INDEX(Kế_hoạch_văn_phòng[],,1),0),MATCH(Chênh_lệch_văn_phòng[[#Headers],[Thg11]],Thực_tế_văn_phòng[#Headers],0))","v":{"v":200,"d":"200.00 ₫"}},{"$f":"INDEX(Kế_hoạch_văn_phòng[],MATCH(INDEX(Chênh_lệch_văn_phòng[],ROW()-ROW(Chênh_lệch_văn_phòng[[#Headers],[Thg12]]),1),INDEX(Kế_hoạch_văn_phòng[],,1),0),MATCH(Chênh_lệch_văn_phòng[[#Headers],[Thg12]],Kế_hoạch_văn_phòng[#Headers],0))-INDEX(Thực_tế_văn_phòng[],MATCH(INDEX(Chênh_lệch_văn_phòng[],ROW()-ROW(Chênh_lệch_văn_phòng[[#Headers],[Thg12]]),1),INDEX(Kế_hoạch_văn_phòng[],,1),0),MATCH(Chênh_lệch_văn_phòng[[#Headers],[Thg12]],Thực_tế_văn_phòng[#Headers],0))","v":{"v":200,"d":"200.00 ₫"}},{"$f":"SUM(Chênh_lệch_văn_phòng[[#This Row],[Thg1]:[Thg12]])","v":{"v":1125,"d":"1,125.00 ₫"}}]
[null,"Bảo vệ",{"$f":"INDEX(Kế_hoạch_văn_phòng[],MATCH(INDEX(Chênh_lệch_văn_phòng[],ROW()-ROW(Chênh_lệch_văn_phòng[[#Headers],[Thg1]]),1),INDEX(Kế_hoạch_văn_phòng[],,1),0),MATCH(Chênh_lệch_văn_phòng[[#Headers],[Thg1]],Kế_hoạch_văn_phòng[#Headers],0))-INDEX(Thực_tế_văn_phòng[],MATCH(INDEX(Chênh_lệch_văn_phòng[],ROW()-ROW(Chênh_lệch_văn_phòng[[#Headers],[Thg1]]),1),INDEX(Kế_hoạch_văn_phòng[],,1),0),MATCH(Chênh_lệch_văn_phòng[[#Headers],[Thg1]],Thực_tế_văn_phòng[#Headers],0))","v":{"v":0,"d":"0.00 ₫"}},{"$f":"INDEX(Kế_hoạch_văn_phòng[],MATCH(INDEX(Chênh_lệch_văn_phòng[],ROW()-ROW(Chênh_lệch_văn_phòng[[#Headers],[Thg2]]),1),INDEX(Kế_hoạch_văn_phòng[],,1),0),MATCH(Chênh_lệch_văn_phòng[[#Headers],[Thg2]],Kế_hoạch_văn_phòng[#Headers],0))-INDEX(Thực_tế_văn_phòng[],MATCH(INDEX(Chênh_lệch_văn_phòng[],ROW()-ROW(Chênh_lệch_văn_phòng[[#Headers],[Thg2]]),1),INDEX(Kế_hoạch_văn_phòng[],,1),0),MATCH(Chênh_lệch_văn_phòng[[#Headers],[Thg2]],Thực_tế_văn_phòng[#Headers],0))","v":{"v":0,"d":"0.00 ₫"}},{"$f":"INDEX(Kế_hoạch_văn_phòng[],MATCH(INDEX(Chênh_lệch_văn_phòng[],ROW()-ROW(Chênh_lệch_văn_phòng[[#Headers],[Thg3]]),1),INDEX(Kế_hoạch_văn_phòng[],,1),0),MATCH(Chênh_lệch_văn_phòng[[#Headers],[Thg3]],Kế_hoạch_văn_phòng[#Headers],0))-INDEX(Thực_tế_văn_phòng[],MATCH(INDEX(Chênh_lệch_văn_phòng[],ROW()-ROW(Chênh_lệch_văn_phòng[[#Headers],[Thg3]]),1),INDEX(Kế_hoạch_văn_phòng[],,1),0),MATCH(Chênh_lệch_văn_phòng[[#Headers],[Thg3]],Thực_tế_văn_phòng[#Headers],0))","v":{"v":0,"d":"0.00 ₫"}},{"$f":"INDEX(Kế_hoạch_văn_phòng[],MATCH(INDEX(Chênh_lệch_văn_phòng[],ROW()-ROW(Chênh_lệch_văn_phòng[[#Headers],[Thg4]]),1),INDEX(Kế_hoạch_văn_phòng[],,1),0),MATCH(Chênh_lệch_văn_phòng[[#Headers],[Thg4]],Kế_hoạch_văn_phòng[#Headers],0))-INDEX(Thực_tế_văn_phòng[],MATCH(INDEX(Chênh_lệch_văn_phòng[],ROW()-ROW(Chênh_lệch_văn_phòng[[#Headers],[Thg4]]),1),INDEX(Kế_hoạch_văn_phòng[],,1),0),MATCH(Chênh_lệch_văn_phòng[[#Headers],[Thg4]],Thực_tế_văn_phòng[#Headers],0))","v":{"v":0,"d":"0.00 ₫"}},{"$f":"INDEX(Kế_hoạch_văn_phòng[],MATCH(INDEX(Chênh_lệch_văn_phòng[],ROW()-ROW(Chênh_lệch_văn_phòng[[#Headers],[Thg5]]),1),INDEX(Kế_hoạch_văn_phòng[],,1),0),MATCH(Chênh_lệch_văn_phòng[[#Headers],[Thg5]],Kế_hoạch_văn_phòng[#Headers],0))-INDEX(Thực_tế_văn_phòng[],MATCH(INDEX(Chênh_lệch_văn_phòng[],ROW()-ROW(Chênh_lệch_văn_phòng[[#Headers],[Thg5]]),1),INDEX(Kế_hoạch_văn_phòng[],,1),0),MATCH(Chênh_lệch_văn_phòng[[#Headers],[Thg5]],Thực_tế_văn_phòng[#Headers],0))","v":{"v":0,"d":"0.00 ₫"}},{"$f":"INDEX(Kế_hoạch_văn_phòng[],MATCH(INDEX(Chênh_lệch_văn_phòng[],ROW()-ROW(Chênh_lệch_văn_phòng[[#Headers],[Thg6]]),1),INDEX(Kế_hoạch_văn_phòng[],,1),0),MATCH(Chênh_lệch_văn_phòng[[#Headers],[Thg6]],Kế_hoạch_văn_phòng[#Headers],0))-INDEX(Thực_tế_văn_phòng[],MATCH(INDEX(Chênh_lệch_văn_phòng[],ROW()-ROW(Chênh_lệch_văn_phòng[[#Headers],[Thg6]]),1),INDEX(Kế_hoạch_văn_phòng[],,1),0),MATCH(Chênh_lệch_văn_phòng[[#Headers],[Thg6]],Thực_tế_văn_phòng[#Headers],0))","v":{"v":0,"d":"0.00 ₫"}},{"$f":"INDEX(Kế_hoạch_văn_phòng[],MATCH(INDEX(Chênh_lệch_văn_phòng[],ROW()-ROW(Chênh_lệch_văn_phòng[[#Headers],[Thg7]]),1),INDEX(Kế_hoạch_văn_phòng[],,1),0),MATCH(Chênh_lệch_văn_phòng[[#Headers],[Thg7]],Kế_hoạch_văn_phòng[#Headers],0))-INDEX(Thực_tế_văn_phòng[],MATCH(INDEX(Chênh_lệch_văn_phòng[],ROW()-ROW(Chênh_lệch_văn_phòng[[#Headers],[Thg7]]),1),INDEX(Kế_hoạch_văn_phòng[],,1),0),MATCH(Chênh_lệch_văn_phòng[[#Headers],[Thg7]],Thực_tế_văn_phòng[#Headers],0))","v":{"v":600,"d":"600.00 ₫"}},{"$f":"INDEX(Kế_hoạch_văn_phòng[],MATCH(INDEX(Chênh_lệch_văn_phòng[],ROW()-ROW(Chênh_lệch_văn_phòng[[#Headers],[Thg8]]),1),INDEX(Kế_hoạch_văn_phòng[],,1),0),MATCH(Chênh_lệch_văn_phòng[[#Headers],[Thg8]],Kế_hoạch_văn_phòng[#Headers],0))-INDEX(Thực_tế_văn_phòng[],MATCH(INDEX(Chênh_lệch_văn_phòng[],ROW()-ROW(Chênh_lệch_văn_phòng[[#Headers],[Thg8]]),1),INDEX(Kế_hoạch_văn_phòng[],,1),0),MATCH(Chênh_lệch_văn_phòng[[#Headers],[Thg8]],Thực_tế_văn_phòng[#Headers],0))","v":{"v":600,"d":"600.00 ₫"}},{"$f":"INDEX(Kế_hoạch_văn_phòng[],MATCH(INDEX(Chênh_lệch_văn_phòng[],ROW()-ROW(Chênh_lệch_văn_phòng[[#Headers],[Thg9]]),1),INDEX(Kế_hoạch_văn_phòng[],,1),0),MATCH(Chênh_lệch_văn_phòng[[#Headers],[Thg9]],Kế_hoạch_văn_phòng[#Headers],0))-INDEX(Thực_tế_văn_phòng[],MATCH(INDEX(Chênh_lệch_văn_phòng[],ROW()-ROW(Chênh_lệch_văn_phòng[[#Headers],[Thg9]]),1),INDEX(Kế_hoạch_văn_phòng[],,1),0),MATCH(Chênh_lệch_văn_phòng[[#Headers],[Thg9]],Thực_tế_văn_phòng[#Headers],0))","v":{"v":600,"d":"600.00 ₫"}},{"$f":"INDEX(Kế_hoạch_văn_phòng[],MATCH(INDEX(Chênh_lệch_văn_phòng[],ROW()-ROW(Chênh_lệch_văn_phòng[[#Headers],[Thg10]]),1),INDEX(Kế_hoạch_văn_phòng[],,1),0),MATCH(Chênh_lệch_văn_phòng[[#Headers],[Thg10]],Kế_hoạch_văn_phòng[#Headers],0))-INDEX(Thực_tế_văn_phòng[],MATCH(INDEX(Chênh_lệch_văn_phòng[],ROW()-ROW(Chênh_lệch_văn_phòng[[#Headers],[Thg10]]),1),INDEX(Kế_hoạch_văn_phòng[],,1),0),MATCH(Chênh_lệch_văn_phòng[[#Headers],[Thg10]],Thực_tế_văn_phòng[#Headers],0))","v":{"v":600,"d":"600.00 ₫"}},{"$f":"INDEX(Kế_hoạch_văn_phòng[],MATCH(INDEX(Chênh_lệch_văn_phòng[],ROW()-ROW(Chênh_lệch_văn_phòng[[#Headers],[Thg11]]),1),INDEX(Kế_hoạch_văn_phòng[],,1),0),MATCH(Chênh_lệch_văn_phòng[[#Headers],[Thg11]],Kế_hoạch_văn_phòng[#Headers],0))-INDEX(Thực_tế_văn_phòng[],MATCH(INDEX(Chênh_lệch_văn_phòng[],ROW()-ROW(Chênh_lệch_văn_phòng[[#Headers],[Thg11]]),1),INDEX(Kế_hoạch_văn_phòng[],,1),0),MATCH(Chênh_lệch_văn_phòng[[#Headers],[Thg11]],Thực_tế_văn_phòng[#Headers],0))","v":{"v":600,"d":"600.00 ₫"}},{"$f":"INDEX(Kế_hoạch_văn_phòng[],MATCH(INDEX(Chênh_lệch_văn_phòng[],ROW()-ROW(Chênh_lệch_văn_phòng[[#Headers],[Thg12]]),1),INDEX(Kế_hoạch_văn_phòng[],,1),0),MATCH(Chênh_lệch_văn_phòng[[#Headers],[Thg12]],Kế_hoạch_văn_phòng[#Headers],0))-INDEX(Thực_tế_văn_phòng[],MATCH(INDEX(Chênh_lệch_văn_phòng[],ROW()-ROW(Chênh_lệch_văn_phòng[[#Headers],[Thg12]]),1),INDEX(Kế_hoạch_văn_phòng[],,1),0),MATCH(Chênh_lệch_văn_phòng[[#Headers],[Thg12]],Thực_tế_văn_phòng[#Headers],0))","v":{"v":600,"d":"600.00 ₫"}},{"$f":"SUM(Chênh_lệch_văn_phòng[[#This Row],[Thg1]:[Thg12]])","v":{"v":3600,"d":"3,600.00 ₫"}}]
[null,"Tổng phụ",{"$f":"SUBTOTAL(109,Chênh_lệch_văn_phòng[Thg1])","v":{"v":-17,"d":"-17.00 ₫"}},{"$f":"SUBTOTAL(109,Chênh_lệch_văn_phòng[Thg2])","v":{"v":72,"d":"72.00 ₫"}},{"$f":"SUBTOTAL(109,Chênh_lệch_văn_phòng[Thg3])","v":{"v":78,"d":"78.00 ₫"}},{"$f":"SUBTOTAL(109,Chênh_lệch_văn_phòng[Thg4])","v":{"v":-141,"d":"-141.00 ₫"}},{"$f":"SUBTOTAL(109,Chênh_lệch_văn_phòng[Thg5])","v":{"v":-38,"d":"-38.00 ₫"}},{"$f":"SUBTOTAL(109,Chênh_lệch_văn_phòng[Thg6])","v":{"v":16,"d":"16.00 ₫"}},{"$f":"SUBTOTAL(109,Chênh_lệch_văn_phòng[Thg7])","v":{"v":11470,"d":"11,470.00 ₫"}},{"$f":"SUBTOTAL(109,Chênh_lệch_văn_phòng[Thg8])","v":{"v":11470,"d":"11,470.00 ₫"}},{"$f":"SUBTOTAL(109,Chênh_lệch_văn_phòng[Thg9])","v":{"v":11470,"d":"11,470.00 ₫"}},{"$f":"SUBTOTAL(109,Chênh_lệch_văn_phòng[Thg10])","v":{"v":11470,"d":"11,470.00 ₫"}},{"$f":"SUBTOTAL(109,Chênh_lệch_văn_phòng[Thg11])","v":{"v":11770,"d":"11,770.00 ₫"}},{"$f":"SUBTOTAL(109,Chênh_lệch_văn_phòng[Thg12])","v":{"v":11770,"d":"11,770.00 ₫"}},{"$f":"SUBTOTAL(109,Chênh_lệch_văn_phòng[NĂM])","v":{"v":69390,"d":"69,390.00 ₫"}}]
[]
["Chênh lệch Chi phí tiếp thị được tính toán tự động trong bảng Chênh lệch tiếp thị bắt đầu ở ô bên phải. Hướng dẫn tiếp theo nằm trong ô A30.","Chi phí tiếp thị","Thg1","Thg2","Thg3","Thg4","Thg5","Thg6","Thg7","Thg8","Thg9","Thg10","Thg11","Thg12","NĂM"]
[null,"Lưu trữ trang web",{"$f":"INDEX(Kế_hoạch_tiếp_thị[],MATCH(INDEX(Chênh_lệch_tiếp_thị[],ROW()-ROW(Chênh_lệch_tiếp_thị[[#Headers],[Thg1]]),1),INDEX(Kế_hoạch_tiếp_thị[],,1),0),MATCH(Chênh_lệch_tiếp_thị[[#Headers],[Thg1]],Kế_hoạch_tiếp_thị[#Headers],0))-INDEX(Thực_tế_tiếp_thị[],MATCH(INDEX(Chênh_lệch_tiếp_thị[],ROW()-ROW(Chênh_lệch_tiếp_thị[[#Headers],[Thg1]]),1),INDEX(Kế_hoạch_tiếp_thị[],,1),0),MATCH(Chênh_lệch_tiếp_thị[[#Headers],[Thg1]],Thực_tế_tiếp_thị[#Headers],0))","v":{"v":0,"d":"0.00 ₫"}},{"$f":"INDEX(Kế_hoạch_tiếp_thị[],MATCH(INDEX(Chênh_lệch_tiếp_thị[],ROW()-ROW(Chênh_lệch_tiếp_thị[[#Headers],[Thg2]]),1),INDEX(Kế_hoạch_tiếp_thị[],,1),0),MATCH(Chênh_lệch_tiếp_thị[[#Headers],[Thg2]],Kế_hoạch_tiếp_thị[#Headers],0))-INDEX(Thực_tế_tiếp_thị[],MATCH(INDEX(Chênh_lệch_tiếp_thị[],ROW()-ROW(Chênh_lệch_tiếp_thị[[#Headers],[Thg2]]),1),INDEX(Kế_hoạch_tiếp_thị[],,1),0),MATCH(Chênh_lệch_tiếp_thị[[#Headers],[Thg2]],Thực_tế_tiếp_thị[#Headers],0))","v":{"v":0,"d":"0.00 ₫"}},{"$f":"INDEX(Kế_hoạch_tiếp_thị[],MATCH(INDEX(Chênh_lệch_tiếp_thị[],ROW()-ROW(Chênh_lệch_tiếp_thị[[#Headers],[Thg3]]),1),INDEX(Kế_hoạch_tiếp_thị[],,1),0),MATCH(Chênh_lệch_tiếp_thị[[#Headers],[Thg3]],Kế_hoạch_tiếp_thị[#Headers],0))-INDEX(Thực_tế_tiếp_thị[],MATCH(INDEX(Chênh_lệch_tiếp_thị[],ROW()-ROW(Chênh_lệch_tiếp_thị[[#Headers],[Thg3]]),1),INDEX(Kế_hoạch_tiếp_thị[],,1),0),MATCH(Chênh_lệch_tiếp_thị[[#Headers],[Thg3]],Thực_tế_tiếp_thị[#Headers],0))","v":{"v":0,"d":"0.00 ₫"}},{"$f":"INDEX(Kế_hoạch_tiếp_thị[],MATCH(INDEX(Chênh_lệch_tiếp_thị[],ROW()-ROW(Chênh_lệch_tiếp_thị[[#Headers],[Thg4]]),1),INDEX(Kế_hoạch_tiếp_thị[],,1),0),MATCH(Chênh_lệch_tiếp_thị[[#Headers],[Thg4]],Kế_hoạch_tiếp_thị[#Headers],0))-INDEX(Thực_tế_tiếp_thị[],MATCH(INDEX(Chênh_lệch_tiếp_thị[],ROW()-ROW(Chênh_lệch_tiếp_thị[[#Headers],[Thg4]]),1),INDEX(Kế_hoạch_tiếp_thị[],,1),0),MATCH(Chênh_lệch_tiếp_thị[[#Headers],[Thg4]],Thực_tế_tiếp_thị[#Headers],0))","v":{"v":0,"d":"0.00 ₫"}},{"$f":"INDEX(Kế_hoạch_tiếp_thị[],MATCH(INDEX(Chênh_lệch_tiếp_thị[],ROW()-ROW(Chênh_lệch_tiếp_thị[[#Headers],[Thg5]]),1),INDEX(Kế_hoạch_tiếp_thị[],,1),0),MATCH(Chênh_lệch_tiếp_thị[[#Headers],[Thg5]],Kế_hoạch_tiếp_thị[#Headers],0))-INDEX(Thực_tế_tiếp_thị[],MATCH(INDEX(Chênh_lệch_tiếp_thị[],ROW()-ROW(Chênh_lệch_tiếp_thị[[#Headers],[Thg5]]),1),INDEX(Kế_hoạch_tiếp_thị[],,1),0),MATCH(Chênh_lệch_tiếp_thị[[#Headers],[Thg5]],Thực_tế_tiếp_thị[#Headers],0))","v":{"v":0,"d":"0.00 ₫"}},{"$f":"INDEX(Kế_hoạch_tiếp_thị[],MATCH(INDEX(Chênh_lệch_tiếp_thị[],ROW()-ROW(Chênh_lệch_tiếp_thị[[#Headers],[Thg6]]),1),INDEX(Kế_hoạch_tiếp_thị[],,1),0),MATCH(Chênh_lệch_tiếp_thị[[#Headers],[Thg6]],Kế_hoạch_tiếp_thị[#Headers],0))-INDEX(Thực_tế_tiếp_thị[],MATCH(INDEX(Chênh_lệch_tiếp_thị[],ROW()-ROW(Chênh_lệch_tiếp_thị[[#Headers],[Thg6]]),1),INDEX(Kế_hoạch_tiếp_thị[],,1),0),MATCH(Chênh_lệch_tiếp_thị[[#Headers],[Thg6]],Thực_tế_tiếp_thị[#Headers],0))","v":{"v":0,"d":"0.00 ₫"}},{"$f":"INDEX(Kế_hoạch_tiếp_thị[],MATCH(INDEX(Chênh_lệch_tiếp_thị[],ROW()-ROW(Chênh_lệch_tiếp_thị[[#Headers],[Thg7]]),1),INDEX(Kế_hoạch_tiếp_thị[],,1),0),MATCH(Chênh_lệch_tiếp_thị[[#Headers],[Thg7]],Kế_hoạch_tiếp_thị[#Headers],0))-INDEX(Thực_tế_tiếp_thị[],MATCH(INDEX(Chênh_lệch_tiếp_thị[],ROW()-ROW(Chênh_lệch_tiếp_thị[[#Headers],[Thg7]]),1),INDEX(Kế_hoạch_tiếp_thị[],,1),0),MATCH(Chênh_lệch_tiếp_thị[[#Headers],[Thg7]],Thực_tế_tiếp_thị[#Headers],0))","v":{"v":500,"d":"500.00 ₫"}},{"$f":"INDEX(Kế_hoạch_tiếp_thị[],MATCH(INDEX(Chênh_lệch_tiếp_thị[],ROW()-ROW(Chênh_lệch_tiếp_thị[[#Headers],[Thg8]]),1),INDEX(Kế_hoạch_tiếp_thị[],,1),0),MATCH(Chênh_lệch_tiếp_thị[[#Headers],[Thg8]],Kế_hoạch_tiếp_thị[#Headers],0))-INDEX(Thực_tế_tiếp_thị[],MATCH(INDEX(Chênh_lệch_tiếp_thị[],ROW()-ROW(Chênh_lệch_tiếp_thị[[#Headers],[Thg8]]),1),INDEX(Kế_hoạch_tiếp_thị[],,1),0),MATCH(Chênh_lệch_tiếp_thị[[#Headers],[Thg8]],Thực_tế_tiếp_thị[#Headers],0))","v":{"v":500,"d":"500.00 ₫"}},{"$f":"INDEX(Kế_hoạch_tiếp_thị[],MATCH(INDEX(Chênh_lệch_tiếp_thị[],ROW()-ROW(Chênh_lệch_tiếp_thị[[#Headers],[Thg9]]),1),INDEX(Kế_hoạch_tiếp_thị[],,1),0),MATCH(Chênh_lệch_tiếp_thị[[#Headers],[Thg9]],Kế_hoạch_tiếp_thị[#Headers],0))-INDEX(Thực_tế_tiếp_thị[],MATCH(INDEX(Chênh_lệch_tiếp_thị[],ROW()-ROW(Chênh_lệch_tiếp_thị[[#Headers],[Thg9]]),1),INDEX(Kế_hoạch_tiếp_thị[],,1),0),MATCH(Chênh_lệch_tiếp_thị[[#Headers],[Thg9]],Thực_tế_tiếp_thị[#Headers],0))","v":{"v":500,"d":"500.00 ₫"}},{"$f":"INDEX(Kế_hoạch_tiếp_thị[],MATCH(INDEX(Chênh_lệch_tiếp_thị[],ROW()-ROW(Chênh_lệch_tiếp_thị[[#Headers],[Thg10]]),1),INDEX(Kế_hoạch_tiếp_thị[],,1),0),MATCH(Chênh_lệch_tiếp_thị[[#Headers],[Thg10]],Kế_hoạch_tiếp_thị[#Headers],0))-INDEX(Thực_tế_tiếp_thị[],MATCH(INDEX(Chênh_lệch_tiếp_thị[],ROW()-ROW(Chênh_lệch_tiếp_thị[[#Headers],[Thg10]]),1),INDEX(Kế_hoạch_tiếp_thị[],,1),0),MATCH(Chênh_lệch_tiếp_thị[[#Headers],[Thg10]],Thực_tế_tiếp_thị[#Headers],0))","v":{"v":500,"d":"500.00 ₫"}},{"$f":"INDEX(Kế_hoạch_tiếp_thị[],MATCH(INDEX(Chênh_lệch_tiếp_thị[],ROW()-ROW(Chênh_lệch_tiếp_thị[[#Headers],[Thg11]]),1),INDEX(Kế_hoạch_tiếp_thị[],,1),0),MATCH(Chênh_lệch_tiếp_thị[[#Headers],[Thg11]],Kế_hoạch_tiếp_thị[#Headers],0))-INDEX(Thực_tế_tiếp_thị[],MATCH(INDEX(Chênh_lệch_tiếp_thị[],ROW()-ROW(Chênh_lệch_tiếp_thị[[#Headers],[Thg11]]),1),INDEX(Kế_hoạch_tiếp_thị[],,1),0),MATCH(Chênh_lệch_tiếp_thị[[#Headers],[Thg11]],Thực_tế_tiếp_thị[#Headers],0))","v":{"v":500,"d":"500.00 ₫"}},{"$f":"INDEX(Kế_hoạch_tiếp_thị[],MATCH(INDEX(Chênh_lệch_tiếp_thị[],ROW()-ROW(Chênh_lệch_tiếp_thị[[#Headers],[Thg12]]),1),INDEX(Kế_hoạch_tiếp_thị[],,1),0),MATCH(Chênh_lệch_tiếp_thị[[#Headers],[Thg12]],Kế_hoạch_tiếp_thị[#Headers],0))-INDEX(Thực_tế_tiếp_thị[],MATCH(INDEX(Chênh_lệch_tiếp_thị[],ROW()-ROW(Chênh_lệch_tiếp_thị[[#Headers],[Thg12]]),1),INDEX(Kế_hoạch_tiếp_thị[],,1),0),MATCH(Chênh_lệch_tiếp_thị[[#Headers],[Thg12]],Thực_tế_tiếp_thị[#Headers],0))","v":{"v":500,"d":"500.00 ₫"}},{"$f":"SUM(Chênh_lệch_tiếp_thị[[#This Row],[Thg1]:[Thg12]])","v":{"v":3000,"d":"3,000.00 ₫"}}]
[null,"Cập nhật trang web",{"$f":"INDEX(Kế_hoạch_tiếp_thị[],MATCH(INDEX(Chênh_lệch_tiếp_thị[],ROW()-ROW(Chênh_lệch_tiếp_thị[[#Headers],[Thg1]]),1),INDEX(Kế_hoạch_tiếp_thị[],,1),0),MATCH(Chênh_lệch_tiếp_thị[[#Headers],[Thg1]],Kế_hoạch_tiếp_thị[#Headers],0))-INDEX(Thực_tế_tiếp_thị[],MATCH(INDEX(Chênh_lệch_tiếp_thị[],ROW()-ROW(Chênh_lệch_tiếp_thị[[#Headers],[Thg1]]),1),INDEX(Kế_hoạch_tiếp_thị[],,1),0),MATCH(Chênh_lệch_tiếp_thị[[#Headers],[Thg1]],Thực_tế_tiếp_thị[#Headers],0))","v":{"v":0,"d":"0.00 ₫"}},{"$f":"INDEX(Kế_hoạch_tiếp_thị[],MATCH(INDEX(Chênh_lệch_tiếp_thị[],ROW()-ROW(Chênh_lệch_tiếp_thị[[#Headers],[Thg2]]),1),INDEX(Kế_hoạch_tiếp_thị[],,1),0),MATCH(Chênh_lệch_tiếp_thị[[#Headers],[Thg2]],Kế_hoạch_tiếp_thị[#Headers],0))-INDEX(Thực_tế_tiếp_thị[],MATCH(INDEX(Chênh_lệch_tiếp_thị[],ROW()-ROW(Chênh_lệch_tiếp_thị[[#Headers],[Thg2]]),1),INDEX(Kế_hoạch_tiếp_thị[],,1),0),MATCH(Chênh_lệch_tiếp_thị[[#Headers],[Thg2]],Thực_tế_tiếp_thị[#Headers],0))","v":{"v":0,"d":"0.00 ₫"}},{"$f":"INDEX(Kế_hoạch_tiếp_thị[],MATCH(INDEX(Chênh_lệch_tiếp_thị[],ROW()-ROW(Chênh_lệch_tiếp_thị[[#Headers],[Thg3]]),1),INDEX(Kế_hoạch_tiếp_thị[],,1),0),MATCH(Chênh_lệch_tiếp_thị[[#Headers],[Thg3]],Kế_hoạch_tiếp_thị[#Headers],0))-INDEX(Thực_tế_tiếp_thị[],MATCH(INDEX(Chênh_lệch_tiếp_thị[],ROW()-ROW(Chênh_lệch_tiếp_thị[[#Headers],[Thg3]]),1),INDEX(Kế_hoạch_tiếp_thị[],,1),0),MATCH(Chênh_lệch_tiếp_thị[[#Headers],[Thg3]],Thực_tế_tiếp_thị[#Headers],0))","v":{"v":0,"d":"0.00 ₫"}},{"$f":"INDEX(Kế_hoạch_tiếp_thị[],MATCH(INDEX(Chênh_lệch_tiếp_thị[],ROW()-ROW(Chênh_lệch_tiếp_thị[[#Headers],[Thg4]]),1),INDEX(Kế_hoạch_tiếp_thị[],,1),0),MATCH(Chênh_lệch_tiếp_thị[[#Headers],[Thg4]],Kế_hoạch_tiếp_thị[#Headers],0))-INDEX(Thực_tế_tiếp_thị[],MATCH(INDEX(Chênh_lệch_tiếp_thị[],ROW()-ROW(Chênh_lệch_tiếp_thị[[#Headers],[Thg4]]),1),INDEX(Kế_hoạch_tiếp_thị[],,1),0),MATCH(Chênh_lệch_tiếp_thị[[#Headers],[Thg4]],Thực_tế_tiếp_thị[#Headers],0))","v":{"v":0,"d":"0.00 ₫"}},{"$f":"INDEX(Kế_hoạch_tiếp_thị[],MATCH(INDEX(Chênh_lệch_tiếp_thị[],ROW()-ROW(Chênh_lệch_tiếp_thị[[#Headers],[Thg5]]),1),INDEX(Kế_hoạch_tiếp_thị[],,1),0),MATCH(Chênh_lệch_tiếp_thị[[#Headers],[Thg5]],Kế_hoạch_tiếp_thị[#Headers],0))-INDEX(Thực_tế_tiếp_thị[],MATCH(INDEX(Chênh_lệch_tiếp_thị[],ROW()-ROW(Chênh_lệch_tiếp_thị[[#Headers],[Thg5]]),1),INDEX(Kế_hoạch_tiếp_thị[],,1),0),MATCH(Chênh_lệch_tiếp_thị[[#Headers],[Thg5]],Thực_tế_tiếp_thị[#Headers],0))","v":{"v":0,"d":"0.00 ₫"}},{"$f":"INDEX(Kế_hoạch_tiếp_thị[],MATCH(INDEX(Chênh_lệch_tiếp_thị[],ROW()-ROW(Chênh_lệch_tiếp_thị[[#Headers],[Thg6]]),1),INDEX(Kế_hoạch_tiếp_thị[],,1),0),MATCH(Chênh_lệch_tiếp_thị[[#Headers],[Thg6]],Kế_hoạch_tiếp_thị[#Headers],0))-INDEX(Thực_tế_tiếp_thị[],MATCH(INDEX(Chênh_lệch_tiếp_thị[],ROW()-ROW(Chênh_lệch_tiếp_thị[[#Headers],[Thg6]]),1),INDEX(Kế_hoạch_tiếp_thị[],,1),0),MATCH(Chênh_lệch_tiếp_thị[[#Headers],[Thg6]],Thực_tế_tiếp_thị[#Headers],0))","v":{"v":-500,"d":"-500.00 ₫"}},{"$f":"INDEX(Kế_hoạch_tiếp_thị[],MATCH(INDEX(Chênh_lệch_tiếp_thị[],ROW()-ROW(Chênh_lệch_tiếp_thị[[#Headers],[Thg7]]),1),INDEX(Kế_hoạch_tiếp_thị[],,1),0),MATCH(Chênh_lệch_tiếp_thị[[#Headers],[Thg7]],Kế_hoạch_tiếp_thị[#Headers],0))-INDEX(Thực_tế_tiếp_thị[],MATCH(INDEX(Chênh_lệch_tiếp_thị[],ROW()-ROW(Chênh_lệch_tiếp_thị[[#Headers],[Thg7]]),1),INDEX(Kế_hoạch_tiếp_thị[],,1),0),MATCH(Chênh_lệch_tiếp_thị[[#Headers],[Thg7]],Thực_tế_tiếp_thị[#Headers],0))","v":{"v":200,"d":"200.00 ₫"}},{"$f":"INDEX(Kế_hoạch_tiếp_thị[],MATCH(INDEX(Chênh_lệch_tiếp_thị[],ROW()-ROW(Chênh_lệch_tiếp_thị[[#Headers],[Thg8]]),1),INDEX(Kế_hoạch_tiếp_thị[],,1),0),MATCH(Chênh_lệch_tiếp_thị[[#Headers],[Thg8]],Kế_hoạch_tiếp_thị[#Headers],0))-INDEX(Thực_tế_tiếp_thị[],MATCH(INDEX(Chênh_lệch_tiếp_thị[],ROW()-ROW(Chênh_lệch_tiếp_thị[[#Headers],[Thg8]]),1),INDEX(Kế_hoạch_tiếp_thị[],,1),0),MATCH(Chênh_lệch_tiếp_thị[[#Headers],[Thg8]],Thực_tế_tiếp_thị[#Headers],0))","v":{"v":200,"d":"200.00 ₫"}},{"$f":"INDEX(Kế_hoạch_tiếp_thị[],MATCH(INDEX(Chênh_lệch_tiếp_thị[],ROW()-ROW(Chênh_lệch_tiếp_thị[[#Headers],[Thg9]]),1),INDEX(Kế_hoạch_tiếp_thị[],,1),0),MATCH(Chênh_lệch_tiếp_thị[[#Headers],[Thg9]],Kế_hoạch_tiếp_thị[#Headers],0))-INDEX(Thực_tế_tiếp_thị[],MATCH(INDEX(Chênh_lệch_tiếp_thị[],ROW()-ROW(Chênh_lệch_tiếp_thị[[#Headers],[Thg9]]),1),INDEX(Kế_hoạch_tiếp_thị[],,1),0),MATCH(Chênh_lệch_tiếp_thị[[#Headers],[Thg9]],Thực_tế_tiếp_thị[#Headers],0))","v":{"v":200,"d":"200.00 ₫"}},{"$f":"INDEX(Kế_hoạch_tiếp_thị[],MATCH(INDEX(Chênh_lệch_tiếp_thị[],ROW()-ROW(Chênh_lệch_tiếp_thị[[#Headers],[Thg10]]),1),INDEX(Kế_hoạch_tiếp_thị[],,1),0),MATCH(Chênh_lệch_tiếp_thị[[#Headers],[Thg10]],Kế_hoạch_tiếp_thị[#Headers],0))-INDEX(Thực_tế_tiếp_thị[],MATCH(INDEX(Chênh_lệch_tiếp_thị[],ROW()-ROW(Chênh_lệch_tiếp_thị[[#Headers],[Thg10]]),1),INDEX(Kế_hoạch_tiếp_thị[],,1),0),MATCH(Chênh_lệch_tiếp_thị[[#Headers],[Thg10]],Thực_tế_tiếp_thị[#Headers],0))","v":{"v":200,"d":"200.00 ₫"}},{"$f":"INDEX(Kế_hoạch_tiếp_thị[],MATCH(INDEX(Chênh_lệch_tiếp_thị[],ROW()-ROW(Chênh_lệch_tiếp_thị[[#Headers],[Thg11]]),1),INDEX(Kế_hoạch_tiếp_thị[],,1),0),MATCH(Chênh_lệch_tiếp_thị[[#Headers],[Thg11]],Kế_hoạch_tiếp_thị[#Headers],0))-INDEX(Thực_tế_tiếp_thị[],MATCH(INDEX(Chênh_lệch_tiếp_thị[],ROW()-ROW(Chênh_lệch_tiếp_thị[[#Headers],[Thg11]]),1),INDEX(Kế_hoạch_tiếp_thị[],,1),0),MATCH(Chênh_lệch_tiếp_thị[[#Headers],[Thg11]],Thực_tế_tiếp_thị[#Headers],0))","v":{"v":200,"d":"200.00 ₫"}},{"$f":"INDEX(Kế_hoạch_tiếp_thị[],MATCH(INDEX(Chênh_lệch_tiếp_thị[],ROW()-ROW(Chênh_lệch_tiếp_thị[[#Headers],[Thg12]]),1),INDEX(Kế_hoạch_tiếp_thị[],,1),0),MATCH(Chênh_lệch_tiếp_thị[[#Headers],[Thg12]],Kế_hoạch_tiếp_thị[#Headers],0))-INDEX(Thực_tế_tiếp_thị[],MATCH(INDEX(Chênh_lệch_tiếp_thị[],ROW()-ROW(Chênh_lệch_tiếp_thị[[#Headers],[Thg12]]),1),INDEX(Kế_hoạch_tiếp_thị[],,1),0),MATCH(Chênh_lệch_tiếp_thị[[#Headers],[Thg12]],Thực_tế_tiếp_thị[#Headers],0))","v":{"v":1000,"d":"1,000.00 ₫"}},{"$f":"SUM(Chênh_lệch_tiếp_thị[[#This Row],[Thg1]:[Thg12]])","v":{"v":1500,"d":"1,500.00 ₫"}}]
[null,"Chuẩn bị tài liệu quảng cáo",{"$f":"INDEX(Kế_hoạch_tiếp_thị[],MATCH(INDEX(Chênh_lệch_tiếp_thị[],ROW()-ROW(Chênh_lệch_tiếp_thị[[#Headers],[Thg1]]),1),INDEX(Kế_hoạch_tiếp_thị[],,1),0),MATCH(Chênh_lệch_tiếp_thị[[#Headers],[Thg1]],Kế_hoạch_tiếp_thị[#Headers],0))-INDEX(Thực_tế_tiếp_thị[],MATCH(INDEX(Chênh_lệch_tiếp_thị[],ROW()-ROW(Chênh_lệch_tiếp_thị[[#Headers],[Thg1]]),1),INDEX(Kế_hoạch_tiếp_thị[],,1),0),MATCH(Chênh_lệch_tiếp_thị[[#Headers],[Thg1]],Thực_tế_tiếp_thị[#Headers],0))","v":{"v":200,"d":"200.00 ₫"}},{"$f":"INDEX(Kế_hoạch_tiếp_thị[],MATCH(INDEX(Chênh_lệch_tiếp_thị[],ROW()-ROW(Chênh_lệch_tiếp_thị[[#Headers],[Thg2]]),1),INDEX(Kế_hoạch_tiếp_thị[],,1),0),MATCH(Chênh_lệch_tiếp_thị[[#Headers],[Thg2]],Kế_hoạch_tiếp_thị[#Headers],0))-INDEX(Thực_tế_tiếp_thị[],MATCH(INDEX(Chênh_lệch_tiếp_thị[],ROW()-ROW(Chênh_lệch_tiếp_thị[[#Headers],[Thg2]]),1),INDEX(Kế_hoạch_tiếp_thị[],,1),0),MATCH(Chênh_lệch_tiếp_thị[[#Headers],[Thg2]],Thực_tế_tiếp_thị[#Headers],0))","v":{"v":0,"d":"0.00 ₫"}},{"$f":"INDEX(Kế_hoạch_tiếp_thị[],MATCH(INDEX(Chênh_lệch_tiếp_thị[],ROW()-ROW(Chênh_lệch_tiếp_thị[[#Headers],[Thg3]]),1),INDEX(Kế_hoạch_tiếp_thị[],,1),0),MATCH(Chênh_lệch_tiếp_thị[[#Headers],[Thg3]],Kế_hoạch_tiếp_thị[#Headers],0))-INDEX(Thực_tế_tiếp_thị[],MATCH(INDEX(Chênh_lệch_tiếp_thị[],ROW()-ROW(Chênh_lệch_tiếp_thị[[#Headers],[Thg3]]),1),INDEX(Kế_hoạch_tiếp_thị[],,1),0),MATCH(Chênh_lệch_tiếp_thị[[#Headers],[Thg3]],Thực_tế_tiếp_thị[#Headers],0))","v":{"v":0,"d":"0.00 ₫"}},{"$f":"INDEX(Kế_hoạch_tiếp_thị[],MATCH(INDEX(Chênh_lệch_tiếp_thị[],ROW()-ROW(Chênh_lệch_tiếp_thị[[#Headers],[Thg4]]),1),INDEX(Kế_hoạch_tiếp_thị[],,1),0),MATCH(Chênh_lệch_tiếp_thị[[#Headers],[Thg4]],Kế_hoạch_tiếp_thị[#Headers],0))-INDEX(Thực_tế_tiếp_thị[],MATCH(INDEX(Chênh_lệch_tiếp_thị[],ROW()-ROW(Chênh_lệch_tiếp_thị[[#Headers],[Thg4]]),1),INDEX(Kế_hoạch_tiếp_thị[],,1),0),MATCH(Chênh_lệch_tiếp_thị[[#Headers],[Thg4]],Thực_tế_tiếp_thị[#Headers],0))","v":{"v":-500,"d":"-500.00 ₫"}},{"$f":"INDEX(Kế_hoạch_tiếp_thị[],MATCH(INDEX(Chênh_lệch_tiếp_thị[],ROW()-ROW(Chênh_lệch_tiếp_thị[[#Headers],[Thg5]]),1),INDEX(Kế_hoạch_tiếp_thị[],,1),0),MATCH(Chênh_lệch_tiếp_thị[[#Headers],[Thg5]],Kế_hoạch_tiếp_thị[#Headers],0))-INDEX(Thực_tế_tiếp_thị[],MATCH(INDEX(Chênh_lệch_tiếp_thị[],ROW()-ROW(Chênh_lệch_tiếp_thị[[#Headers],[Thg5]]),1),INDEX(Kế_hoạch_tiếp_thị[],,1),0),MATCH(Chênh_lệch_tiếp_thị[[#Headers],[Thg5]],Thực_tế_tiếp_thị[#Headers],0))","v":{"v":0,"d":"0.00 ₫"}},{"$f":"INDEX(Kế_hoạch_tiếp_thị[],MATCH(INDEX(Chênh_lệch_tiếp_thị[],ROW()-ROW(Chênh_lệch_tiếp_thị[[#Headers],[Thg6]]),1),INDEX(Kế_hoạch_tiếp_thị[],,1),0),MATCH(Chênh_lệch_tiếp_thị[[#Headers],[Thg6]],Kế_hoạch_tiếp_thị[#Headers],0))-INDEX(Thực_tế_tiếp_thị[],MATCH(INDEX(Chênh_lệch_tiếp_thị[],ROW()-ROW(Chênh_lệch_tiếp_thị[[#Headers],[Thg6]]),1),INDEX(Kế_hoạch_tiếp_thị[],,1),0),MATCH(Chênh_lệch_tiếp_thị[[#Headers],[Thg6]],Thực_tế_tiếp_thị[#Headers],0))","v":{"v":0,"d":"0.00 ₫"}},{"$f":"INDEX(Kế_hoạch_tiếp_thị[],MATCH(INDEX(Chênh_lệch_tiếp_thị[],ROW()-ROW(Chênh_lệch_tiếp_thị[[#Headers],[Thg7]]),1),INDEX(Kế_hoạch_tiếp_thị[],,1),0),MATCH(Chênh_lệch_tiếp_thị[[#Headers],[Thg7]],Kế_hoạch_tiếp_thị[#Headers],0))-INDEX(Thực_tế_tiếp_thị[],MATCH(INDEX(Chênh_lệch_tiếp_thị[],ROW()-ROW(Chênh_lệch_tiếp_thị[[#Headers],[Thg7]]),1),INDEX(Kế_hoạch_tiếp_thị[],,1),0),MATCH(Chênh_lệch_tiếp_thị[[#Headers],[Thg7]],Thực_tế_tiếp_thị[#Headers],0))","v":{"v":5000,"d":"5,000.00 ₫"}},{"$f":"INDEX(Kế_hoạch_tiếp_thị[],MATCH(INDEX(Chênh_lệch_tiếp_thị[],ROW()-ROW(Chênh_lệch_tiếp_thị[[#Headers],[Thg8]]),1),INDEX(Kế_hoạch_tiếp_thị[],,1),0),MATCH(Chênh_lệch_tiếp_thị[[#Headers],[Thg8]],Kế_hoạch_tiếp_thị[#Headers],0))-INDEX(Thực_tế_tiếp_thị[],MATCH(INDEX(Chênh_lệch_tiếp_thị[],ROW()-ROW(Chênh_lệch_tiếp_thị[[#Headers],[Thg8]]),1),INDEX(Kế_hoạch_tiếp_thị[],,1),0),MATCH(Chênh_lệch_tiếp_thị[[#Headers],[Thg8]],Thực_tế_tiếp_thị[#Headers],0))","v":{"v":0,"d":"0.00 ₫"}},{"$f":"INDEX(Kế_hoạch_tiếp_thị[],MATCH(INDEX(Chênh_lệch_tiếp_thị[],ROW()-ROW(Chênh_lệch_tiếp_thị[[#Headers],[Thg9]]),1),INDEX(Kế_hoạch_tiếp_thị[],,1),0),MATCH(Chênh_lệch_tiếp_thị[[#Headers],[Thg9]],Kế_hoạch_tiếp_thị[#Headers],0))-INDEX(Thực_tế_tiếp_thị[],MATCH(INDEX(Chênh_lệch_tiếp_thị[],ROW()-ROW(Chênh_lệch_tiếp_thị[[#Headers],[Thg9]]),1),INDEX(Kế_hoạch_tiếp_thị[],,1),0),MATCH(Chênh_lệch_tiếp_thị[[#Headers],[Thg9]],Thực_tế_tiếp_thị[#Headers],0))","v":{"v":0,"d":"0.00 ₫"}},{"$f":"INDEX(Kế_hoạch_tiếp_thị[],MATCH(INDEX(Chênh_lệch_tiếp_thị[],ROW()-ROW(Chênh_lệch_tiếp_thị[[#Headers],[Thg10]]),1),INDEX(Kế_hoạch_tiếp_thị[],,1),0),MATCH(Chênh_lệch_tiếp_thị[[#Headers],[Thg10]],Kế_hoạch_tiếp_thị[#Headers],0))-INDEX(Thực_tế_tiếp_thị[],MATCH(INDEX(Chênh_lệch_tiếp_thị[],ROW()-ROW(Chênh_lệch_tiếp_thị[[#Headers],[Thg10]]),1),INDEX(Kế_hoạch_tiếp_thị[],,1),0),MATCH(Chênh_lệch_tiếp_thị[[#Headers],[Thg10]],Thực_tế_tiếp_thị[#Headers],0))","v":{"v":5000,"d":"5,000.00 ₫"}},{"$f":"INDEX(Kế_hoạch_tiếp_thị[],MATCH(INDEX(Chênh_lệch_tiếp_thị[],ROW()-ROW(Chênh_lệch_tiếp_thị[[#Headers],[Thg11]]),1),INDEX(Kế_hoạch_tiếp_thị[],,1),0),MATCH(Chênh_lệch_tiếp_thị[[#Headers],[Thg11]],Kế_hoạch_tiếp_thị[#Headers],0))-INDEX(Thực_tế_tiếp_thị[],MATCH(INDEX(Chênh_lệch_tiếp_thị[],ROW()-ROW(Chênh_lệch_tiếp_thị[[#Headers],[Thg11]]),1),INDEX(Kế_hoạch_tiếp_thị[],,1),0),MATCH(Chênh_lệch_tiếp_thị[[#Headers],[Thg11]],Thực_tế_tiếp_thị[#Headers],0))","v":{"v":0,"d":"0.00 ₫"}},{"$f":"INDEX(Kế_hoạch_tiếp_thị[],MATCH(INDEX(Chênh_lệch_tiếp_thị[],ROW()-ROW(Chênh_lệch_tiếp_thị[[#Headers],[Thg12]]),1),INDEX(Kế_hoạch_tiếp_thị[],,1),0),MATCH(Chênh_lệch_tiếp_thị[[#Headers],[Thg12]],Kế_hoạch_tiếp_thị[#Headers],0))-INDEX(Thực_tế_tiếp_thị[],MATCH(INDEX(Chênh_lệch_tiếp_thị[],ROW()-ROW(Chênh_lệch_tiếp_thị[[#Headers],[Thg12]]),1),INDEX(Kế_hoạch_tiếp_thị[],,1),0),MATCH(Chênh_lệch_tiếp_thị[[#Headers],[Thg12]],Thực_tế_tiếp_thị[#Headers],0))","v":{"v":0,"d":"0.00 ₫"}},{"$f":"SUM(Chênh_lệch_tiếp_thị[[#This Row],[Thg1]:[Thg12]])","v":{"v":9700,"d":"9,700.00 ₫"}}]
[null,"In tài liệu quảng cáo",{"$f":"INDEX(Kế_hoạch_tiếp_thị[],MATCH(INDEX(Chênh_lệch_tiếp_thị[],ROW()-ROW(Chênh_lệch_tiếp_thị[[#Headers],[Thg1]]),1),INDEX(Kế_hoạch_tiếp_thị[],,1),0),MATCH(Chênh_lệch_tiếp_thị[[#Headers],[Thg1]],Kế_hoạch_tiếp_thị[#Headers],0))-INDEX(Thực_tế_tiếp_thị[],MATCH(INDEX(Chênh_lệch_tiếp_thị[],ROW()-ROW(Chênh_lệch_tiếp_thị[[#Headers],[Thg1]]),1),INDEX(Kế_hoạch_tiếp_thị[],,1),0),MATCH(Chênh_lệch_tiếp_thị[[#Headers],[Thg1]],Thực_tế_tiếp_thị[#Headers],0))","v":{"v":100,"d":"100.00 ₫"}},{"$f":"INDEX(Kế_hoạch_tiếp_thị[],MATCH(INDEX(Chênh_lệch_tiếp_thị[],ROW()-ROW(Chênh_lệch_tiếp_thị[[#Headers],[Thg2]]),1),INDEX(Kế_hoạch_tiếp_thị[],,1),0),MATCH(Chênh_lệch_tiếp_thị[[#Headers],[Thg2]],Kế_hoạch_tiếp_thị[#Headers],0))-INDEX(Thực_tế_tiếp_thị[],MATCH(INDEX(Chênh_lệch_tiếp_thị[],ROW()-ROW(Chênh_lệch_tiếp_thị[[#Headers],[Thg2]]),1),INDEX(Kế_hoạch_tiếp_thị[],,1),0),MATCH(Chênh_lệch_tiếp_thị[[#Headers],[Thg2]],Thực_tế_tiếp_thị[#Headers],0))","v":{"v":-300,"d":"-300.00 ₫"}},{"$f":"INDEX(Kế_hoạch_tiếp_thị[],MATCH(INDEX(Chênh_lệch_tiếp_thị[],ROW()-ROW(Chênh_lệch_tiếp_thị[[#Headers],[Thg3]]),1),INDEX(Kế_hoạch_tiếp_thị[],,1),0),MATCH(Chênh_lệch_tiếp_thị[[#Headers],[Thg3]],Kế_hoạch_tiếp_thị[#Headers],0))-INDEX(Thực_tế_tiếp_thị[],MATCH(INDEX(Chênh_lệch_tiếp_thị[],ROW()-ROW(Chênh_lệch_tiếp_thị[[#Headers],[Thg3]]),1),INDEX(Kế_hoạch_tiếp_thị[],,1),0),MATCH(Chênh_lệch_tiếp_thị[[#Headers],[Thg3]],Thực_tế_tiếp_thị[#Headers],0))","v":{"v":100,"d":"100.00 ₫"}},{"$f":"INDEX(Kế_hoạch_tiếp_thị[],MATCH(INDEX(Chênh_lệch_tiếp_thị[],ROW()-ROW(Chênh_lệch_tiếp_thị[[#Headers],[Thg4]]),1),INDEX(Kế_hoạch_tiếp_thị[],,1),0),MATCH(Chênh_lệch_tiếp_thị[[#Headers],[Thg4]],Kế_hoạch_tiếp_thị[#Headers],0))-INDEX(Thực_tế_tiếp_thị[],MATCH(INDEX(Chênh_lệch_tiếp_thị[],ROW()-ROW(Chênh_lệch_tiếp_thị[[#Headers],[Thg4]]),1),INDEX(Kế_hoạch_tiếp_thị[],,1),0),MATCH(Chênh_lệch_tiếp_thị[[#Headers],[Thg4]],Thực_tế_tiếp_thị[#Headers],0))","v":{"v":100,"d":"100.00 ₫"}},{"$f":"INDEX(Kế_hoạch_tiếp_thị[],MATCH(INDEX(Chênh_lệch_tiếp_thị[],ROW()-ROW(Chênh_lệch_tiếp_thị[[#Headers],[Thg5]]),1),INDEX(Kế_hoạch_tiếp_thị[],,1),0),MATCH(Chênh_lệch_tiếp_thị[[#Headers],[Thg5]],Kế_hoạch_tiếp_thị[#Headers],0))-INDEX(Thực_tế_tiếp_thị[],MATCH(INDEX(Chênh_lệch_tiếp_thị[],ROW()-ROW(Chênh_lệch_tiếp_thị[[#Headers],[Thg5]]),1),INDEX(Kế_hoạch_tiếp_thị[],,1),0),MATCH(Chênh_lệch_tiếp_thị[[#Headers],[Thg5]],Thực_tế_tiếp_thị[#Headers],0))","v":{"v":-400,"d":"-400.00 ₫"}},{"$f":"INDEX(Kế_hoạch_tiếp_thị[],MATCH(INDEX(Chênh_lệch_tiếp_thị[],ROW()-ROW(Chênh_lệch_tiếp_thị[[#Headers],[Thg6]]),1),INDEX(Kế_hoạch_tiếp_thị[],,1),0),MATCH(Chênh_lệch_tiếp_thị[[#Headers],[Thg6]],Kế_hoạch_tiếp_thị[#Headers],0))-INDEX(Thực_tế_tiếp_thị[],MATCH(INDEX(Chênh_lệch_tiếp_thị[],ROW()-ROW(Chênh_lệch_tiếp_thị[[#Headers],[Thg6]]),1),INDEX(Kế_hoạch_tiếp_thị[],,1),0),MATCH(Chênh_lệch_tiếp_thị[[#Headers],[Thg6]],Thực_tế_tiếp_thị[#Headers],0))","v":{"v":20,"d":"20.00 ₫"}},{"$f":"INDEX(Kế_hoạch_tiếp_thị[],MATCH(INDEX(Chênh_lệch_tiếp_thị[],ROW()-ROW(Chênh_lệch_tiếp_thị[[#Headers],[Thg7]]),1),INDEX(Kế_hoạch_tiếp_thị[],,1),0),MATCH(Chênh_lệch_tiếp_thị[[#Headers],[Thg7]],Kế_hoạch_tiếp_thị[#Headers],0))-INDEX(Thực_tế_tiếp_thị[],MATCH(INDEX(Chênh_lệch_tiếp_thị[],ROW()-ROW(Chênh_lệch_tiếp_thị[[#Headers],[Thg7]]),1),INDEX(Kế_hoạch_tiếp_thị[],,1),0),MATCH(Chênh_lệch_tiếp_thị[[#Headers],[Thg7]],Thực_tế_tiếp_thị[#Headers],0))","v":{"v":200,"d":"200.00 ₫"}},{"$f":"INDEX(Kế_hoạch_tiếp_thị[],MATCH(INDEX(Chênh_lệch_tiếp_thị[],ROW()-ROW(Chênh_lệch_tiếp_thị[[#Headers],[Thg8]]),1),INDEX(Kế_hoạch_tiếp_thị[],,1),0),MATCH(Chênh_lệch_tiếp_thị[[#Headers],[Thg8]],Kế_hoạch_tiếp_thị[#Headers],0))-INDEX(Thực_tế_tiếp_thị[],MATCH(INDEX(Chênh_lệch_tiếp_thị[],ROW()-ROW(Chênh_lệch_tiếp_thị[[#Headers],[Thg8]]),1),INDEX(Kế_hoạch_tiếp_thị[],,1),0),MATCH(Chênh_lệch_tiếp_thị[[#Headers],[Thg8]],Thực_tế_tiếp_thị[#Headers],0))","v":{"v":200,"d":"200.00 ₫"}},{"$f":"INDEX(Kế_hoạch_tiếp_thị[],MATCH(INDEX(Chênh_lệch_tiếp_thị[],ROW()-ROW(Chênh_lệch_tiếp_thị[[#Headers],[Thg9]]),1),INDEX(Kế_hoạch_tiếp_thị[],,1),0),MATCH(Chênh_lệch_tiếp_thị[[#Headers],[Thg9]],Kế_hoạch_tiếp_thị[#Headers],0))-INDEX(Thực_tế_tiếp_thị[],MATCH(INDEX(Chênh_lệch_tiếp_thị[],ROW()-ROW(Chênh_lệch_tiếp_thị[[#Headers],[Thg9]]),1),INDEX(Kế_hoạch_tiếp_thị[],,1),0),MATCH(Chênh_lệch_tiếp_thị[[#Headers],[Thg9]],Thực_tế_tiếp_thị[#Headers],0))","v":{"v":200,"d":"200.00 ₫"}},{"$f":"INDEX(Kế_hoạch_tiếp_thị[],MATCH(INDEX(Chênh_lệch_tiếp_thị[],ROW()-ROW(Chênh_lệch_tiếp_thị[[#Headers],[Thg10]]),1),INDEX(Kế_hoạch_tiếp_thị[],,1),0),MATCH(Chênh_lệch_tiếp_thị[[#Headers],[Thg10]],Kế_hoạch_tiếp_thị[#Headers],0))-INDEX(Thực_tế_tiếp_thị[],MATCH(INDEX(Chênh_lệch_tiếp_thị[],ROW()-ROW(Chênh_lệch_tiếp_thị[[#Headers],[Thg10]]),1),INDEX(Kế_hoạch_tiếp_thị[],,1),0),MATCH(Chênh_lệch_tiếp_thị[[#Headers],[Thg10]],Thực_tế_tiếp_thị[#Headers],0))","v":{"v":200,"d":"200.00 ₫"}},{"$f":"INDEX(Kế_hoạch_tiếp_thị[],MATCH(INDEX(Chênh_lệch_tiếp_thị[],ROW()-ROW(Chênh_lệch_tiếp_thị[[#Headers],[Thg11]]),1),INDEX(Kế_hoạch_tiếp_thị[],,1),0),MATCH(Chênh_lệch_tiếp_thị[[#Headers],[Thg11]],Kế_hoạch_tiếp_thị[#Headers],0))-INDEX(Thực_tế_tiếp_thị[],MATCH(INDEX(Chênh_lệch_tiếp_thị[],ROW()-ROW(Chênh_lệch_tiếp_thị[[#Headers],[Thg11]]),1),INDEX(Kế_hoạch_tiếp_thị[],,1),0),MATCH(Chênh_lệch_tiếp_thị[[#Headers],[Thg11]],Thực_tế_tiếp_thị[#Headers],0))","v":{"v":200,"d":"200.00 ₫"}},{"$f":"INDEX(Kế_hoạch_tiếp_thị[],MATCH(INDEX(Chênh_lệch_tiếp_thị[],ROW()-ROW(Chênh_lệch_tiếp_thị[[#Headers],[Thg12]]),1),INDEX(Kế_hoạch_tiếp_thị[],,1),0),MATCH(Chênh_lệch_tiếp_thị[[#Headers],[Thg12]],Kế_hoạch_tiếp_thị[#Headers],0))-INDEX(Thực_tế_tiếp_thị[],MATCH(INDEX(Chênh_lệch_tiếp_thị[],ROW()-ROW(Chênh_lệch_tiếp_thị[[#Headers],[Thg12]]),1),INDEX(Kế_hoạch_tiếp_thị[],,1),0),MATCH(Chênh_lệch_tiếp_thị[[#Headers],[Thg12]],Thực_tế_tiếp_thị[#Headers],0))","v":{"v":200,"d":"200.00 ₫"}},{"$f":"SUM(Chênh_lệch_tiếp_thị[[#This Row],[Thg1]:[Thg12]])","v":{"v":820,"d":"820.00 ₫"}}]
[null,"Sự kiện tiếp thị",{"$f":"INDEX(Kế_hoạch_tiếp_thị[],MATCH(INDEX(Chênh_lệch_tiếp_thị[],ROW()-ROW(Chênh_lệch_tiếp_thị[[#Headers],[Thg1]]),1),INDEX(Kế_hoạch_tiếp_thị[],,1),0),MATCH(Chênh_lệch_tiếp_thị[[#Headers],[Thg1]],Kế_hoạch_tiếp_thị[#Headers],0))-INDEX(Thực_tế_tiếp_thị[],MATCH(INDEX(Chênh_lệch_tiếp_thị[],ROW()-ROW(Chênh_lệch_tiếp_thị[[#Headers],[Thg1]]),1),INDEX(Kế_hoạch_tiếp_thị[],,1),0),MATCH(Chênh_lệch_tiếp_thị[[#Headers],[Thg1]],Thực_tế_tiếp_thị[#Headers],0))","v":{"v":200,"d":"200.00 ₫"}},{"$f":"INDEX(Kế_hoạch_tiếp_thị[],MATCH(INDEX(Chênh_lệch_tiếp_thị[],ROW()-ROW(Chênh_lệch_tiếp_thị[[#Headers],[Thg2]]),1),INDEX(Kế_hoạch_tiếp_thị[],,1),0),MATCH(Chênh_lệch_tiếp_thị[[#Headers],[Thg2]],Kế_hoạch_tiếp_thị[#Headers],0))-INDEX(Thực_tế_tiếp_thị[],MATCH(INDEX(Chênh_lệch_tiếp_thị[],ROW()-ROW(Chênh_lệch_tiếp_thị[[#Headers],[Thg2]]),1),INDEX(Kế_hoạch_tiếp_thị[],,1),0),MATCH(Chênh_lệch_tiếp_thị[[#Headers],[Thg2]],Thực_tế_tiếp_thị[#Headers],0))","v":{"v":-200,"d":"-200.00 ₫"}},{"$f":"INDEX(Kế_hoạch_tiếp_thị[],MATCH(INDEX(Chênh_lệch_tiếp_thị[],ROW()-ROW(Chênh_lệch_tiếp_thị[[#Headers],[Thg3]]),1),INDEX(Kế_hoạch_tiếp_thị[],,1),0),MATCH(Chênh_lệch_tiếp_thị[[#Headers],[Thg3]],Kế_hoạch_tiếp_thị[#Headers],0))-INDEX(Thực_tế_tiếp_thị[],MATCH(INDEX(Chênh_lệch_tiếp_thị[],ROW()-ROW(Chênh_lệch_tiếp_thị[[#Headers],[Thg3]]),1),INDEX(Kế_hoạch_tiếp_thị[],,1),0),MATCH(Chênh_lệch_tiếp_thị[[#Headers],[Thg3]],Thực_tế_tiếp_thị[#Headers],0))","v":{"v":-200,"d":"-200.00 ₫"}},{"$f":"INDEX(Kế_hoạch_tiếp_thị[],MATCH(INDEX(Chênh_lệch_tiếp_thị[],ROW()-ROW(Chênh_lệch_tiếp_thị[[#Headers],[Thg4]]),1),INDEX(Kế_hoạch_tiếp_thị[],,1),0),MATCH(Chênh_lệch_tiếp_thị[[#Headers],[Thg4]],Kế_hoạch_tiếp_thị[#Headers],0))-INDEX(Thực_tế_tiếp_thị[],MATCH(INDEX(Chênh_lệch_tiếp_thị[],ROW()-ROW(Chênh_lệch_tiếp_thị[[#Headers],[Thg4]]),1),INDEX(Kế_hoạch_tiếp_thị[],,1),0),MATCH(Chênh_lệch_tiếp_thị[[#Headers],[Thg4]],Thực_tế_tiếp_thị[#Headers],0))","v":{"v":300,"d":"300.00 ₫"}},{"$f":"INDEX(Kế_hoạch_tiếp_thị[],MATCH(INDEX(Chênh_lệch_tiếp_thị[],ROW()-ROW(Chênh_lệch_tiếp_thị[[#Headers],[Thg5]]),1),INDEX(Kế_hoạch_tiếp_thị[],,1),0),MATCH(Chênh_lệch_tiếp_thị[[#Headers],[Thg5]],Kế_hoạch_tiếp_thị[#Headers],0))-INDEX(Thực_tế_tiếp_thị[],MATCH(INDEX(Chênh_lệch_tiếp_thị[],ROW()-ROW(Chênh_lệch_tiếp_thị[[#Headers],[Thg5]]),1),INDEX(Kế_hoạch_tiếp_thị[],,1),0),MATCH(Chênh_lệch_tiếp_thị[[#Headers],[Thg5]],Thực_tế_tiếp_thị[#Headers],0))","v":{"v":500,"d":"500.00 ₫"}},{"$f":"INDEX(Kế_hoạch_tiếp_thị[],MATCH(INDEX(Chênh_lệch_tiếp_thị[],ROW()-ROW(Chênh_lệch_tiếp_thị[[#Headers],[Thg6]]),1),INDEX(Kế_hoạch_tiếp_thị[],,1),0),MATCH(Chênh_lệch_tiếp_thị[[#Headers],[Thg6]],Kế_hoạch_tiếp_thị[#Headers],0))-INDEX(Thực_tế_tiếp_thị[],MATCH(INDEX(Chênh_lệch_tiếp_thị[],ROW()-ROW(Chênh_lệch_tiếp_thị[[#Headers],[Thg6]]),1),INDEX(Kế_hoạch_tiếp_thị[],,1),0),MATCH(Chênh_lệch_tiếp_thị[[#Headers],[Thg6]],Thực_tế_tiếp_thị[#Headers],0))","v":{"v":-300,"d":"-300.00 ₫"}},{"$f":"INDEX(Kế_hoạch_tiếp_thị[],MATCH(INDEX(Chênh_lệch_tiếp_thị[],ROW()-ROW(Chênh_lệch_tiếp_thị[[#Headers],[Thg7]]),1),INDEX(Kế_hoạch_tiếp_thị[],,1),0),MATCH(Chênh_lệch_tiếp_thị[[#Headers],[Thg7]],Kế_hoạch_tiếp_thị[#Headers],0))-INDEX(Thực_tế_tiếp_thị[],MATCH(INDEX(Chênh_lệch_tiếp_thị[],ROW()-ROW(Chênh_lệch_tiếp_thị[[#Headers],[Thg7]]),1),INDEX(Kế_hoạch_tiếp_thị[],,1),0),MATCH(Chênh_lệch_tiếp_thị[[#Headers],[Thg7]],Thực_tế_tiếp_thị[#Headers],0))","v":{"v":2000,"d":"2,000.00 ₫"}},{"$f":"INDEX(Kế_hoạch_tiếp_thị[],MATCH(INDEX(Chênh_lệch_tiếp_thị[],ROW()-ROW(Chênh_lệch_tiếp_thị[[#Headers],[Thg8]]),1),INDEX(Kế_hoạch_tiếp_thị[],,1),0),MATCH(Chênh_lệch_tiếp_thị[[#Headers],[Thg8]],Kế_hoạch_tiếp_thị[#Headers],0))-INDEX(Thực_tế_tiếp_thị[],MATCH(INDEX(Chênh_lệch_tiếp_thị[],ROW()-ROW(Chênh_lệch_tiếp_thị[[#Headers],[Thg8]]),1),INDEX(Kế_hoạch_tiếp_thị[],,1),0),MATCH(Chênh_lệch_tiếp_thị[[#Headers],[Thg8]],Thực_tế_tiếp_thị[#Headers],0))","v":{"v":5000,"d":"5,000.00 ₫"}},{"$f":"INDEX(Kế_hoạch_tiếp_thị[],MATCH(INDEX(Chênh_lệch_tiếp_thị[],ROW()-ROW(Chênh_lệch_tiếp_thị[[#Headers],[Thg9]]),1),INDEX(Kế_hoạch_tiếp_thị[],,1),0),MATCH(Chênh_lệch_tiếp_thị[[#Headers],[Thg9]],Kế_hoạch_tiếp_thị[#Headers],0))-INDEX(Thực_tế_tiếp_thị[],MATCH(INDEX(Chênh_lệch_tiếp_thị[],ROW()-ROW(Chênh_lệch_tiếp_thị[[#Headers],[Thg9]]),1),INDEX(Kế_hoạch_tiếp_thị[],,1),0),MATCH(Chênh_lệch_tiếp_thị[[#Headers],[Thg9]],Thực_tế_tiếp_thị[#Headers],0))","v":{"v":2000,"d":"2,000.00 ₫"}},{"$f":"INDEX(Kế_hoạch_tiếp_thị[],MATCH(INDEX(Chênh_lệch_tiếp_thị[],ROW()-ROW(Chênh_lệch_tiếp_thị[[#Headers],[Thg10]]),1),INDEX(Kế_hoạch_tiếp_thị[],,1),0),MATCH(Chênh_lệch_tiếp_thị[[#Headers],[Thg10]],Kế_hoạch_tiếp_thị[#Headers],0))-INDEX(Thực_tế_tiếp_thị[],MATCH(INDEX(Chênh_lệch_tiếp_thị[],ROW()-ROW(Chênh_lệch_tiếp_thị[[#Headers],[Thg10]]),1),INDEX(Kế_hoạch_tiếp_thị[],,1),0),MATCH(Chênh_lệch_tiếp_thị[[#Headers],[Thg10]],Thực_tế_tiếp_thị[#Headers],0))","v":{"v":2000,"d":"2,000.00 ₫"}},{"$f":"INDEX(Kế_hoạch_tiếp_thị[],MATCH(INDEX(Chênh_lệch_tiếp_thị[],ROW()-ROW(Chênh_lệch_tiếp_thị[[#Headers],[Thg11]]),1),INDEX(Kế_hoạch_tiếp_thị[],,1),0),MATCH(Chênh_lệch_tiếp_thị[[#Headers],[Thg11]],Kế_hoạch_tiếp_thị[#Headers],0))-INDEX(Thực_tế_tiếp_thị[],MATCH(INDEX(Chênh_lệch_tiếp_thị[],ROW()-ROW(Chênh_lệch_tiếp_thị[[#Headers],[Thg11]]),1),INDEX(Kế_hoạch_tiếp_thị[],,1),0),MATCH(Chênh_lệch_tiếp_thị[[#Headers],[Thg11]],Thực_tế_tiếp_thị[#Headers],0))","v":{"v":2000,"d":"2,000.00 ₫"}},{"$f":"INDEX(Kế_hoạch_tiếp_thị[],MATCH(INDEX(Chênh_lệch_tiếp_thị[],ROW()-ROW(Chênh_lệch_tiếp_thị[[#Headers],[Thg12]]),1),INDEX(Kế_hoạch_tiếp_thị[],,1),0),MATCH(Chênh_lệch_tiếp_thị[[#Headers],[Thg12]],Kế_hoạch_tiếp_thị[#Headers],0))-INDEX(Thực_tế_tiếp_thị[],MATCH(INDEX(Chênh_lệch_tiếp_thị[],ROW()-ROW(Chênh_lệch_tiếp_thị[[#Headers],[Thg12]]),1),INDEX(Kế_hoạch_tiếp_thị[],,1),0),MATCH(Chênh_lệch_tiếp_thị[[#Headers],[Thg12]],Thực_tế_tiếp_thị[#Headers],0))","v":{"v":5000,"d":"5,000.00 ₫"}},{"$f":"SUM(Chênh_lệch_tiếp_thị[[#This Row],[Thg1]:[Thg12]])","v":{"v":18300,"d":"18,300.00 ₫"}}]
[null,"Chi phí khác",{"$f":"INDEX(Kế_hoạch_tiếp_thị[],MATCH(INDEX(Chênh_lệch_tiếp_thị[],ROW()-ROW(Chênh_lệch_tiếp_thị[[#Headers],[Thg1]]),1),INDEX(Kế_hoạch_tiếp_thị[],,1),0),MATCH(Chênh_lệch_tiếp_thị[[#Headers],[Thg1]],Kế_hoạch_tiếp_thị[#Headers],0))-INDEX(Thực_tế_tiếp_thị[],MATCH(INDEX(Chênh_lệch_tiếp_thị[],ROW()-ROW(Chênh_lệch_tiếp_thị[[#Headers],[Thg1]]),1),INDEX(Kế_hoạch_tiếp_thị[],,1),0),MATCH(Chênh_lệch_tiếp_thị[[#Headers],[Thg1]],Thực_tế_tiếp_thị[#Headers],0))","v":{"v":55,"d":"55.00 ₫"}},{"$f":"INDEX(Kế_hoạch_tiếp_thị[],MATCH(INDEX(Chênh_lệch_tiếp_thị[],ROW()-ROW(Chênh_lệch_tiếp_thị[[#Headers],[Thg2]]),1),INDEX(Kế_hoạch_tiếp_thị[],,1),0),MATCH(Chênh_lệch_tiếp_thị[[#Headers],[Thg2]],Kế_hoạch_tiếp_thị[#Headers],0))-INDEX(Thực_tế_tiếp_thị[],MATCH(INDEX(Chênh_lệch_tiếp_thị[],ROW()-ROW(Chênh_lệch_tiếp_thị[[#Headers],[Thg2]]),1),INDEX(Kế_hoạch_tiếp_thị[],,1),0),MATCH(Chênh_lệch_tiếp_thị[[#Headers],[Thg2]],Thực_tế_tiếp_thị[#Headers],0))","v":{"v":44,"d":"44.00 ₫"}},{"$f":"INDEX(Kế_hoạch_tiếp_thị[],MATCH(INDEX(Chênh_lệch_tiếp_thị[],ROW()-ROW(Chênh_lệch_tiếp_thị[[#Headers],[Thg3]]),1),INDEX(Kế_hoạch_tiếp_thị[],,1),0),MATCH(Chênh_lệch_tiếp_thị[[#Headers],[Thg3]],Kế_hoạch_tiếp_thị[#Headers],0))-INDEX(Thực_tế_tiếp_thị[],MATCH(INDEX(Chênh_lệch_tiếp_thị[],ROW()-ROW(Chênh_lệch_tiếp_thị[[#Headers],[Thg3]]),1),INDEX(Kế_hoạch_tiếp_thị[],,1),0),MATCH(Chênh_lệch_tiếp_thị[[#Headers],[Thg3]],Thực_tế_tiếp_thị[#Headers],0))","v":{"v":77,"d":"77.00 ₫"}},{"$f":"INDEX(Kế_hoạch_tiếp_thị[],MATCH(INDEX(Chênh_lệch_tiếp_thị[],ROW()-ROW(Chênh_lệch_tiếp_thị[[#Headers],[Thg4]]),1),INDEX(Kế_hoạch_tiếp_thị[],,1),0),MATCH(Chênh_lệch_tiếp_thị[[#Headers],[Thg4]],Kế_hoạch_tiếp_thị[#Headers],0))-INDEX(Thực_tế_tiếp_thị[],MATCH(INDEX(Chênh_lệch_tiếp_thị[],ROW()-ROW(Chênh_lệch_tiếp_thị[[#Headers],[Thg4]]),1),INDEX(Kế_hoạch_tiếp_thị[],,1),0),MATCH(Chênh_lệch_tiếp_thị[[#Headers],[Thg4]],Thực_tế_tiếp_thị[#Headers],0))","v":{"v":-23,"d":"-23.00 ₫"}},{"$f":"INDEX(Kế_hoạch_tiếp_thị[],MATCH(INDEX(Chênh_lệch_tiếp_thị[],ROW()-ROW(Chênh_lệch_tiếp_thị[[#Headers],[Thg5]]),1),INDEX(Kế_hoạch_tiếp_thị[],,1),0),MATCH(Chênh_lệch_tiếp_thị[[#Headers],[Thg5]],Kế_hoạch_tiếp_thị[#Headers],0))-INDEX(Thực_tế_tiếp_thị[],MATCH(INDEX(Chênh_lệch_tiếp_thị[],ROW()-ROW(Chênh_lệch_tiếp_thị[[#Headers],[Thg5]]),1),INDEX(Kế_hoạch_tiếp_thị[],,1),0),MATCH(Chênh_lệch_tiếp_thị[[#Headers],[Thg5]],Thực_tế_tiếp_thị[#Headers],0))","v":{"v":13,"d":"13.00 ₫"}},{"$f":"INDEX(Kế_hoạch_tiếp_thị[],MATCH(INDEX(Chênh_lệch_tiếp_thị[],ROW()-ROW(Chênh_lệch_tiếp_thị[[#Headers],[Thg6]]),1),INDEX(Kế_hoạch_tiếp_thị[],,1),0),MATCH(Chênh_lệch_tiếp_thị[[#Headers],[Thg6]],Kế_hoạch_tiếp_thị[#Headers],0))-INDEX(Thực_tế_tiếp_thị[],MATCH(INDEX(Chênh_lệch_tiếp_thị[],ROW()-ROW(Chênh_lệch_tiếp_thị[[#Headers],[Thg6]]),1),INDEX(Kế_hoạch_tiếp_thị[],,1),0),MATCH(Chênh_lệch_tiếp_thị[[#Headers],[Thg6]],Thực_tế_tiếp_thị[#Headers],0))","v":{"v":-45,"d":"-45.00 ₫"}},{"$f":"INDEX(Kế_hoạch_tiếp_thị[],MATCH(INDEX(Chênh_lệch_tiếp_thị[],ROW()-ROW(Chênh_lệch_tiếp_thị[[#Headers],[Thg7]]),1),INDEX(Kế_hoạch_tiếp_thị[],,1),0),MATCH(Chênh_lệch_tiếp_thị[[#Headers],[Thg7]],Kế_hoạch_tiếp_thị[#Headers],0))-INDEX(Thực_tế_tiếp_thị[],MATCH(INDEX(Chênh_lệch_tiếp_thị[],ROW()-ROW(Chênh_lệch_tiếp_thị[[#Headers],[Thg7]]),1),INDEX(Kế_hoạch_tiếp_thị[],,1),0),MATCH(Chênh_lệch_tiếp_thị[[#Headers],[Thg7]],Thực_tế_tiếp_thị[#Headers],0))","v":{"v":200,"d":"200.00 ₫"}},{"$f":"INDEX(Kế_hoạch_tiếp_thị[],MATCH(INDEX(Chênh_lệch_tiếp_thị[],ROW()-ROW(Chênh_lệch_tiếp_thị[[#Headers],[Thg8]]),1),INDEX(Kế_hoạch_tiếp_thị[],,1),0),MATCH(Chênh_lệch_tiếp_thị[[#Headers],[Thg8]],Kế_hoạch_tiếp_thị[#Headers],0))-INDEX(Thực_tế_tiếp_thị[],MATCH(INDEX(Chênh_lệch_tiếp_thị[],ROW()-ROW(Chênh_lệch_tiếp_thị[[#Headers],[Thg8]]),1),INDEX(Kế_hoạch_tiếp_thị[],,1),0),MATCH(Chênh_lệch_tiếp_thị[[#Headers],[Thg8]],Thực_tế_tiếp_thị[#Headers],0))","v":{"v":200,"d":"200.00 ₫"}},{"$f":"INDEX(Kế_hoạch_tiếp_thị[],MATCH(INDEX(Chênh_lệch_tiếp_thị[],ROW()-ROW(Chênh_lệch_tiếp_thị[[#Headers],[Thg9]]),1),INDEX(Kế_hoạch_tiếp_thị[],,1),0),MATCH(Chênh_lệch_tiếp_thị[[#Headers],[Thg9]],Kế_hoạch_tiếp_thị[#Headers],0))-INDEX(Thực_tế_tiếp_thị[],MATCH(INDEX(Chênh_lệch_tiếp_thị[],ROW()-ROW(Chênh_lệch_tiếp_thị[[#Headers],[Thg9]]),1),INDEX(Kế_hoạch_tiếp_thị[],,1),0),MATCH(Chênh_lệch_tiếp_thị[[#Headers],[Thg9]],Thực_tế_tiếp_thị[#Headers],0))","v":{"v":200,"d":"200.00 ₫"}},{"$f":"INDEX(Kế_hoạch_tiếp_thị[],MATCH(INDEX(Chênh_lệch_tiếp_thị[],ROW()-ROW(Chênh_lệch_tiếp_thị[[#Headers],[Thg10]]),1),INDEX(Kế_hoạch_tiếp_thị[],,1),0),MATCH(Chênh_lệch_tiếp_thị[[#Headers],[Thg10]],Kế_hoạch_tiếp_thị[#Headers],0))-INDEX(Thực_tế_tiếp_thị[],MATCH(INDEX(Chênh_lệch_tiếp_thị[],ROW()-ROW(Chênh_lệch_tiếp_thị[[#Headers],[Thg10]]),1),INDEX(Kế_hoạch_tiếp_thị[],,1),0),MATCH(Chênh_lệch_tiếp_thị[[#Headers],[Thg10]],Thực_tế_tiếp_thị[#Headers],0))","v":{"v":200,"d":"200.00 ₫"}},{"$f":"INDEX(Kế_hoạch_tiếp_thị[],MATCH(INDEX(Chênh_lệch_tiếp_thị[],ROW()-ROW(Chênh_lệch_tiếp_thị[[#Headers],[Thg11]]),1),INDEX(Kế_hoạch_tiếp_thị[],,1),0),MATCH(Chênh_lệch_tiếp_thị[[#Headers],[Thg11]],Kế_hoạch_tiếp_thị[#Headers],0))-INDEX(Thực_tế_tiếp_thị[],MATCH(INDEX(Chênh_lệch_tiếp_thị[],ROW()-ROW(Chênh_lệch_tiếp_thị[[#Headers],[Thg11]]),1),INDEX(Kế_hoạch_tiếp_thị[],,1),0),MATCH(Chênh_lệch_tiếp_thị[[#Headers],[Thg11]],Thực_tế_tiếp_thị[#Headers],0))","v":{"v":200,"d":"200.00 ₫"}},{"$f":"INDEX(Kế_hoạch_tiếp_thị[],MATCH(INDEX(Chênh_lệch_tiếp_thị[],ROW()-ROW(Chênh_lệch_tiếp_thị[[#Headers],[Thg12]]),1),INDEX(Kế_hoạch_tiếp_thị[],,1),0),MATCH(Chênh_lệch_tiếp_thị[[#Headers],[Thg12]],Kế_hoạch_tiếp_thị[#Headers],0))-INDEX(Thực_tế_tiếp_thị[],MATCH(INDEX(Chênh_lệch_tiếp_thị[],ROW()-ROW(Chênh_lệch_tiếp_thị[[#Headers],[Thg12]]),1),INDEX(Kế_hoạch_tiếp_thị[],,1),0),MATCH(Chênh_lệch_tiếp_thị[[#Headers],[Thg12]],Thực_tế_tiếp_thị[#Headers],0))","v":{"v":200,"d":"200.00 ₫"}},{"$f":"SUM(Chênh_lệch_tiếp_thị[[#This Row],[Thg1]:[Thg12]])","v":{"v":1321,"d":"1,321.00 ₫"}}]
[null,"Tổng phụ",{"$f":"SUBTOTAL(109,Chênh_lệch_tiếp_thị[Thg1])","v":{"v":555,"d":"555.00 ₫"}},{"$f":"SUBTOTAL(109,Chênh_lệch_tiếp_thị[Thg2])","v":{"v":-456,"d":"-456.00 ₫"}},{"$f":"SUBTOTAL(109,Chênh_lệch_tiếp_thị[Thg3])","v":{"v":-23,"d":"-23.00 ₫"}},{"$f":"SUBTOTAL(109,Chênh_lệch_tiếp_thị[Thg4])","v":{"v":-123,"d":"-123.00 ₫"}},{"$f":"SUBTOTAL(109,Chênh_lệch_tiếp_thị[Thg5])","v":{"v":113,"d":"113.00 ₫"}},{"$f":"SUBTOTAL(109,Chênh_lệch_tiếp_thị[Thg6])","v":{"v":-825,"d":"-825.00 ₫"}},{"$f":"SUBTOTAL(109,Chênh_lệch_tiếp_thị[Thg7])","v":{"v":8100,"d":"8,100.00 ₫"}},{"$f":"SUBTOTAL(109,Chênh_lệch_tiếp_thị[Thg8])","v":{"v":6100,"d":"6,100.00 ₫"}},{"$f":"SUBTOTAL(109,Chênh_lệch_tiếp_thị[Thg9])","v":{"v":3100,"d":"3,100.00 ₫"}},{"$f":"SUBTOTAL(109,Chênh_lệch_tiếp_thị[Thg10])","v":{"v":8100,"d":"8,100.00 ₫"}},{"$f":"SUBTOTAL(109,Chênh_lệch_tiếp_thị[Thg11])","v":{"v":3100,"d":"3,100.00 ₫"}},{"$f":"SUBTOTAL(109,Chênh_lệch_tiếp_thị[Thg12])","v":{"v":6900,"d":"6,900.00 ₫"}},{"$f":"SUBTOTAL(109,Chênh_lệch_tiếp_thị[NĂM])","v":{"v":34641,"d":"34,641.00 ₫"}}]
[]
["Chênh lệch Chi phí đào tạo hoặc đi lại được tính toán tự động trong bảng Chênh lệch đào tạo và đi lại bắt đầu ở ô bên phải. Hướng dẫn tiếp theo nằm trong ô A35.","Đào tạo/Đi lại","Thg1","Thg2","Thg3","Thg4","Thg5","Thg6","Thg7","Thg8","Thg9","Thg10","Thg11","Thg12","NĂM"]
[null,"Các lớp đào tạo",{"$f":"INDEX(Kế_hoạch_đào_tạo_và_đi_lại[],MATCH(INDEX(Chênh_lệch_đào_tạo_và_đi_lại[],ROW()-ROW(Chênh_lệch_đào_tạo_và_đi_lại[[#Headers],[Thg1]]),1),INDEX(Kế_hoạch_đào_tạo_và_đi_lại[],,1),0),MATCH(Chênh_lệch_đào_tạo_và_đi_lại[[#Headers],[Thg1]],Kế_hoạch_đào_tạo_và_đi_lại[#Headers],0))-INDEX(Thực_tế_đào_tạo[],MATCH(INDEX(Chênh_lệch_đào_tạo_và_đi_lại[],ROW()-ROW(Chênh_lệch_đào_tạo_và_đi_lại[[#Headers],[Thg1]]),1),INDEX(Kế_hoạch_đào_tạo_và_đi_lại[],,1),0),MATCH(Chênh_lệch_đào_tạo_và_đi_lại[[#Headers],[Thg1]],Thực_tế_đào_tạo[#Headers],0))","v":{"v":400,"d":"400.00 ₫"}},{"$f":"INDEX(Kế_hoạch_đào_tạo_và_đi_lại[],MATCH(INDEX(Chênh_lệch_đào_tạo_và_đi_lại[],ROW()-ROW(Chênh_lệch_đào_tạo_và_đi_lại[[#Headers],[Thg2]]),1),INDEX(Kế_hoạch_đào_tạo_và_đi_lại[],,1),0),MATCH(Chênh_lệch_đào_tạo_và_đi_lại[[#Headers],[Thg2]],Kế_hoạch_đào_tạo_và_đi_lại[#Headers],0))-INDEX(Thực_tế_đào_tạo[],MATCH(INDEX(Chênh_lệch_đào_tạo_và_đi_lại[],ROW()-ROW(Chênh_lệch_đào_tạo_và_đi_lại[[#Headers],[Thg2]]),1),INDEX(Kế_hoạch_đào_tạo_và_đi_lại[],,1),0),MATCH(Chênh_lệch_đào_tạo_và_đi_lại[[#Headers],[Thg2]],Thực_tế_đào_tạo[#Headers],0))","v":{"v":-400,"d":"-400.00 ₫"}},{"$f":"INDEX(Kế_hoạch_đào_tạo_và_đi_lại[],MATCH(INDEX(Chênh_lệch_đào_tạo_và_đi_lại[],ROW()-ROW(Chênh_lệch_đào_tạo_và_đi_lại[[#Headers],[Thg3]]),1),INDEX(Kế_hoạch_đào_tạo_và_đi_lại[],,1),0),MATCH(Chênh_lệch_đào_tạo_và_đi_lại[[#Headers],[Thg3]],Kế_hoạch_đào_tạo_và_đi_lại[#Headers],0))-INDEX(Thực_tế_đào_tạo[],MATCH(INDEX(Chênh_lệch_đào_tạo_và_đi_lại[],ROW()-ROW(Chênh_lệch_đào_tạo_và_đi_lại[[#Headers],[Thg3]]),1),INDEX(Kế_hoạch_đào_tạo_và_đi_lại[],,1),0),MATCH(Chênh_lệch_đào_tạo_và_đi_lại[[#Headers],[Thg3]],Thực_tế_đào_tạo[#Headers],0))","v":{"v":600,"d":"600.00 ₫"}},{"$f":"INDEX(Kế_hoạch_đào_tạo_và_đi_lại[],MATCH(INDEX(Chênh_lệch_đào_tạo_và_đi_lại[],ROW()-ROW(Chênh_lệch_đào_tạo_và_đi_lại[[#Headers],[Thg4]]),1),INDEX(Kế_hoạch_đào_tạo_và_đi_lại[],,1),0),MATCH(Chênh_lệch_đào_tạo_và_đi_lại[[#Headers],[Thg4]],Kế_hoạch_đào_tạo_và_đi_lại[#Headers],0))-INDEX(Thực_tế_đào_tạo[],MATCH(INDEX(Chênh_lệch_đào_tạo_và_đi_lại[],ROW()-ROW(Chênh_lệch_đào_tạo_và_đi_lại[[#Headers],[Thg4]]),1),INDEX(Kế_hoạch_đào_tạo_và_đi_lại[],,1),0),MATCH(Chênh_lệch_đào_tạo_và_đi_lại[[#Headers],[Thg4]],Thực_tế_đào_tạo[#Headers],0))","v":{"v":400,"d":"400.00 ₫"}},{"$f":"INDEX(Kế_hoạch_đào_tạo_và_đi_lại[],MATCH(INDEX(Chênh_lệch_đào_tạo_và_đi_lại[],ROW()-ROW(Chênh_lệch_đào_tạo_và_đi_lại[[#Headers],[Thg5]]),1),INDEX(Kế_hoạch_đào_tạo_và_đi_lại[],,1),0),MATCH(Chênh_lệch_đào_tạo_và_đi_lại[[#Headers],[Thg5]],Kế_hoạch_đào_tạo_và_đi_lại[#Headers],0))-INDEX(Thực_tế_đào_tạo[],MATCH(INDEX(Chênh_lệch_đào_tạo_và_đi_lại[],ROW()-ROW(Chênh_lệch_đào_tạo_và_đi_lại[[#Headers],[Thg5]]),1),INDEX(Kế_hoạch_đào_tạo_và_đi_lại[],,1),0),MATCH(Chênh_lệch_đào_tạo_và_đi_lại[[#Headers],[Thg5]],Thực_tế_đào_tạo[#Headers],0))","v":{"v":800,"d":"800.00 ₫"}},{"$f":"INDEX(Kế_hoạch_đào_tạo_và_đi_lại[],MATCH(INDEX(Chênh_lệch_đào_tạo_và_đi_lại[],ROW()-ROW(Chênh_lệch_đào_tạo_và_đi_lại[[#Headers],[Thg6]]),1),INDEX(Kế_hoạch_đào_tạo_và_đi_lại[],,1),0),MATCH(Chênh_lệch_đào_tạo_và_đi_lại[[#Headers],[Thg6]],Kế_hoạch_đào_tạo_và_đi_lại[#Headers],0))-INDEX(Thực_tế_đào_tạo[],MATCH(INDEX(Chênh_lệch_đào_tạo_và_đi_lại[],ROW()-ROW(Chênh_lệch_đào_tạo_và_đi_lại[[#Headers],[Thg6]]),1),INDEX(Kế_hoạch_đào_tạo_và_đi_lại[],,1),0),MATCH(Chênh_lệch_đào_tạo_và_đi_lại[[#Headers],[Thg6]],Thực_tế_đào_tạo[#Headers],0))","v":{"v":-800,"d":"-800.00 ₫"}},{"$f":"INDEX(Kế_hoạch_đào_tạo_và_đi_lại[],MATCH(INDEX(Chênh_lệch_đào_tạo_và_đi_lại[],ROW()-ROW(Chênh_lệch_đào_tạo_và_đi_lại[[#Headers],[Thg7]]),1),INDEX(Kế_hoạch_đào_tạo_và_đi_lại[],,1),0),MATCH(Chênh_lệch_đào_tạo_và_đi_lại[[#Headers],[Thg7]],Kế_hoạch_đào_tạo_và_đi_lại[#Headers],0))-INDEX(Thực_tế_đào_tạo[],MATCH(INDEX(Chênh_lệch_đào_tạo_và_đi_lại[],ROW()-ROW(Chênh_lệch_đào_tạo_và_đi_lại[[#Headers],[Thg7]]),1),INDEX(Kế_hoạch_đào_tạo_và_đi_lại[],,1),0),MATCH(Chênh_lệch_đào_tạo_và_đi_lại[[#Headers],[Thg7]],Thực_tế_đào_tạo[#Headers],0))","v":{"v":2000,"d":"2,000.00 ₫"}},{"$f":"INDEX(Kế_hoạch_đào_tạo_và_đi_lại[],MATCH(INDEX(Chênh_lệch_đào_tạo_và_đi_lại[],ROW()-ROW(Chênh_lệch_đào_tạo_và_đi_lại[[#Headers],[Thg8]]),1),INDEX(Kế_hoạch_đào_tạo_và_đi_lại[],,1),0),MATCH(Chênh_lệch_đào_tạo_và_đi_lại[[#Headers],[Thg8]],Kế_hoạch_đào_tạo_và_đi_lại[#Headers],0))-INDEX(Thực_tế_đào_tạo[],MATCH(INDEX(Chênh_lệch_đào_tạo_và_đi_lại[],ROW()-ROW(Chênh_lệch_đào_tạo_và_đi_lại[[#Headers],[Thg8]]),1),INDEX(Kế_hoạch_đào_tạo_và_đi_lại[],,1),0),MATCH(Chênh_lệch_đào_tạo_và_đi_lại[[#Headers],[Thg8]],Thực_tế_đào_tạo[#Headers],0))","v":{"v":2000,"d":"2,000.00 ₫"}},{"$f":"INDEX(Kế_hoạch_đào_tạo_và_đi_lại[],MATCH(INDEX(Chênh_lệch_đào_tạo_và_đi_lại[],ROW()-ROW(Chênh_lệch_đào_tạo_và_đi_lại[[#Headers],[Thg9]]),1),INDEX(Kế_hoạch_đào_tạo_và_đi_lại[],,1),0),MATCH(Chênh_lệch_đào_tạo_và_đi_lại[[#Headers],[Thg9]],Kế_hoạch_đào_tạo_và_đi_lại[#Headers],0))-INDEX(Thực_tế_đào_tạo[],MATCH(INDEX(Chênh_lệch_đào_tạo_và_đi_lại[],ROW()-ROW(Chênh_lệch_đào_tạo_và_đi_lại[[#Headers],[Thg9]]),1),INDEX(Kế_hoạch_đào_tạo_và_đi_lại[],,1),0),MATCH(Chênh_lệch_đào_tạo_và_đi_lại[[#Headers],[Thg9]],Thực_tế_đào_tạo[#Headers],0))","v":{"v":2000,"d":"2,000.00 ₫"}},{"$f":"INDEX(Kế_hoạch_đào_tạo_và_đi_lại[],MATCH(INDEX(Chênh_lệch_đào_tạo_và_đi_lại[],ROW()-ROW(Chênh_lệch_đào_tạo_và_đi_lại[[#Headers],[Thg10]]),1),INDEX(Kế_hoạch_đào_tạo_và_đi_lại[],,1),0),MATCH(Chênh_lệch_đào_tạo_và_đi_lại[[#Headers],[Thg10]],Kế_hoạch_đào_tạo_và_đi_lại[#Headers],0))-INDEX(Thực_tế_đào_tạo[],MATCH(INDEX(Chênh_lệch_đào_tạo_và_đi_lại[],ROW()-ROW(Chênh_lệch_đào_tạo_và_đi_lại[[#Headers],[Thg10]]),1),INDEX(Kế_hoạch_đào_tạo_và_đi_lại[],,1),0),MATCH(Chênh_lệch_đào_tạo_và_đi_lại[[#Headers],[Thg10]],Thực_tế_đào_tạo[#Headers],0))","v":{"v":2000,"d":"2,000.00 ₫"}},{"$f":"INDEX(Kế_hoạch_đào_tạo_và_đi_lại[],MATCH(INDEX(Chênh_lệch_đào_tạo_và_đi_lại[],ROW()-ROW(Chênh_lệch_đào_tạo_và_đi_lại[[#Headers],[Thg11]]),1),INDEX(Kế_hoạch_đào_tạo_và_đi_lại[],,1),0),MATCH(Chênh_lệch_đào_tạo_và_đi_lại[[#Headers],[Thg11]],Kế_hoạch_đào_tạo_và_đi_lại[#Headers],0))-INDEX(Thực_tế_đào_tạo[],MATCH(INDEX(Chênh_lệch_đào_tạo_và_đi_lại[],ROW()-ROW(Chênh_lệch_đào_tạo_và_đi_lại[[#Headers],[Thg11]]),1),INDEX(Kế_hoạch_đào_tạo_và_đi_lại[],,1),0),MATCH(Chênh_lệch_đào_tạo_và_đi_lại[[#Headers],[Thg11]],Thực_tế_đào_tạo[#Headers],0))","v":{"v":2000,"d":"2,000.00 ₫"}},{"$f":"INDEX(Kế_hoạch_đào_tạo_và_đi_lại[],MATCH(INDEX(Chênh_lệch_đào_tạo_và_đi_lại[],ROW()-ROW(Chênh_lệch_đào_tạo_và_đi_lại[[#Headers],[Thg12]]),1),INDEX(Kế_hoạch_đào_tạo_và_đi_lại[],,1),0),MATCH(Chênh_lệch_đào_tạo_và_đi_lại[[#Headers],[Thg12]],Kế_hoạch_đào_tạo_và_đi_lại[#Headers],0))-INDEX(Thực_tế_đào_tạo[],MATCH(INDEX(Chênh_lệch_đào_tạo_và_đi_lại[],ROW()-ROW(Chênh_lệch_đào_tạo_và_đi_lại[[#Headers],[Thg12]]),1),INDEX(Kế_hoạch_đào_tạo_và_đi_lại[],,1),0),MATCH(Chênh_lệch_đào_tạo_và_đi_lại[[#Headers],[Thg12]],Thực_tế_đào_tạo[#Headers],0))","v":{"v":2000,"d":"2,000.00 ₫"}},{"$f":"SUM(Chênh_lệch_đào_tạo_và_đi_lại[[#This Row],[Thg1]:[Thg12]])","v":{"v":13000,"d":"13,000.00 ₫"}}]
[null,"Chi phí đi lại liên quan đến đào tạo",{"$f":"INDEX(Kế_hoạch_đào_tạo_và_đi_lại[],MATCH(INDEX(Chênh_lệch_đào_tạo_và_đi_lại[],ROW()-ROW(Chênh_lệch_đào_tạo_và_đi_lại[[#Headers],[Thg1]]),1),INDEX(Kế_hoạch_đào_tạo_và_đi_lại[],,1),0),MATCH(Chênh_lệch_đào_tạo_và_đi_lại[[#Headers],[Thg1]],Kế_hoạch_đào_tạo_và_đi_lại[#Headers],0))-INDEX(Thực_tế_đào_tạo[],MATCH(INDEX(Chênh_lệch_đào_tạo_và_đi_lại[],ROW()-ROW(Chênh_lệch_đào_tạo_và_đi_lại[[#Headers],[Thg1]]),1),INDEX(Kế_hoạch_đào_tạo_và_đi_lại[],,1),0),MATCH(Chênh_lệch_đào_tạo_và_đi_lại[[#Headers],[Thg1]],Thực_tế_đào_tạo[#Headers],0))","v":{"v":800,"d":"800.00 ₫"}},{"$f":"INDEX(Kế_hoạch_đào_tạo_và_đi_lại[],MATCH(INDEX(Chênh_lệch_đào_tạo_và_đi_lại[],ROW()-ROW(Chênh_lệch_đào_tạo_và_đi_lại[[#Headers],[Thg2]]),1),INDEX(Kế_hoạch_đào_tạo_và_đi_lại[],,1),0),MATCH(Chênh_lệch_đào_tạo_và_đi_lại[[#Headers],[Thg2]],Kế_hoạch_đào_tạo_và_đi_lại[#Headers],0))-INDEX(Thực_tế_đào_tạo[],MATCH(INDEX(Chênh_lệch_đào_tạo_và_đi_lại[],ROW()-ROW(Chênh_lệch_đào_tạo_và_đi_lại[[#Headers],[Thg2]]),1),INDEX(Kế_hoạch_đào_tạo_và_đi_lại[],,1),0),MATCH(Chênh_lệch_đào_tạo_và_đi_lại[[#Headers],[Thg2]],Thực_tế_đào_tạo[#Headers],0))","v":{"v":-200,"d":"-200.00 ₫"}},{"$f":"INDEX(Kế_hoạch_đào_tạo_và_đi_lại[],MATCH(INDEX(Chênh_lệch_đào_tạo_và_đi_lại[],ROW()-ROW(Chênh_lệch_đào_tạo_và_đi_lại[[#Headers],[Thg3]]),1),INDEX(Kế_hoạch_đào_tạo_và_đi_lại[],,1),0),MATCH(Chênh_lệch_đào_tạo_và_đi_lại[[#Headers],[Thg3]],Kế_hoạch_đào_tạo_và_đi_lại[#Headers],0))-INDEX(Thực_tế_đào_tạo[],MATCH(INDEX(Chênh_lệch_đào_tạo_và_đi_lại[],ROW()-ROW(Chênh_lệch_đào_tạo_và_đi_lại[[#Headers],[Thg3]]),1),INDEX(Kế_hoạch_đào_tạo_và_đi_lại[],,1),0),MATCH(Chênh_lệch_đào_tạo_và_đi_lại[[#Headers],[Thg3]],Thực_tế_đào_tạo[#Headers],0))","v":{"v":600,"d":"600.00 ₫"}},{"$f":"INDEX(Kế_hoạch_đào_tạo_và_đi_lại[],MATCH(INDEX(Chênh_lệch_đào_tạo_và_đi_lại[],ROW()-ROW(Chênh_lệch_đào_tạo_và_đi_lại[[#Headers],[Thg4]]),1),INDEX(Kế_hoạch_đào_tạo_và_đi_lại[],,1),0),MATCH(Chênh_lệch_đào_tạo_và_đi_lại[[#Headers],[Thg4]],Kế_hoạch_đào_tạo_và_đi_lại[#Headers],0))-INDEX(Thực_tế_đào_tạo[],MATCH(INDEX(Chênh_lệch_đào_tạo_và_đi_lại[],ROW()-ROW(Chênh_lệch_đào_tạo_và_đi_lại[[#Headers],[Thg4]]),1),INDEX(Kế_hoạch_đào_tạo_và_đi_lại[],,1),0),MATCH(Chênh_lệch_đào_tạo_và_đi_lại[[#Headers],[Thg4]],Thực_tế_đào_tạo[#Headers],0))","v":{"v":800,"d":"800.00 ₫"}},{"$f":"INDEX(Kế_hoạch_đào_tạo_và_đi_lại[],MATCH(INDEX(Chênh_lệch_đào_tạo_và_đi_lại[],ROW()-ROW(Chênh_lệch_đào_tạo_và_đi_lại[[#Headers],[Thg5]]),1),INDEX(Kế_hoạch_đào_tạo_và_đi_lại[],,1),0),MATCH(Chênh_lệch_đào_tạo_và_đi_lại[[#Headers],[Thg5]],Kế_hoạch_đào_tạo_và_đi_lại[#Headers],0))-INDEX(Thực_tế_đào_tạo[],MATCH(INDEX(Chênh_lệch_đào_tạo_và_đi_lại[],ROW()-ROW(Chênh_lệch_đào_tạo_và_đi_lại[[#Headers],[Thg5]]),1),INDEX(Kế_hoạch_đào_tạo_và_đi_lại[],,1),0),MATCH(Chênh_lệch_đào_tạo_và_đi_lại[[#Headers],[Thg5]],Thực_tế_đào_tạo[#Headers],0))","v":{"v":1200,"d":"1,200.00 ₫"}},{"$f":"INDEX(Kế_hoạch_đào_tạo_và_đi_lại[],MATCH(INDEX(Chênh_lệch_đào_tạo_và_đi_lại[],ROW()-ROW(Chênh_lệch_đào_tạo_và_đi_lại[[#Headers],[Thg6]]),1),INDEX(Kế_hoạch_đào_tạo_và_đi_lại[],,1),0),MATCH(Chênh_lệch_đào_tạo_và_đi_lại[[#Headers],[Thg6]],Kế_hoạch_đào_tạo_và_đi_lại[#Headers],0))-INDEX(Thực_tế_đào_tạo[],MATCH(INDEX(Chênh_lệch_đào_tạo_và_đi_lại[],ROW()-ROW(Chênh_lệch_đào_tạo_và_đi_lại[[#Headers],[Thg6]]),1),INDEX(Kế_hoạch_đào_tạo_và_đi_lại[],,1),0),MATCH(Chênh_lệch_đào_tạo_và_đi_lại[[#Headers],[Thg6]],Thực_tế_đào_tạo[#Headers],0))","v":{"v":-1500,"d":"-1,500.00 ₫"}},{"$f":"INDEX(Kế_hoạch_đào_tạo_và_đi_lại[],MATCH(INDEX(Chênh_lệch_đào_tạo_và_đi_lại[],ROW()-ROW(Chênh_lệch_đào_tạo_và_đi_lại[[#Headers],[Thg7]]),1),INDEX(Kế_hoạch_đào_tạo_và_đi_lại[],,1),0),MATCH(Chênh_lệch_đào_tạo_và_đi_lại[[#Headers],[Thg7]],Kế_hoạch_đào_tạo_và_đi_lại[#Headers],0))-INDEX(Thực_tế_đào_tạo[],MATCH(INDEX(Chênh_lệch_đào_tạo_và_đi_lại[],ROW()-ROW(Chênh_lệch_đào_tạo_và_đi_lại[[#Headers],[Thg7]]),1),INDEX(Kế_hoạch_đào_tạo_và_đi_lại[],,1),0),MATCH(Chênh_lệch_đào_tạo_và_đi_lại[[#Headers],[Thg7]],Thực_tế_đào_tạo[#Headers],0))","v":{"v":2000,"d":"2,000.00 ₫"}},{"$f":"INDEX(Kế_hoạch_đào_tạo_và_đi_lại[],MATCH(INDEX(Chênh_lệch_đào_tạo_và_đi_lại[],ROW()-ROW(Chênh_lệch_đào_tạo_và_đi_lại[[#Headers],[Thg8]]),1),INDEX(Kế_hoạch_đào_tạo_và_đi_lại[],,1),0),MATCH(Chênh_lệch_đào_tạo_và_đi_lại[[#Headers],[Thg8]],Kế_hoạch_đào_tạo_và_đi_lại[#Headers],0))-INDEX(Thực_tế_đào_tạo[],MATCH(INDEX(Chênh_lệch_đào_tạo_và_đi_lại[],ROW()-ROW(Chênh_lệch_đào_tạo_và_đi_lại[[#Headers],[Thg8]]),1),INDEX(Kế_hoạch_đào_tạo_và_đi_lại[],,1),0),MATCH(Chênh_lệch_đào_tạo_và_đi_lại[[#Headers],[Thg8]],Thực_tế_đào_tạo[#Headers],0))","v":{"v":2000,"d":"2,000.00 ₫"}},{"$f":"INDEX(Kế_hoạch_đào_tạo_và_đi_lại[],MATCH(INDEX(Chênh_lệch_đào_tạo_và_đi_lại[],ROW()-ROW(Chênh_lệch_đào_tạo_và_đi_lại[[#Headers],[Thg9]]),1),INDEX(Kế_hoạch_đào_tạo_và_đi_lại[],,1),0),MATCH(Chênh_lệch_đào_tạo_và_đi_lại[[#Headers],[Thg9]],Kế_hoạch_đào_tạo_và_đi_lại[#Headers],0))-INDEX(Thực_tế_đào_tạo[],MATCH(INDEX(Chênh_lệch_đào_tạo_và_đi_lại[],ROW()-ROW(Chênh_lệch_đào_tạo_và_đi_lại[[#Headers],[Thg9]]),1),INDEX(Kế_hoạch_đào_tạo_và_đi_lại[],,1),0),MATCH(Chênh_lệch_đào_tạo_và_đi_lại[[#Headers],[Thg9]],Thực_tế_đào_tạo[#Headers],0))","v":{"v":2000,"d":"2,000.00 ₫"}},{"$f":"INDEX(Kế_hoạch_đào_tạo_và_đi_lại[],MATCH(INDEX(Chênh_lệch_đào_tạo_và_đi_lại[],ROW()-ROW(Chênh_lệch_đào_tạo_và_đi_lại[[#Headers],[Thg10]]),1),INDEX(Kế_hoạch_đào_tạo_và_đi_lại[],,1),0),MATCH(Chênh_lệch_đào_tạo_và_đi_lại[[#Headers],[Thg10]],Kế_hoạch_đào_tạo_và_đi_lại[#Headers],0))-INDEX(Thực_tế_đào_tạo[],MATCH(INDEX(Chênh_lệch_đào_tạo_và_đi_lại[],ROW()-ROW(Chênh_lệch_đào_tạo_và_đi_lại[[#Headers],[Thg10]]),1),INDEX(Kế_hoạch_đào_tạo_và_đi_lại[],,1),0),MATCH(Chênh_lệch_đào_tạo_và_đi_lại[[#Headers],[Thg10]],Thực_tế_đào_tạo[#Headers],0))","v":{"v":2000,"d":"2,000.00 ₫"}},{"$f":"INDEX(Kế_hoạch_đào_tạo_và_đi_lại[],MATCH(INDEX(Chênh_lệch_đào_tạo_và_đi_lại[],ROW()-ROW(Chênh_lệch_đào_tạo_và_đi_lại[[#Headers],[Thg11]]),1),INDEX(Kế_hoạch_đào_tạo_và_đi_lại[],,1),0),MATCH(Chênh_lệch_đào_tạo_và_đi_lại[[#Headers],[Thg11]],Kế_hoạch_đào_tạo_và_đi_lại[#Headers],0))-INDEX(Thực_tế_đào_tạo[],MATCH(INDEX(Chênh_lệch_đào_tạo_và_đi_lại[],ROW()-ROW(Chênh_lệch_đào_tạo_và_đi_lại[[#Headers],[Thg11]]),1),INDEX(Kế_hoạch_đào_tạo_và_đi_lại[],,1),0),MATCH(Chênh_lệch_đào_tạo_và_đi_lại[[#Headers],[Thg11]],Thực_tế_đào_tạo[#Headers],0))","v":{"v":2000,"d":"2,000.00 ₫"}},{"$f":"INDEX(Kế_hoạch_đào_tạo_và_đi_lại[],MATCH(INDEX(Chênh_lệch_đào_tạo_và_đi_lại[],ROW()-ROW(Chênh_lệch_đào_tạo_và_đi_lại[[#Headers],[Thg12]]),1),INDEX(Kế_hoạch_đào_tạo_và_đi_lại[],,1),0),MATCH(Chênh_lệch_đào_tạo_và_đi_lại[[#Headers],[Thg12]],Kế_hoạch_đào_tạo_và_đi_lại[#Headers],0))-INDEX(Thực_tế_đào_tạo[],MATCH(INDEX(Chênh_lệch_đào_tạo_và_đi_lại[],ROW()-ROW(Chênh_lệch_đào_tạo_và_đi_lại[[#Headers],[Thg12]]),1),INDEX(Kế_hoạch_đào_tạo_và_đi_lại[],,1),0),MATCH(Chênh_lệch_đào_tạo_và_đi_lại[[#Headers],[Thg12]],Thực_tế_đào_tạo[#Headers],0))","v":{"v":2000,"d":"2,000.00 ₫"}},{"$f":"SUM(Chênh_lệch_đào_tạo_và_đi_lại[[#This Row],[Thg1]:[Thg12]])","v":{"v":13700,"d":"13,700.00 ₫"}}]
[null,"Tổng phụ",{"$f":"SUBTOTAL(109,Chênh_lệch_đào_tạo_và_đi_lại[Thg1])","v":{"v":1200,"d":"1,200.00 ₫"}},{"$f":"SUBTOTAL(109,Chênh_lệch_đào_tạo_và_đi_lại[Thg2])","v":{"v":-600,"d":"-600.00 ₫"}},{"$f":"SUBTOTAL(109,Chênh_lệch_đào_tạo_và_đi_lại[Thg3])","v":{"v":1200,"d":"1,200.00 ₫"}},{"$f":"SUBTOTAL(109,Chênh_lệch_đào_tạo_và_đi_lại[Thg4])","v":{"v":1200,"d":"1,200.00 ₫"}},{"$f":"SUBTOTAL(109,Chênh_lệch_đào_tạo_và_đi_lại[Thg5])","v":{"v":2000,"d":"2,000.00 ₫"}},{"$f":"SUBTOTAL(109,Chênh_lệch_đào_tạo_và_đi_lại[Thg6])","v":{"v":-2300,"d":"-2,300.00 ₫"}},{"$f":"SUBTOTAL(109,Chênh_lệch_đào_tạo_và_đi_lại[Thg7])","v":{"v":4000,"d":"4,000.00 ₫"}},{"$f":"SUBTOTAL(109,Chênh_lệch_đào_tạo_và_đi_lại[Thg8])","v":{"v":4000,"d":"4,000.00 ₫"}},{"$f":"SUBTOTAL(109,Chênh_lệch_đào_tạo_và_đi_lại[Thg9])","v":{"v":4000,"d":"4,000.00 ₫"}},{"$f":"SUBTOTAL(109,Chênh_lệch_đào_tạo_và_đi_lại[Thg10])","v":{"v":4000,"d":"4,000.00 ₫"}},{"$f":"SUBTOTAL(109,Chênh_lệch_đào_tạo_và_đi_lại[Thg11])","v":{"v":4000,"d":"4,000.00 ₫"}},{"$f":"SUBTOTAL(109,Chênh_lệch_đào_tạo_và_đi_lại[Thg12])","v":{"v":4000,"d":"4,000.00 ₫"}},{"$f":"SUBTOTAL(109,Chênh_lệch_đào_tạo_và_đi_lại[NĂM])","v":{"v":26700,"d":"26,700.00 ₫"}}]
[]
["Chênh lệch chi phí được tính toán tự động trong bảng Tổng chênh lệch bắt đầu ở ô bên phải.","TỔNG","Thg1","Thg2","Thg3","Thg4","Thg5","Thg6","Thg7","Thg8","Thg9","Thg10","Thg11","Thg12","Năm"]
[null,"Chi phí thực tế hàng tháng",{"$f":"Chênh_lệch_đào_tạo_và_đi_lại[[#Totals],[Thg1]]+Chênh_lệch_tiếp_thị[[#Totals],[Thg1]]+Chênh_lệch_văn_phòng[[#Totals],[Thg1]]+Chênh_lệch_nhân_viên[[#Totals],[Thg1]]","v":{"v":1738,"d":"1,738.00 ₫"}},{"$f":"Chênh_lệch_đào_tạo_và_đi_lại[[#Totals],[Thg2]]+Chênh_lệch_tiếp_thị[[#Totals],[Thg2]]+Chênh_lệch_văn_phòng[[#Totals],[Thg2]]+Chênh_lệch_nhân_viên[[#Totals],[Thg2]]","v":{"v":-984,"d":"-984.00 ₫"}},{"$f":"Chênh_lệch_đào_tạo_và_đi_lại[[#Totals],[Thg3]]+Chênh_lệch_tiếp_thị[[#Totals],[Thg3]]+Chênh_lệch_văn_phòng[[#Totals],[Thg3]]+Chênh_lệch_nhân_viên[[#Totals],[Thg3]]","v":{"v":1255,"d":"1,255.00 ₫"}},{"$f":"Chênh_lệch_đào_tạo_và_đi_lại[[#Totals],[Thg4]]+Chênh_lệch_tiếp_thị[[#Totals],[Thg4]]+Chênh_lệch_văn_phòng[[#Totals],[Thg4]]+Chênh_lệch_nhân_viên[[#Totals],[Thg4]]","v":{"v":301,"d":"301.00 ₫"}},{"$f":"Chênh_lệch_đào_tạo_và_đi_lại[[#Totals],[Thg5]]+Chênh_lệch_tiếp_thị[[#Totals],[Thg5]]+Chênh_lệch_văn_phòng[[#Totals],[Thg5]]+Chênh_lệch_nhân_viên[[#Totals],[Thg5]]","v":{"v":1440,"d":"1,440.00 ₫"}},{"$f":"Chênh_lệch_đào_tạo_và_đi_lại[[#Totals],[Thg6]]+Chênh_lệch_tiếp_thị[[#Totals],[Thg6]]+Chênh_lệch_văn_phòng[[#Totals],[Thg6]]+Chênh_lệch_nhân_viên[[#Totals],[Thg6]]","v":{"v":-3744,"d":"-3,744.00 ₫"}},{"$f":"Chênh_lệch_đào_tạo_và_đi_lại[[#Totals],[Thg7]]+Chênh_lệch_tiếp_thị[[#Totals],[Thg7]]+Chênh_lệch_văn_phòng[[#Totals],[Thg7]]+Chênh_lệch_nhân_viên[[#Totals],[Thg7]]","v":{"v":134695,"d":"134,695.00 ₫"}},{"$f":"Chênh_lệch_đào_tạo_và_đi_lại[[#Totals],[Thg8]]+Chênh_lệch_tiếp_thị[[#Totals],[Thg8]]+Chênh_lệch_văn_phòng[[#Totals],[Thg8]]+Chênh_lệch_nhân_viên[[#Totals],[Thg8]]","v":{"v":138918,"d":"138,918.00 ₫"}},{"$f":"Chênh_lệch_đào_tạo_và_đi_lại[[#Totals],[Thg9]]+Chênh_lệch_tiếp_thị[[#Totals],[Thg9]]+Chênh_lệch_văn_phòng[[#Totals],[Thg9]]+Chênh_lệch_nhân_viên[[#Totals],[Thg9]]","v":{"v":135918,"d":"135,918.00 ₫"}},{"$f":"Chênh_lệch_đào_tạo_và_đi_lại[[#Totals],[Thg10]]+Chênh_lệch_tiếp_thị[[#Totals],[Thg10]]+Chênh_lệch_văn_phòng[[#Totals],[Thg10]]+Chênh_lệch_nhân_viên[[#Totals],[Thg10]]","v":{"v":140918,"d":"140,918.00 ₫"}},{"$f":"Chênh_lệch_đào_tạo_và_đi_lại[[#Totals],[Thg11]]+Chênh_lệch_tiếp_thị[[#Totals],[Thg11]]+Chênh_lệch_văn_phòng[[#Totals],[Thg11]]+Chênh_lệch_nhân_viên[[#Totals],[Thg11]]","v":{"v":136218,"d":"136,218.00 ₫"}},{"$f":"Chênh_lệch_đào_tạo_và_đi_lại[[#Totals],[Thg12]]+Chênh_lệch_tiếp_thị[[#Totals],[Thg12]]+Chênh_lệch_văn_phòng[[#Totals],[Thg12]]+Chênh_lệch_nhân_viên[[#Totals],[Thg12]]","v":{"v":140018,"d":"140,018.00 ₫"}},{"$f":"Chênh_lệch_đào_tạo_và_đi_lại[[#Totals],[NĂM]]+Chênh_lệch_tiếp_thị[[#Totals],[NĂM]]+Chênh_lệch_văn_phòng[[#Totals],[NĂM]]+Chênh_lệch_nhân_viên[[#Totals],[NĂM]]","v":{"v":826691,"d":"826,691.00 ₫"}}]
[null,"TỔNG chi phí thực tế",{"$f":"SUM($C$36:C36)","v":{"v":1738,"d":"1,738.00 ₫"}},{"$f":"SUM($C$36:D36)","v":{"v":754,"d":"754.00 ₫"}},{"$f":"SUM($C$36:E36)","v":{"v":2009,"d":"2,009.00 ₫"}},{"$f":"SUM($C$36:F36)","v":{"v":2310,"d":"2,310.00 ₫"}},{"$f":"SUM($C$36:G36)","v":{"v":3750,"d":"3,750.00 ₫"}},{"$f":"SUM($C$36:H36)","v":{"v":6,"d":"6.00 ₫"}},{"$f":"SUM($C$36:I36)","v":{"v":134701,"d":"134,701.00 ₫"}},{"$f":"SUM($C$36:J36)","v":{"v":273619,"d":"273,619.00 ₫"}},{"$f":"SUM($C$36:K36)","v":{"v":409537,"d":"409,537.00 ₫"}},{"$f":"SUM($C$36:L36)","v":{"v":550455,"d":"550,455.00 ₫"}},{"$f":"SUM($C$36:M36)","v":{"v":686673,"d":"686,673.00 ₫"}},{"$f":"SUM($C$36:N36)","v":{"v":826691,"d":"826,691.00 ₫"}}]

{"sheet":"PHÂN TÍCH CHI PHÍ","index":4,"n_rows":14,"n_cols":16,"rows_kept":14,"merged":[[1,1,2,3],[1,5,1,6],[2,4,2,6],[11,1,11,2],[11,3,11,5],[13,1,36,5]]}
["Chi phí theo kế hoạch và Chi phí thực tế hàng năm, Chênh lệch chi phí và Tỷ lệ phần trăm chênh lệch được cập nhật tự động cho từng Thể loại chi phí trong trang tính này. Các hướng dẫn hữu ích về cách sử dụng trang tính này nằm ở các ô trong cột này. Mũi tên xuống để bắt đầu. ",{"$nulls":5}," ",{"$nulls":8}," "]
["Tên công ty được cập nhật tự động trong ô bên phải. Nhập Logo vào ô F2.",{"$f":"'CHI PHÍ THEO KẾ HOẠCH'!B2:D3","v":"Tên công ty"},{"$nulls":3},"Chỗ dành sẵn cho logo nằm trong ô này."]
["Tiêu đề của trang tính này nằm trong ô E3. Hướng dẫn tiếp theo nằm trong ô A5.",{"$nulls":3},{"$f":"tiêu_đề_trang_tính","v":"Ước tính chi phí chi tiết"}]
[]
["Chi phí theo kế hoạch, Chi phí thực tế, Chênh lệch chi phí và Tỷ lệ phần trăm chênh lệch được tính toán tự động trong bảng Phân tích bắt đầu ở ô bên phải. Hướng dẫn tiếp theo nằm trong ô A12.","Thể loại chi phí","Chi phí theo kế hoạch","Chi phí thực tế","Chênh lệch chi phí","Tỷ lệ phần trăm chênh lệch"]
[null,"Chi phí nhân viên",{"$f":"Kế_hoạch_nhân_viên[[#Totals],[NĂM]]","v":{"v":1355090,"d":"1,355,090.00 ₫"}},{"$f":"Thực_tế_nhân_viên[[#Totals],[NĂM]]","v":{"v":659130,"d":"659,130.00 ₫"}},{"$f":"C6-D6","v":{"v":695960,"d":"695,960.00 ₫"}},{"$f":"E6/C6","v":{"v":0.5135895032802249,"d":"51%"}}]
[null,{"$f":"'CHI PHÍ THEO KẾ HOẠCH'!B10","v":"Chi phí văn phòng"},{"$f":"Kế_hoạch_văn_phòng[[#Totals],[NĂM]]","v":{"v":138740,"d":"138,740.00 ₫"}},{"$f":"Thực_tế_văn_phòng[[#Totals],[NĂM]]","v":{"v":69350,"d":"69,350.00 ₫"}},{"$f":"C7-D7","v":{"v":69390,"d":"69,390.00 ₫"}},{"$f":"E7/C7","v":{"v":0.5001441545336601,"d":"50%"}}]
[null,{"$f":"'CHI PHÍ THEO KẾ HOẠCH'!B21","v":"Chi phí tiếp thị"},{"$f":"Kế_hoạch_tiếp_thị[[#Totals],[NĂM]]","v":{"v":67800,"d":"67,800.00 ₫"}},{"$f":"Thực_tế_tiếp_thị[[#Totals],[NĂM]]","v":{"v":33159,"d":"33,159.00 ₫"}},{"$f":"C8-D8","v":{"v":34641,"d":"34,641.00 ₫"}},{"$f":"E8/C8","v":{"v":0.510929203539823,"d":"51%"}}]
[null,{"$f":"'CHI PHÍ THEO KẾ HOẠCH'!B30","v":"Đào tạo/Đi lại"},{"$f":"Kế_hoạch_đào_tạo_và_đi_lại[[#Totals],[NĂM]]","v":{"v":48000,"d":"48,000.00 ₫"}},{"$f":"Thực_tế_đào_tạo[[#Totals],[NĂM]]","v":{"v":21300,"d":"21,300.00 ₫"}},{"$f":"C9-D9","v":{"v":26700,"d":"26,700.00 ₫"}},{"$f":"E9/C9","v":{"v":0.55625,"d":"56%"}}]
[null,{"$f":"'CHI PHÍ THEO KẾ HOẠCH'!B35","v":"TỔNG"},{"$f":"'CHI PHÍ THEO KẾ HOẠCH'!O36","v":{"v":1609630,"d":"1,609,630.00 ₫"}},{"$f":"'CHI PHÍ THỰC TẾ'!O36","v":{"v":782939,"d":"782,939.00 ₫"}},{"$f":"C10-D10","v":{"v":826691,"d":"826,691.00 ₫"}},{"$f":"E10/C10","v":{"v":0.5135907009685455,"d":"51%"}}]
[]
["Biểu đồ hình tròn Chi phí theo kế hoạch nằm trong ô bên phải và biểu đồ hình tròn Chi phí thực tế nằm ở ô D12. Hướng dẫn tiếp theo nằm trong ô A14.","Biểu đồ hình tròn hiển thị chi phí theo kế hoạch ở các thể loại khác nhau nằm trong ô này.",null,"Biểu đồ hình tròn hiển thị chi phí thực tế phát sinh ở các thể loại khác nhau nằm trong ô này."]
[]
["Biểu đồ thể hiện Theo kế hoạch, Thực tế và Chênh lệch trong Chi phí hàng tháng nằm trong ô ở bên phải."]